Body Name,Vendor Number,Vendor Name,Cost Centre,Service Label,BV Code,Amount,Period
Slough Borough Council,804709,247 Careservices Ltd,M44D,Adult Social Care Operations,Supplies and Services,"10,800.00",Nov-23
Slough Borough Council,804709,247 Careservices Ltd,M44D,Adult Social Care Operations,Supplies and Services,"11,520.00",Nov-23
Slough Borough Council,804709,247 Careservices Ltd,M44D,Adult Social Care Operations,Supplies and Services,"11,160.00",Nov-23
Slough Borough Council,1055,A J Chapman,F123,Education & Inclusion,External Receipts,"49,116.00",Nov-23
Slough Borough Council,1055,A J Chapman,F123,Education & Inclusion,External Receipts,"3,332.00",Nov-23
Slough Borough Council,1055,A J Chapman,F123,Education & Inclusion,External Receipts,952.00,Nov-23
Slough Borough Council,809183,Aamay Resource Management Ltd,H205,Housing (People) Services,Supplies and Services,"10,695.00",Nov-23
Slough Borough Council,536,Ability Housing Association,M42E,Adult Social Care Operations,Supplies and Services,"2,861.24",Nov-23
Slough Borough Council,536,Ability Housing Association,M42E,Adult Social Care Operations,Supplies and Services,"1,967.08",Nov-23
Slough Borough Council,536,Ability Housing Association,M42E,Adult Social Care Operations,Supplies and Services,"3,261.53",Nov-23
Slough Borough Council,536,Ability Housing Association,M42E,Adult Social Care Operations,Supplies and Services,"2,862.28",Nov-23
Slough Borough Council,536,Ability Housing Association,M42E,Adult Social Care Operations,Supplies and Services,"2,835.72",Nov-23
Slough Borough Council,536,Ability Housing Association,M42E,Adult Social Care Operations,Supplies and Services,"2,852.71",Nov-23
Slough Borough Council,536,Ability Housing Association,M42E,Adult Social Care Operations,Supplies and Services,"2,682.39",Nov-23
Slough Borough Council,536,Ability Housing Association,M42E,Adult Social Care Operations,Supplies and Services,"3,023.04",Nov-23
Slough Borough Council,536,Ability Housing Association,M42E,Adult Social Care Operations,Supplies and Services,"3,512.03",Nov-23
Slough Borough Council,536,Ability Housing Association,M42E,Adult Social Care Operations,Supplies and Services,"2,788.84",Nov-23
Slough Borough Council,536,Ability Housing Association,M42E,Adult Social Care Operations,Supplies and Services,"2,895.29",Nov-23
Slough Borough Council,536,Ability Housing Association,M42E,Adult Social Care Operations,Supplies and Services,"1,532.71",Nov-23
Slough Borough Council,536,Ability Housing Association,M42E,Adult Social Care Operations,Supplies and Services,"2,010.66",Nov-23
Slough Borough Council,536,Ability Housing Association,M42E,Adult Social Care Operations,Supplies and Services,"2,585.50",Nov-23
Slough Borough Council,536,Ability Housing Association,M42E,Adult Social Care Operations,Supplies and Services,"2,911.51",Nov-23
Slough Borough Council,536,Ability Housing Association,M42E,Adult Social Care Operations,Supplies and Services,"2,670.66",Nov-23
Slough Borough Council,536,Ability Housing Association,M42E,Adult Social Care Operations,Supplies and Services,"1,350.66",Nov-23
Slough Borough Council,536,Ability Housing Association,M42E,Adult Social Care Operations,Supplies and Services,"3,224.21",Nov-23
Slough Borough Council,536,Ability Housing Association,M44E,Adult Social Care Operations,Supplies and Services,"2,354.72",Nov-23
Slough Borough Council,536,Ability Housing Association,M44E,Adult Social Care Operations,Supplies and Services,"2,439.88",Nov-23
Slough Borough Council,536,Ability Housing Association,M44E,Adult Social Care Operations,Supplies and Services,"1,997.04",Nov-23
Slough Borough Council,536,Ability Housing Association,M44E,Adult Social Care Operations,Supplies and Services,"1,924.65",Nov-23
Slough Borough Council,2898,Achieve Together t/a The Regard Partnership Ltd,M26E,Adult Social Care Operations,Supplies and Services,"7,278.43",Nov-23
Slough Borough Council,2898,Achieve Together t/a The Regard Partnership Ltd,M26E,Adult Social Care Operations,Supplies and Services,"6,147.17",Nov-23
Slough Borough Council,2898,Achieve Together t/a The Regard Partnership Ltd,M42E,Adult Social Care Operations,Supplies and Services,"5,066.23",Nov-23
Slough Borough Council,2898,Achieve Together t/a The Regard Partnership Ltd,M42E,Adult Social Care Operations,Supplies and Services,"5,235.10",Nov-23
Slough Borough Council,2898,Achieve Together t/a The Regard Partnership Ltd,M42E,Adult Social Care Operations,Supplies and Services,"5,235.10",Nov-23
Slough Borough Council,2898,Achieve Together t/a The Regard Partnership Ltd,M42E,Adult Social Care Operations,Supplies and Services,"6,562.71",Nov-23
Slough Borough Council,2898,Achieve Together t/a The Regard Partnership Ltd,M42E,Adult Social Care Operations,Supplies and Services,"5,162.44",Nov-23
Slough Borough Council,2898,Achieve Together t/a The Regard Partnership Ltd,M42E,Adult Social Care Operations,Supplies and Services,"6,786.99",Nov-23
Slough Borough Council,2898,Achieve Together t/a The Regard Partnership Ltd,M42E,Adult Social Care Operations,Supplies and Services,"5,040.04",Nov-23
Slough Borough Council,2898,Achieve Together t/a The Regard Partnership Ltd,M42E,Adult Social Care Operations,Supplies and Services,"6,347.57",Nov-23
Slough Borough Council,2898,Achieve Together t/a The Regard Partnership Ltd,M44D,Adult Social Care Operations,Supplies and Services,"4,684.71",Nov-23
Slough Borough Council,2898,Achieve Together t/a The Regard Partnership Ltd,M44E,Adult Social Care Operations,Supplies and Services,"5,630.79",Nov-23
Slough Borough Council,805529,Action First Recrutiment Ltd,A02A,People,Supplies and Services,930.00,Nov-23
Slough Borough Council,807832,Adaptec Mobility Ltd,P006,Capital,Capital Charges,"1,478.75",Nov-23
Slough Borough Council,807832,Adaptec Mobility Ltd,P006,Capital,Capital Charges,"8,841.75",Nov-23
Slough Borough Council,807832,Adaptec Mobility Ltd,P006,Capital,Capital Charges,"8,550.00",Nov-23
Slough Borough Council,807832,Adaptec Mobility Ltd,P006,Capital,Capital Charges,"12,904.25",Nov-23
Slough Borough Council,2135,Adventure Learning Childcare Limited,F909,Children & Families,Supplies and Services,710.49,Nov-23
Slough Borough Council,2135,Adventure Learning Childcare Limited,F909,Children & Families,Supplies and Services,"12,339.77",Nov-23
Slough Borough Council,805178,AFM Transport Limited,D320,Place Operations,Premises,"1,000.56",Nov-23
Slough Borough Council,805178,AFM Transport Limited,P243,Capital,Supplies and Services,"1,200.00",Nov-23
Slough Borough Council,2301,Aik Saath,F382,Children & Families,Supplies and Services,760.32,Nov-23
Slough Borough Council,2301,Aik Saath,F382,Children & Families,Supplies and Services,"15,338.23",Nov-23
Slough Borough Council,806268,Allied Publicity Services (Manchester) Limited,A120,Customer,Supplies and Services,614.34,Nov-23
Slough Borough Council,2197,Altwood Housing Ltd,H205,Housing (People) Services,Supplies and Services,"1,798.00",Nov-23
Slough Borough Council,2197,Altwood Housing Ltd,H205,Housing (People) Services,Supplies and Services,"1,426.00",Nov-23
Slough Borough Council,2197,Altwood Housing Ltd,H205,Housing (People) Services,Supplies and Services,792.00,Nov-23
Slough Borough Council,2197,Altwood Housing Ltd,H205,Housing (People) Services,Supplies and Services,"1,116.00",Nov-23
Slough Borough Council,2197,Altwood Housing Ltd,H205,Housing (People) Services,Supplies and Services,828.00,Nov-23
Slough Borough Council,2197,Altwood Housing Ltd,H205,Housing (People) Services,Supplies and Services,930.00,Nov-23
Slough Borough Council,2197,Altwood Housing Ltd,H205,Housing (People) Services,Supplies and Services,"1,116.00",Nov-23
Slough Borough Council,86,Altwood Properties Ltd,H205,Housing (People) Services,Premises,"47,146.91",Nov-23
Slough Borough Council,86,Altwood Properties Ltd,H205,Housing (People) Services,Premises,"48,320.78",Nov-23
Slough Borough Council,807515,Always Growing Together Community Interest Company Limited,F909,Children & Families,Supplies and Services,557.14,Nov-23
Slough Borough Council,807515,Always Growing Together Community Interest Company Limited,F909,Children & Families,Supplies and Services,"9,357.37",Nov-23
Slough Borough Council,807515,Always Growing Together Community Interest Company Limited,F909,Children & Families,Supplies and Services,567.00,Nov-23
Slough Borough Council,808191,Ambrose Adrian Healthcare Ltd,M44E,Adult Social Care Operations,Supplies and Services,"3,800.00",Nov-23
Slough Borough Council,808562,Andy Clements,F253,Children & Families,Agency Staff,"2,349.67",Nov-23
Slough Borough Council,808368,Anthony Toby Homes Trust,M26E,Adult Social Care Operations,Supplies and Services,"5,911.58",Nov-23
Slough Borough Council,808368,Anthony Toby Homes Trust,M26E,Adult Social Care Operations,Supplies and Services,"6,108.64",Nov-23
Slough Borough Council,807893,Antz Kidz Activity Centre,F382,Children & Families,Supplies and Services,"1,460.25",Nov-23
Slough Borough Council,804702,Apna Virsa,C424,Community,Supplies and Services,"2,880.00",Nov-23
Slough Borough Council,3137,Applegarth Care Home Ltd,M28C,Adult Social Care Operations,Supplies and Services,"2,064.29",Nov-23
Slough Borough Council,3137,Applegarth Care Home Ltd,M28C,Adult Social Care Operations,Supplies and Services,"3,400.00",Nov-23
Slough Borough Council,3137,Applegarth Care Home Ltd,M28C,Adult Social Care Operations,Supplies and Services,971.44,Nov-23
Slough Borough Council,3137,Applegarth Care Home Ltd,M29C,Adult Social Care Operations,Supplies and Services,"3,400.00",Nov-23
Slough Borough Council,3137,Applegarth Care Home Ltd,M29C,Adult Social Care Operations,Supplies and Services,678.55,Nov-23
Slough Borough Council,808415,APTUS EA LTD,H205,Housing (People) Services,Supplies and Services,"241,373.00",Nov-23
Slough Borough Council,3350,Arbour Vale School,E610,Children & Families,Supplies and Services,"461,517.29",Nov-23
Slough Borough Council,2073,Arc Preschool,F909,Children & Families,Supplies and Services,702.45,Nov-23
Slough Borough Council,2073,Arc Preschool,F909,Children & Families,Supplies and Services,"7,750.19",Nov-23
Slough Borough Council,2073,Arc Preschool,F909,Children & Families,Supplies and Services,"1,417.50",Nov-23
Slough Borough Council,831,Argos Business Solutions Ltd,H055,Finance & Commercial,Supplies and Services,"1,621.90",Nov-23
Slough Borough Council,831,Argos Business Solutions Ltd,H055,Finance & Commercial,Supplies and Services,"2,371.60",Nov-23
Slough Borough Council,831,Argos Business Solutions Ltd,H055,Finance & Commercial,Supplies and Services,"2,185.40",Nov-23
Slough Borough Council,2221,Arjohuntleigh Uk,A08R,Adult Social Care Operations,Supplies and Services,"2,550.00",Nov-23
Slough Borough Council,1637,Arlingclose Ltd,B015,Finance & Commercial,Supplies and Services,"8,108.37",Nov-23
Slough Borough Council,1637,Arlingclose Ltd,B015,Finance & Commercial,Supplies and Services,"8,108.37",Nov-23
Slough Borough Council,804353,Arts Class,F382,Children & Families,Supplies and Services,"1,306.80",Nov-23
Slough Borough Council,1985,Ascentis,F210,Community,Supplies and Services,"1,053.00",Nov-23
Slough Borough Council,809029,ASH TEIKO,F253,Children & Families,Agency Staff,800.00,Nov-23
Slough Borough Council,420,Ashburn Estate Agents,H205,Housing (People) Services,Premises,"107,944.00",Nov-23
Slough Borough Council,420,Ashburn Estate Agents,H205,Housing (People) Services,Premises,"104,699.00",Nov-23
Slough Borough Council,3666,Assisted Living South West,M26E,Adult Social Care Operations,Supplies and Services,"6,778.96",Nov-23
Slough Borough Council,803499,Association of Directors of Public Health,A01P,Public Health,Supplies and Services,"4,250.00",Nov-23
Slough Borough Council,804324,Astoria Healthcare,M27F,Adult Social Care Operations,Supplies and Services,"4,275.00",Nov-23
Slough Borough Council,570,Atkins Limited,P243,Capital,Capital Charges,684.00,Nov-23
Slough Borough Council,3370,Baylis Court School,E610,Children & Families,Supplies and Services,"4,791.67",Nov-23
Slough Borough Council,1681,BCQ Solutions Ltd,B246,Business Services,Supplies and Services,684.00,Nov-23
Slough Borough Council,1681,BCQ Solutions Ltd,D320,Place Operations,Supplies and Services,600.00,Nov-23
Slough Borough Council,3208,Be Happy Pre School,F909,Children & Families,Supplies and Services,"1,860.95",Nov-23
Slough Borough Council,3208,Be Happy Pre School,F909,Children & Families,Supplies and Services,690.21,Nov-23
Slough Borough Council,3208,Be Happy Pre School,F909,Children & Families,Supplies and Services,"16,074.49",Nov-23
Slough Borough Council,3208,Be Happy Pre School,F909,Children & Families,Supplies and Services,"7,754.53",Nov-23
Slough Borough Council,3208,Be Happy Pre School,F909,Children & Families,Supplies and Services,"3,118.50",Nov-23
Slough Borough Council,3208,Be Happy Pre School,F909,Children & Families,Supplies and Services,850.50,Nov-23
Slough Borough Council,609,Beechwood Secondary School,E610,Children & Families,Supplies and Services,"3,768.26",Nov-23
Slough Borough Council,804588,BEN Motor & Allied Trades Bev.Fnd,M15D,Adult Social Care Operations,Supplies and Services,"6,400.00",Nov-23
Slough Borough Council,804588,BEN Motor & Allied Trades Bev.Fnd,M27C,Adult Social Care Operations,Supplies and Services,"5,600.00",Nov-23
Slough Borough Council,808116,BeSpoke Cycling Instruction Ltd,D500,Place Strategy & Infrastructure,Supplies and Services,"1,080.00",Nov-23
Slough Borough Council,2308,Bespoke Supportive Tenancies Ltd,A04L,Adult Social Care Operations,Supplies and Services,"1,975.43",Nov-23
Slough Borough Council,808148,BEST CHOICE CARE LTD,M41D,Adult Social Care Operations,Supplies and Services,603.75,Nov-23
Slough Borough Council,808148,BEST CHOICE CARE LTD,M44C,Adult Social Care Operations,Supplies and Services,857.64,Nov-23
Slough Borough Council,808148,BEST CHOICE CARE LTD,M44C,Adult Social Care Operations,Supplies and Services,612.64,Nov-23
Slough Borough Council,808148,BEST CHOICE CARE LTD,M44C,Adult Social Care Operations,Supplies and Services,726.25,Nov-23
Slough Borough Council,808148,BEST CHOICE CARE LTD,M44C,Adult Social Care Operations,Supplies and Services,857.64,Nov-23
Slough Borough Council,808148,BEST CHOICE CARE LTD,M44C,Adult Social Care Operations,Supplies and Services,857.64,Nov-23
Slough Borough Council,808148,BEST CHOICE CARE LTD,M44C,Adult Social Care Operations,Supplies and Services,612.64,Nov-23
Slough Borough Council,808148,BEST CHOICE CARE LTD,M44C,Adult Social Care Operations,Supplies and Services,980.00,Nov-23
Slough Borough Council,808148,BEST CHOICE CARE LTD,M44C,Adult Social Care Operations,Supplies and Services,"1,225.00",Nov-23
Slough Borough Council,808148,BEST CHOICE CARE LTD,M44C,Adult Social Care Operations,Supplies and Services,700.04,Nov-23
Slough Borough Council,808148,BEST CHOICE CARE LTD,M44C,Adult Social Care Operations,Supplies and Services,"1,225.28",Nov-23
Slough Borough Council,808148,BEST CHOICE CARE LTD,M44C,Adult Social Care Operations,Supplies and Services,"1,470.28",Nov-23
Slough Borough Council,808148,BEST CHOICE CARE LTD,M44C,Adult Social Care Operations,Supplies and Services,"2,205.28",Nov-23
Slough Borough Council,808148,BEST CHOICE CARE LTD,M44C,Adult Social Care Operations,Supplies and Services,"1,067.64",Nov-23
Slough Borough Council,808148,BEST CHOICE CARE LTD,M44C,Adult Social Care Operations,Supplies and Services,"2,327.78",Nov-23
Slough Borough Council,808148,BEST CHOICE CARE LTD,M44C,Adult Social Care Operations,Supplies and Services,590.76,Nov-23
Slough Borough Council,808148,BEST CHOICE CARE LTD,M44C,Adult Social Care Operations,Supplies and Services,"1,338.95",Nov-23
Slough Borough Council,808148,BEST CHOICE CARE LTD,M44C,Adult Social Care Operations,Supplies and Services,"2,205.28",Nov-23
Slough Borough Council,808148,BEST CHOICE CARE LTD,M44C,Adult Social Care Operations,Supplies and Services,507.64,Nov-23
Slough Borough Council,808148,BEST CHOICE CARE LTD,M44D,Adult Social Care Operations,Supplies and Services,595.00,Nov-23
Slough Borough Council,808148,BEST CHOICE CARE LTD,M44D,Adult Social Care Operations,Supplies and Services,"1,619.02",Nov-23
Slough Borough Council,808148,BEST CHOICE CARE LTD,M44D,Adult Social Care Operations,Supplies and Services,"2,485.00",Nov-23
Slough Borough Council,808148,BEST CHOICE CARE LTD,M44F,Adult Social Care Operations,Supplies and Services,"1,102.64",Nov-23
Slough Borough Council,808148,BEST CHOICE CARE LTD,M45C,Adult Social Care Operations,Supplies and Services,840.14,Nov-23
Slough Borough Council,808148,BEST CHOICE CARE LTD,M45C,Adult Social Care Operations,Supplies and Services,555.74,Nov-23
Slough Borough Council,808148,BEST CHOICE CARE LTD,M45C,Adult Social Care Operations,Supplies and Services,905.63,Nov-23
Slough Borough Council,808148,BEST CHOICE CARE LTD,M48C,Adult Social Care Operations,Supplies and Services,"2,660.56",Nov-23
Slough Borough Council,808148,BEST CHOICE CARE LTD,M48C,Adult Social Care Operations,Supplies and Services,630.00,Nov-23
Slough Borough Council,806987,Better Life Care Ltd,M44E,Adult Social Care Operations,Supplies and Services,"4,400.00",Nov-23
Slough Borough Council,1736,Bevan Brittan Llp,P242,Capital,Capital Charges,"1,617.00",Nov-23
Slough Borough Council,1736,Bevan Brittan Llp,P242,Capital,Capital Charges,567.00,Nov-23
Slough Borough Council,1736,Bevan Brittan Llp,P242,Capital,Capital Charges,"5,166.00",Nov-23
Slough Borough Council,808755,BHANDAL INVESTMENTS LTD,H205,Housing (People) Services,Supplies and Services,"1,650.00",Nov-23
Slough Borough Council,1224,Big Yellow Self Storage,F253,Children & Families,Premises,644.00,Nov-23
Slough Borough Council,1224,Big Yellow Self Storage,F253,Children & Families,Premises,644.00,Nov-23
Slough Borough Council,1224,Big Yellow Self Storage,J606,Place Management,Premises,"2,464.80",Nov-23
Slough Borough Council,1224,Big Yellow Self Storage,D303,Place Regulation,Supplies and Services,"5,149.95",Nov-23
Slough Borough Council,1224,Big Yellow Self Storage,D303,Place Regulation,Supplies and Services,"5,149.95",Nov-23
Slough Borough Council,3611,Birch Assist Ltd T/A Bluebird Care (South Bucks & Slough),M44D,Adult Social Care Operations,Supplies and Services,"2,982.00",Nov-23
Slough Borough Council,803828,Blue Willow Day Nursery Ltd,F909,Children & Families,Supplies and Services,"2,002.96",Nov-23
Slough Borough Council,803828,Blue Willow Day Nursery Ltd,F909,Children & Families,Supplies and Services,"23,486.65",Nov-23
Slough Borough Council,803828,Blue Willow Day Nursery Ltd,F909,Children & Families,Supplies and Services,"1,544.40",Nov-23
Slough Borough Council,807297,BNP Paribas Real Estate Advisory & Property Management UK Limited,B079,Place Strategy & Infrastructure,External Receipts,778.32,Nov-23
Slough Borough Council,807297,BNP Paribas Real Estate Advisory & Property Management UK Limited,B079,Place Strategy & Infrastructure,External Receipts,"2,017.02",Nov-23
Slough Borough Council,807297,BNP Paribas Real Estate Advisory & Property Management UK Limited,B079,Place Strategy & Infrastructure,External Receipts,800.37,Nov-23
Slough Borough Council,807297,BNP Paribas Real Estate Advisory & Property Management UK Limited,B079,Place Strategy & Infrastructure,External Receipts,800.37,Nov-23
Slough Borough Council,807297,BNP Paribas Real Estate Advisory & Property Management UK Limited,B079,Place Strategy & Infrastructure,External Receipts,"3,983.65",Nov-23
Slough Borough Council,807297,BNP Paribas Real Estate Advisory & Property Management UK Limited,B079,Place Strategy & Infrastructure,External Receipts,613.97,Nov-23
Slough Borough Council,807297,BNP Paribas Real Estate Advisory & Property Management UK Limited,B079,Place Strategy & Infrastructure,External Receipts,"1,784.40",Nov-23
Slough Borough Council,807297,BNP Paribas Real Estate Advisory & Property Management UK Limited,B079,Place Strategy & Infrastructure,External Receipts,"5,169.17",Nov-23
Slough Borough Council,807297,BNP Paribas Real Estate Advisory & Property Management UK Limited,B079,Place Strategy & Infrastructure,External Receipts,613.97,Nov-23
Slough Borough Council,807297,BNP Paribas Real Estate Advisory & Property Management UK Limited,B079,Place Strategy & Infrastructure,External Receipts,778.32,Nov-23
Slough Borough Council,807297,BNP Paribas Real Estate Advisory & Property Management UK Limited,B079,Place Strategy & Infrastructure,External Receipts,778.32,Nov-23
Slough Borough Council,807297,BNP Paribas Real Estate Advisory & Property Management UK Limited,B079,Place Strategy & Infrastructure,External Receipts,613.97,Nov-23
Slough Borough Council,807297,BNP Paribas Real Estate Advisory & Property Management UK Limited,B079,Place Strategy & Infrastructure,External Receipts,995.38,Nov-23
Slough Borough Council,807297,BNP Paribas Real Estate Advisory & Property Management UK Limited,B079,Place Strategy & Infrastructure,External Receipts,"1,609.35",Nov-23
Slough Borough Council,807297,BNP Paribas Real Estate Advisory & Property Management UK Limited,B079,Place Strategy & Infrastructure,External Receipts,"1,609.35",Nov-23
Slough Borough Council,807297,BNP Paribas Real Estate Advisory & Property Management UK Limited,B079,Place Strategy & Infrastructure,External Receipts,778.32,Nov-23
Slough Borough Council,807297,BNP Paribas Real Estate Advisory & Property Management UK Limited,B079,Place Strategy & Infrastructure,External Receipts,778.32,Nov-23
Slough Borough Council,807297,BNP Paribas Real Estate Advisory & Property Management UK Limited,B079,Place Strategy & Infrastructure,External Receipts,"6,454.64",Nov-23
Slough Borough Council,807297,BNP Paribas Real Estate Advisory & Property Management UK Limited,B079,Place Strategy & Infrastructure,External Receipts,"2,518.60",Nov-23
Slough Borough Council,807297,BNP Paribas Real Estate Advisory & Property Management UK Limited,B079,Place Strategy & Infrastructure,External Receipts,"5,960.00",Nov-23
Slough Borough Council,807297,BNP Paribas Real Estate Advisory & Property Management UK Limited,B079,Place Strategy & Infrastructure,External Receipts,"5,303.93",Nov-23
Slough Borough Council,805160,Bouygues E&S FM UK Limited,B060,Business Services,Premises,"5,186.96",Nov-23
Slough Borough Council,805160,Bouygues E&S FM UK Limited,B060,Business Services,Premises,"5,186.96",Nov-23
Slough Borough Council,2856,Brain Injury Rehabilitation Trust,M26E,Adult Social Care Operations,Supplies and Services,"5,937.65",Nov-23
Slough Borough Council,2856,Brain Injury Rehabilitation Trust,M26E,Adult Social Care Operations,Supplies and Services,"5,746.11",Nov-23
Slough Borough Council,2856,Brain Injury Rehabilitation Trust,M27C,Adult Social Care Operations,Supplies and Services,"7,481.67",Nov-23
Slough Borough Council,2856,Brain Injury Rehabilitation Trust,M27C,Adult Social Care Operations,Supplies and Services,"7,240.33",Nov-23
Slough Borough Council,805817,Bright World Nurseries,F909,Children & Families,Supplies and Services,"1,562.59",Nov-23
Slough Borough Council,805817,Bright World Nurseries,F909,Children & Families,Supplies and Services,"9,463.88",Nov-23
Slough Borough Council,805817,Bright World Nurseries,F909,Children & Families,Supplies and Services,567.00,Nov-23
Slough Borough Council,3409,British Gas,J015,Place Management,Premises,"1,967.97",Nov-23
Slough Borough Council,504,Britwell Baptist Pre School,F909,Children & Families,Supplies and Services,"1,107.39",Nov-23
Slough Borough Council,504,Britwell Baptist Pre School,F909,Children & Families,Supplies and Services,"3,392.11",Nov-23
Slough Borough Council,504,Britwell Baptist Pre School,F909,Children & Families,Supplies and Services,"1,134.00",Nov-23
Slough Borough Council,2852,Britwell Youth & Community Project,F382,Children & Families,Supplies and Services,"12,159.48",Nov-23
Slough Borough Council,803873,Buckinghamshire County Council,B203,Finance & Commercial,Supplies and Services,"2,300.00",Nov-23
Slough Borough Council,803873,Buckinghamshire County Council,F551,Children & Families,Supplies and Services,"75,817.00",Nov-23
Slough Borough Council,803873,Buckinghamshire County Council,F551,Children & Families,Supplies and Services,"-10,270.00",Nov-23
Slough Borough Council,803873,Buckinghamshire County Council,F552,Children & Families,Supplies and Services,"12,321.50",Nov-23
Slough Borough Council,805404,Building Futures Together,F210,Community,TP-Other Bodies,"4,350.00",Nov-23
Slough Borough Council,741,Bunnies Pre-School,F909,Children & Families,Supplies and Services,"6,624.22",Nov-23
Slough Borough Council,741,Bunnies Pre-School,F909,Children & Families,Supplies and Services,"1,360.80",Nov-23
Slough Borough Council,803553,BUPA CARE HOME (CFH CARE),M25D,Adult Social Care Operations,Supplies and Services,"3,476.10",Nov-23
Slough Borough Council,803553,BUPA CARE HOME (CFH CARE),M25D,Adult Social Care Operations,Supplies and Services,"3,428.57",Nov-23
Slough Borough Council,2675,Burnham Lodge Ltd,A02E,Adult Social Care Operations,Supplies and Services,"-3,257.14",Nov-23
Slough Borough Council,2675,Burnham Lodge Ltd,A02E,Adult Social Care Operations,Supplies and Services,"5,314.33",Nov-23
Slough Borough Council,2675,Burnham Lodge Ltd,A02E,Adult Social Care Operations,Supplies and Services,"5,314.33",Nov-23
Slough Borough Council,2675,Burnham Lodge Ltd,A02E,Adult Social Care Operations,Supplies and Services,"1,200.04",Nov-23
Slough Borough Council,2675,Burnham Lodge Ltd,A02E,Adult Social Care Operations,Supplies and Services,"5,314.33",Nov-23
Slough Borough Council,2675,Burnham Lodge Ltd,M25D,Adult Social Care Operations,Supplies and Services,"5,142.90",Nov-23
Slough Borough Council,2675,Burnham Lodge Ltd,M28C,Adult Social Care Operations,Supplies and Services,"5,314.33",Nov-23
Slough Borough Council,2675,Burnham Lodge Ltd,M28C,Adult Social Care Operations,Supplies and Services,"5,314.33",Nov-23
Slough Borough Council,2675,Burnham Lodge Ltd,M28C,Adult Social Care Operations,Supplies and Services,"4,114.29",Nov-23
Slough Borough Council,2675,Burnham Lodge Ltd,M28C,Adult Social Care Operations,Supplies and Services,"3,257.14",Nov-23
Slough Borough Council,629,C.H.O.I.C.E Limited,M26E,Adult Social Care Operations,Supplies and Services,"8,964.01",Nov-23
Slough Borough Council,629,C.H.O.I.C.E Limited,M26E,Adult Social Care Operations,Supplies and Services,"12,502.24",Nov-23
Slough Borough Council,629,C.H.O.I.C.E Limited,M26E,Adult Social Care Operations,Supplies and Services,"11,346.73",Nov-23
Slough Borough Council,629,C.H.O.I.C.E Limited,M26E,Adult Social Care Operations,Supplies and Services,"11,270.32",Nov-23
Slough Borough Council,629,C.H.O.I.C.E Limited,M26E,Adult Social Care Operations,Supplies and Services,"6,117.05",Nov-23
Slough Borough Council,629,C.H.O.I.C.E Limited,M26E,Adult Social Care Operations,Supplies and Services,"9,499.59",Nov-23
Slough Borough Council,629,C.H.O.I.C.E Limited,M26E,Adult Social Care Operations,Supplies and Services,"10,725.31",Nov-23
Slough Borough Council,629,C.H.O.I.C.E Limited,M26E,Adult Social Care Operations,Supplies and Services,"7,322.57",Nov-23
Slough Borough Council,629,C.H.O.I.C.E Limited,M26E,Adult Social Care Operations,Supplies and Services,"11,737.59",Nov-23
Slough Borough Council,629,C.H.O.I.C.E Limited,M42E,Adult Social Care Operations,Supplies and Services,"6,609.11",Nov-23
Slough Borough Council,629,C.H.O.I.C.E Limited,M42E,Adult Social Care Operations,Supplies and Services,"6,017.63",Nov-23
Slough Borough Council,629,C.H.O.I.C.E Limited,M42E,Adult Social Care Operations,Supplies and Services,"6,475.32",Nov-23
Slough Borough Council,629,C.H.O.I.C.E Limited,M42E,Adult Social Care Operations,Supplies and Services,"6,514.07",Nov-23
Slough Borough Council,629,C.H.O.I.C.E Limited,M42E,Adult Social Care Operations,Supplies and Services,"1,173.57",Nov-23
Slough Borough Council,629,C.H.O.I.C.E Limited,M42E,Adult Social Care Operations,Supplies and Services,"2,912.05",Nov-23
Slough Borough Council,629,C.H.O.I.C.E Limited,M44F,Adult Social Care Operations,Supplies and Services,"2,736.81",Nov-23
Slough Borough Council,629,C.H.O.I.C.E Limited,M26E,Adult Social Care Operations,External Receipts,-506.14,Nov-23
Slough Borough Council,809199,Callery ltd,A04A,People Adults,Supplies and Services,"3,571.68",Nov-23
Slough Borough Council,737,Capita Business Services Ltd,H020,Finance & Commercial,Supplies and Services,"1,400.00",Nov-23
Slough Borough Council,808972,Cardea Healthcare,M44E,Adult Social Care Operations,Supplies and Services,546.04,Nov-23
Slough Borough Council,808972,Cardea Healthcare,M44E,Adult Social Care Operations,Supplies and Services,827.58,Nov-23
Slough Borough Council,808972,Cardea Healthcare,M44E,Adult Social Care Operations,Supplies and Services,827.58,Nov-23
Slough Borough Council,808972,Cardea Healthcare,M44E,Adult Social Care Operations,Supplies and Services,872.58,Nov-23
Slough Borough Council,808972,Cardea Healthcare,M44E,Adult Social Care Operations,Supplies and Services,827.58,Nov-23
Slough Borough Council,805717,Care Management Group Ltd,M26E,Adult Social Care Operations,Supplies and Services,"12,972.66",Nov-23
Slough Borough Council,805621,Care Staff Services,A07R,Adult Social Care Operations,Supplies and Services,852.50,Nov-23
Slough Borough Council,805621,Care Staff Services,A07R,Adult Social Care Operations,Supplies and Services,682.50,Nov-23
Slough Borough Council,805621,Care Staff Services,A07R,Adult Social Care Operations,Supplies and Services,962.50,Nov-23
Slough Borough Council,805621,Care Staff Services,A07R,Adult Social Care Operations,Supplies and Services,"2,205.00",Nov-23
Slough Borough Council,805621,Care Staff Services,A07R,Adult Social Care Operations,Supplies and Services,503.13,Nov-23
Slough Borough Council,805621,Care Staff Services,A07R,Adult Social Care Operations,Supplies and Services,826.88,Nov-23
Slough Borough Council,805621,Care Staff Services,A07R,Adult Social Care Operations,Supplies and Services,"2,187.50",Nov-23
Slough Borough Council,805621,Care Staff Services,A07R,Adult Social Care Operations,Supplies and Services,"1,968.75",Nov-23
Slough Borough Council,805621,Care Staff Services,A07R,Adult Social Care Operations,Supplies and Services,643.13,Nov-23
Slough Borough Council,805621,Care Staff Services,A07R,Adult Social Care Operations,Supplies and Services,866.25,Nov-23
Slough Borough Council,805621,Care Staff Services,A07R,Adult Social Care Operations,Supplies and Services,787.50,Nov-23
Slough Borough Council,805621,Care Staff Services,A07R,Adult Social Care Operations,Supplies and Services,"1,126.25",Nov-23
Slough Borough Council,805621,Care Staff Services,A07R,Adult Social Care Operations,Supplies and Services,"1,662.50",Nov-23
Slough Borough Council,805621,Care Staff Services,M44C,Adult Social Care Operations,Supplies and Services,831.25,Nov-23
Slough Borough Council,805621,Care Staff Services,M44C,Adult Social Care Operations,Supplies and Services,"2,205.00",Nov-23
Slough Borough Council,805621,Care Staff Services,M44C,Adult Social Care Operations,Supplies and Services,"2,520.00",Nov-23
Slough Borough Council,805621,Care Staff Services,M44C,Adult Social Care Operations,Supplies and Services,735.00,Nov-23
Slough Borough Council,805621,Care Staff Services,M44C,Adult Social Care Operations,Supplies and Services,848.75,Nov-23
Slough Borough Council,805621,Care Staff Services,M44C,Adult Social Care Operations,Supplies and Services,682.50,Nov-23
Slough Borough Council,805621,Care Staff Services,M44C,Adult Social Care Operations,Supplies and Services,"1,531.25",Nov-23
Slough Borough Council,805621,Care Staff Services,M44C,Adult Social Care Operations,Supplies and Services,"1,715.00",Nov-23
Slough Borough Council,805621,Care Staff Services,M44C,Adult Social Care Operations,Supplies and Services,525.00,Nov-23
Slough Borough Council,805621,Care Staff Services,M44C,Adult Social Care Operations,Supplies and Services,612.50,Nov-23
Slough Borough Council,805621,Care Staff Services,M44C,Adult Social Care Operations,Supplies and Services,857.50,Nov-23
Slough Borough Council,805621,Care Staff Services,M44C,Adult Social Care Operations,Supplies and Services,906.50,Nov-23
Slough Borough Council,805621,Care Staff Services,M44C,Adult Social Care Operations,Supplies and Services,906.50,Nov-23
Slough Borough Council,805621,Care Staff Services,M44C,Adult Social Care Operations,Supplies and Services,"1,120.00",Nov-23
Slough Borough Council,805621,Care Staff Services,M44C,Adult Social Care Operations,Supplies and Services,"1,102.50",Nov-23
Slough Borough Council,805621,Care Staff Services,M44C,Adult Social Care Operations,Supplies and Services,857.50,Nov-23
Slough Borough Council,805621,Care Staff Services,M44C,Adult Social Care Operations,Supplies and Services,752.50,Nov-23
Slough Borough Council,805621,Care Staff Services,M44C,Adult Social Care Operations,Supplies and Services,857.50,Nov-23
Slough Borough Council,805621,Care Staff Services,M44C,Adult Social Care Operations,Supplies and Services,"1,478.75",Nov-23
Slough Borough Council,805621,Care Staff Services,M44C,Adult Social Care Operations,Supplies and Services,"2,450.00",Nov-23
Slough Borough Council,805621,Care Staff Services,M44C,Adult Social Care Operations,Supplies and Services,"2,450.00",Nov-23
Slough Borough Council,805621,Care Staff Services,M44C,Adult Social Care Operations,Supplies and Services,857.50,Nov-23
Slough Borough Council,805621,Care Staff Services,M44C,Adult Social Care Operations,Supplies and Services,"2,030.00",Nov-23
Slough Borough Council,805621,Care Staff Services,M44C,Adult Social Care Operations,Supplies and Services,"2,205.00",Nov-23
Slough Borough Council,805621,Care Staff Services,M44C,Adult Social Care Operations,Supplies and Services,980.00,Nov-23
Slough Borough Council,805621,Care Staff Services,M44C,Adult Social Care Operations,Supplies and Services,980.00,Nov-23
Slough Borough Council,805621,Care Staff Services,M44C,Adult Social Care Operations,Supplies and Services,875.00,Nov-23
Slough Borough Council,805621,Care Staff Services,M44C,Adult Social Care Operations,Supplies and Services,518.00,Nov-23
Slough Borough Council,805621,Care Staff Services,M44C,Adult Social Care Operations,Supplies and Services,980.00,Nov-23
Slough Borough Council,805621,Care Staff Services,M44C,Adult Social Care Operations,Supplies and Services,501.19,Nov-23
Slough Borough Council,805621,Care Staff Services,M44C,Adult Social Care Operations,Supplies and Services,612.50,Nov-23
Slough Borough Council,805621,Care Staff Services,M44C,Adult Social Care Operations,Supplies and Services,"1,225.00",Nov-23
Slough Borough Council,805621,Care Staff Services,M44C,Adult Social Care Operations,Supplies and Services,"2,331.00",Nov-23
Slough Borough Council,805621,Care Staff Services,M44C,Adult Social Care Operations,Supplies and Services,"1,513.75",Nov-23
Slough Borough Council,805621,Care Staff Services,M44C,Adult Social Care Operations,Supplies and Services,857.50,Nov-23
Slough Borough Council,805621,Care Staff Services,M44C,Adult Social Care Operations,Supplies and Services,868.13,Nov-23
Slough Borough Council,805621,Care Staff Services,M44C,Adult Social Care Operations,Supplies and Services,962.50,Nov-23
Slough Borough Council,805621,Care Staff Services,M44C,Adult Social Care Operations,Supplies and Services,"1,102.50",Nov-23
Slough Borough Council,805621,Care Staff Services,M44C,Adult Social Care Operations,Supplies and Services,"1,102.50",Nov-23
Slough Borough Council,805621,Care Staff Services,M44C,Adult Social Care Operations,Supplies and Services,813.75,Nov-23
Slough Borough Council,805621,Care Staff Services,M44C,Adult Social Care Operations,Supplies and Services,"1,461.88",Nov-23
Slough Borough Council,805621,Care Staff Services,M44C,Adult Social Care Operations,Supplies and Services,"1,813.00",Nov-23
Slough Borough Council,805621,Care Staff Services,M44C,Adult Social Care Operations,Supplies and Services,777.00,Nov-23
Slough Borough Council,805621,Care Staff Services,M44C,Adult Social Care Operations,Supplies and Services,560.00,Nov-23
Slough Borough Council,805621,Care Staff Services,M44C,Adult Social Care Operations,Supplies and Services,"1,813.00",Nov-23
Slough Borough Council,805621,Care Staff Services,M44C,Adult Social Care Operations,Supplies and Services,857.50,Nov-23
Slough Borough Council,805621,Care Staff Services,M44C,Adult Social Care Operations,Supplies and Services,"1,102.50",Nov-23
Slough Borough Council,805621,Care Staff Services,M44D,Adult Social Care Operations,Supplies and Services,"1,610.00",Nov-23
Slough Borough Council,805621,Care Staff Services,M44D,Adult Social Care Operations,Supplies and Services,756.88,Nov-23
Slough Borough Council,805621,Care Staff Services,M44D,Adult Social Care Operations,Supplies and Services,857.50,Nov-23
Slough Borough Council,805621,Care Staff Services,M44D,Adult Social Care Operations,Supplies and Services,612.50,Nov-23
Slough Borough Council,805621,Care Staff Services,M44D,Adult Social Care Operations,Supplies and Services,980.00,Nov-23
Slough Borough Council,805621,Care Staff Services,M44D,Adult Social Care Operations,Supplies and Services,612.50,Nov-23
Slough Borough Council,805621,Care Staff Services,M44D,Adult Social Care Operations,Supplies and Services,"1,365.00",Nov-23
Slough Borough Council,805621,Care Staff Services,M44D,Adult Social Care Operations,Supplies and Services,"2,205.00",Nov-23
Slough Borough Council,805621,Care Staff Services,M44D,Adult Social Care Operations,Supplies and Services,"2,205.00",Nov-23
Slough Borough Council,805621,Care Staff Services,M44D,Adult Social Care Operations,Supplies and Services,"1,758.75",Nov-23
Slough Borough Council,805621,Care Staff Services,M44D,Adult Social Care Operations,Supplies and Services,"1,225.00",Nov-23
Slough Borough Council,805621,Care Staff Services,M44D,Adult Social Care Operations,Supplies and Services,832.50,Nov-23
Slough Borough Council,805621,Care Staff Services,M44D,Adult Social Care Operations,Supplies and Services,560.63,Nov-23
Slough Borough Council,805621,Care Staff Services,M44E,Adult Social Care Operations,Supplies and Services,735.00,Nov-23
Slough Borough Council,805621,Care Staff Services,M44E,Adult Social Care Operations,Supplies and Services,735.00,Nov-23
Slough Borough Council,805621,Care Staff Services,M44F,Adult Social Care Operations,Supplies and Services,"1,120.00",Nov-23
Slough Borough Council,805621,Care Staff Services,M44F,Adult Social Care Operations,Supplies and Services,999.00,Nov-23
Slough Borough Council,805621,Care Staff Services,M44F,Adult Social Care Operations,Supplies and Services,"1,480.00",Nov-23
Slough Borough Council,805621,Care Staff Services,M44F,Adult Social Care Operations,Supplies and Services,"2,590.00",Nov-23
Slough Borough Council,805621,Care Staff Services,M44F,Adult Social Care Operations,Supplies and Services,660.63,Nov-23
Slough Borough Council,805621,Care Staff Services,M44F,Adult Social Care Operations,Supplies and Services,740.00,Nov-23
Slough Borough Council,805621,Care Staff Services,M44F,Adult Social Care Operations,Supplies and Services,666.00,Nov-23
Slough Borough Council,805621,Care Staff Services,M44F,Adult Social Care Operations,Supplies and Services,"1,382.50",Nov-23
Slough Borough Council,805621,Care Staff Services,M44F,Adult Social Care Operations,Supplies and Services,560.00,Nov-23
Slough Borough Council,805621,Care Staff Services,M45C,Adult Social Care Operations,Supplies and Services,"1,085.00",Nov-23
Slough Borough Council,805621,Care Staff Services,M45C,Adult Social Care Operations,Supplies and Services,"1,960.00",Nov-23
Slough Borough Council,805621,Care Staff Services,M45C,Adult Social Care Operations,Supplies and Services,551.25,Nov-23
Slough Borough Council,805621,Care Staff Services,M45C,Adult Social Care Operations,Supplies and Services,901.25,Nov-23
Slough Borough Council,805621,Care Staff Services,M45C,Adult Social Care Operations,Supplies and Services,"1,093.75",Nov-23
Slough Borough Council,805621,Care Staff Services,M45C,Adult Social Care Operations,Supplies and Services,612.50,Nov-23
Slough Borough Council,805621,Care Staff Services,M45C,Adult Social Care Operations,Supplies and Services,638.75,Nov-23
Slough Borough Council,805621,Care Staff Services,M45C,Adult Social Care Operations,Supplies and Services,"1,382.50",Nov-23
Slough Borough Council,805621,Care Staff Services,M45C,Adult Social Care Operations,Supplies and Services,901.25,Nov-23
Slough Borough Council,805621,Care Staff Services,M45C,Adult Social Care Operations,Supplies and Services,721.87,Nov-23
Slough Borough Council,805621,Care Staff Services,M45C,Adult Social Care Operations,Supplies and Services,805.00,Nov-23
Slough Borough Council,805621,Care Staff Services,M45C,Adult Social Care Operations,Supplies and Services,529.38,Nov-23
Slough Borough Council,805621,Care Staff Services,M45C,Adult Social Care Operations,Supplies and Services,573.13,Nov-23
Slough Borough Council,805621,Care Staff Services,M45C,Adult Social Care Operations,Supplies and Services,735.00,Nov-23
Slough Borough Council,805621,Care Staff Services,M45C,Adult Social Care Operations,Supplies and Services,"1,933.75",Nov-23
Slough Borough Council,805621,Care Staff Services,M45C,Adult Social Care Operations,Supplies and Services,"2,940.00",Nov-23
Slough Borough Council,805621,Care Staff Services,M45C,Adult Social Care Operations,Supplies and Services,"1,006.25",Nov-23
Slough Borough Council,805621,Care Staff Services,M45C,Adult Social Care Operations,Supplies and Services,586.25,Nov-23
Slough Borough Council,805621,Care Staff Services,M45C,Adult Social Care Operations,Supplies and Services,927.50,Nov-23
Slough Borough Council,805621,Care Staff Services,M48C,Adult Social Care Operations,Supplies and Services,-735.00,Nov-23
Slough Borough Council,805621,Care Staff Services,M48C,Adult Social Care Operations,Supplies and Services,953.75,Nov-23
Slough Borough Council,805621,Care Staff Services,M48C,Adult Social Care Operations,Supplies and Services,708.75,Nov-23
Slough Borough Council,805621,Care Staff Services,M48C,Adult Social Care Operations,Supplies and Services,"2,205.00",Nov-23
Slough Borough Council,808149,Care Staff Services Support,M44F,Adult Social Care Operations,Supplies and Services,"5,240.49",Nov-23
Slough Borough Council,808149,Care Staff Services Support,M44F,Adult Social Care Operations,Supplies and Services,"4,673.06",Nov-23
Slough Borough Council,808149,Care Staff Services Support,M44F,Adult Social Care Operations,Supplies and Services,"1,937.66",Nov-23
Slough Borough Council,1162,Care Uk Community Partnership Ltd,A02E,Adult Social Care Operations,Supplies and Services,"48,139.00",Nov-23
Slough Borough Council,1162,Care Uk Community Partnership Ltd,A03E,Adult Social Care Operations,Supplies and Services,"4,218.60",Nov-23
Slough Borough Council,1162,Care Uk Community Partnership Ltd,M15D,Adult Social Care Operations,Supplies and Services,"2,827.20",Nov-23
Slough Borough Council,1162,Care Uk Community Partnership Ltd,M15D,Adult Social Care Operations,Supplies and Services,"2,736.00",Nov-23
Slough Borough Council,1162,Care Uk Community Partnership Ltd,M15D,Adult Social Care Operations,Supplies and Services,"4,090.52",Nov-23
Slough Borough Council,1162,Care Uk Community Partnership Ltd,M15D,Adult Social Care Operations,Supplies and Services,"2,827.20",Nov-23
Slough Borough Council,1162,Care Uk Community Partnership Ltd,M15D,Adult Social Care Operations,Supplies and Services,"4,090.52",Nov-23
Slough Borough Council,1162,Care Uk Community Partnership Ltd,M15D,Adult Social Care Operations,Supplies and Services,"4,090.52",Nov-23
Slough Borough Council,1162,Care Uk Community Partnership Ltd,M15D,Adult Social Care Operations,Supplies and Services,"4,218.60",Nov-23
Slough Borough Council,1162,Care Uk Community Partnership Ltd,M15D,Adult Social Care Operations,Supplies and Services,"4,090.52",Nov-23
Slough Borough Council,1162,Care Uk Community Partnership Ltd,M15F,Adult Social Care Operations,Supplies and Services,"4,090.52",Nov-23
Slough Borough Council,1162,Care Uk Community Partnership Ltd,M15F,Adult Social Care Operations,Supplies and Services,"4,090.52",Nov-23
Slough Borough Council,1162,Care Uk Community Partnership Ltd,M15F,Adult Social Care Operations,Supplies and Services,"4,090.52",Nov-23
Slough Borough Council,1162,Care Uk Community Partnership Ltd,M15F,Adult Social Care Operations,Supplies and Services,"2,931.71",Nov-23
Slough Borough Council,1162,Care Uk Community Partnership Ltd,M17C,Adult Social Care Operations,Supplies and Services,"4,712.36",Nov-23
Slough Borough Council,1162,Care Uk Community Partnership Ltd,M17C,Adult Social Care Operations,Supplies and Services,"4,218.60",Nov-23
Slough Borough Council,1162,Care Uk Community Partnership Ltd,M17C,Adult Social Care Operations,Supplies and Services,"3,969.72",Nov-23
Slough Borough Council,1162,Care Uk Community Partnership Ltd,M17C,Adult Social Care Operations,Supplies and Services,"4,090.52",Nov-23
Slough Borough Council,1162,Care Uk Community Partnership Ltd,M17C,Adult Social Care Operations,Supplies and Services,"4,218.60",Nov-23
Slough Borough Council,1162,Care Uk Community Partnership Ltd,M17C,Adult Social Care Operations,Supplies and Services,"4,218.60",Nov-23
Slough Borough Council,1162,Care Uk Community Partnership Ltd,M18C,Adult Social Care Operations,Supplies and Services,"4,218.60",Nov-23
Slough Borough Council,1162,Care Uk Community Partnership Ltd,M18C,Adult Social Care Operations,Supplies and Services,"4,090.52",Nov-23
Slough Borough Council,1162,Care Uk Community Partnership Ltd,M18C,Adult Social Care Operations,Supplies and Services,"4,090.52",Nov-23
Slough Borough Council,1162,Care Uk Community Partnership Ltd,M18C,Adult Social Care Operations,Supplies and Services,"4,218.60",Nov-23
Slough Borough Council,1162,Care Uk Community Partnership Ltd,M18C,Adult Social Care Operations,Supplies and Services,"4,218.60",Nov-23
Slough Borough Council,1162,Care Uk Community Partnership Ltd,M18C,Adult Social Care Operations,Supplies and Services,"4,090.52",Nov-23
Slough Borough Council,1162,Care Uk Community Partnership Ltd,M18C,Adult Social Care Operations,Supplies and Services,"4,090.52",Nov-23
Slough Borough Council,1162,Care Uk Community Partnership Ltd,M18C,Adult Social Care Operations,Supplies and Services,"4,090.52",Nov-23
Slough Borough Council,1162,Care Uk Community Partnership Ltd,M18C,Adult Social Care Operations,Supplies and Services,"4,090.52",Nov-23
Slough Borough Council,1162,Care Uk Community Partnership Ltd,M18C,Adult Social Care Operations,Supplies and Services,"4,090.52",Nov-23
Slough Borough Council,1162,Care Uk Community Partnership Ltd,M18C,Adult Social Care Operations,Supplies and Services,"4,090.52",Nov-23
Slough Borough Council,1162,Care Uk Community Partnership Ltd,M18C,Adult Social Care Operations,Supplies and Services,"4,090.52",Nov-23
Slough Borough Council,1162,Care Uk Community Partnership Ltd,M18C,Adult Social Care Operations,Supplies and Services,"4,090.52",Nov-23
Slough Borough Council,1162,Care Uk Community Partnership Ltd,M18C,Adult Social Care Operations,Supplies and Services,"4,090.52",Nov-23
Slough Borough Council,1162,Care Uk Community Partnership Ltd,M18C,Adult Social Care Operations,Supplies and Services,"4,090.52",Nov-23
Slough Borough Council,1162,Care Uk Community Partnership Ltd,M18C,Adult Social Care Operations,Supplies and Services,"-24,543.12",Nov-23
Slough Borough Council,1162,Care Uk Community Partnership Ltd,M18C,Adult Social Care Operations,Supplies and Services,"4,218.60",Nov-23
Slough Borough Council,1162,Care Uk Community Partnership Ltd,M18C,Adult Social Care Operations,Supplies and Services,514.29,Nov-23
Slough Borough Council,1162,Care Uk Community Partnership Ltd,M18C,Adult Social Care Operations,Supplies and Services,"2,914.28",Nov-23
Slough Borough Council,1162,Care Uk Community Partnership Ltd,M18C,Adult Social Care Operations,Supplies and Services,"1,885.72",Nov-23
Slough Borough Council,1162,Care Uk Community Partnership Ltd,M18C,Adult Social Care Operations,Supplies and Services,"3,257.14",Nov-23
Slough Borough Council,1162,Care Uk Community Partnership Ltd,M18C,Adult Social Care Operations,Supplies and Services,"1,542.86",Nov-23
Slough Borough Council,1162,Care Uk Community Partnership Ltd,M18C,Adult Social Care Operations,Supplies and Services,"3,771.43",Nov-23
Slough Borough Council,1162,Care Uk Community Partnership Ltd,M18C,Adult Social Care Operations,Supplies and Services,"1,028.57",Nov-23
Slough Borough Council,1162,Care Uk Community Partnership Ltd,M18C,Adult Social Care Operations,Supplies and Services,"4,090.52",Nov-23
Slough Borough Council,1162,Care Uk Community Partnership Ltd,M18C,Adult Social Care Operations,Supplies and Services,"4,090.52",Nov-23
Slough Borough Council,1162,Care Uk Community Partnership Ltd,M18C,Adult Social Care Operations,Supplies and Services,"3,969.72",Nov-23
Slough Borough Council,1162,Care Uk Community Partnership Ltd,M18C,Adult Social Care Operations,Supplies and Services,"4,218.60",Nov-23
Slough Borough Council,1162,Care Uk Community Partnership Ltd,M18C,Adult Social Care Operations,Supplies and Services,"4,090.52",Nov-23
Slough Borough Council,1162,Care Uk Community Partnership Ltd,M18C,Adult Social Care Operations,Supplies and Services,"4,218.60",Nov-23
Slough Borough Council,1162,Care Uk Community Partnership Ltd,M18C,Adult Social Care Operations,Supplies and Services,"4,090.52",Nov-23
Slough Borough Council,1162,Care Uk Community Partnership Ltd,M18C,Adult Social Care Operations,Supplies and Services,"4,800.00",Nov-23
Slough Borough Council,1162,Care Uk Community Partnership Ltd,M18C,Adult Social Care Operations,Supplies and Services,"4,800.00",Nov-23
Slough Borough Council,1162,Care Uk Community Partnership Ltd,M18C,Adult Social Care Operations,Supplies and Services,"4,090.52",Nov-23
Slough Borough Council,1162,Care Uk Community Partnership Ltd,M18C,Adult Social Care Operations,Supplies and Services,"4,090.52",Nov-23
Slough Borough Council,1162,Care Uk Community Partnership Ltd,M18C,Adult Social Care Operations,Supplies and Services,"4,218.60",Nov-23
Slough Borough Council,1162,Care Uk Community Partnership Ltd,M18C,Adult Social Care Operations,Supplies and Services,"4,090.52",Nov-23
Slough Borough Council,1162,Care Uk Community Partnership Ltd,M18C,Adult Social Care Operations,Supplies and Services,"4,090.52",Nov-23
Slough Borough Council,1162,Care Uk Community Partnership Ltd,M18C,Adult Social Care Operations,Supplies and Services,"4,285.72",Nov-23
Slough Borough Council,1162,Care Uk Community Partnership Ltd,M18C,Adult Social Care Operations,Supplies and Services,514.28,Nov-23
Slough Borough Council,1162,Care Uk Community Partnership Ltd,M18C,Adult Social Care Operations,Supplies and Services,"4,628.58",Nov-23
Slough Borough Council,1162,Care Uk Community Partnership Ltd,M18C,Adult Social Care Operations,Supplies and Services,"4,090.52",Nov-23
Slough Borough Council,1162,Care Uk Community Partnership Ltd,M18C,Adult Social Care Operations,Supplies and Services,"4,090.52",Nov-23
Slough Borough Council,1162,Care Uk Community Partnership Ltd,M18C,Adult Social Care Operations,Supplies and Services,"4,090.52",Nov-23
Slough Borough Council,1162,Care Uk Community Partnership Ltd,M18C,Adult Social Care Operations,Supplies and Services,"4,090.52",Nov-23
Slough Borough Council,1162,Care Uk Community Partnership Ltd,M18C,Adult Social Care Operations,Supplies and Services,"4,090.52",Nov-23
Slough Borough Council,1162,Care Uk Community Partnership Ltd,M18C,Adult Social Care Operations,Supplies and Services,"4,090.52",Nov-23
Slough Borough Council,1162,Care Uk Community Partnership Ltd,M18C,Adult Social Care Operations,Supplies and Services,"4,800.00",Nov-23
Slough Borough Council,1162,Care Uk Community Partnership Ltd,M25C,Adult Social Care Operations,Supplies and Services,"28,030.80",Nov-23
Slough Borough Council,1162,Care Uk Community Partnership Ltd,M25C,Adult Social Care Operations,Supplies and Services,"3,703.00",Nov-23
Slough Borough Council,1162,Care Uk Community Partnership Ltd,M25C,Adult Social Care Operations,Supplies and Services,"3,703.00",Nov-23
Slough Borough Council,1162,Care Uk Community Partnership Ltd,M26E,Adult Social Care Operations,Supplies and Services,"4,090.52",Nov-23
Slough Borough Council,1162,Care Uk Community Partnership Ltd,M26E,Adult Social Care Operations,Supplies and Services,"4,090.52",Nov-23
Slough Borough Council,1162,Care Uk Community Partnership Ltd,M26E,Adult Social Care Operations,Supplies and Services,"5,897.16",Nov-23
Slough Borough Council,1162,Care Uk Community Partnership Ltd,M26E,Adult Social Care Operations,Supplies and Services,"2,316.75",Nov-23
Slough Borough Council,1162,Care Uk Community Partnership Ltd,M26E,Adult Social Care Operations,Supplies and Services,"3,580.41",Nov-23
Slough Borough Council,1162,Care Uk Community Partnership Ltd,M26E,Adult Social Care Operations,Supplies and Services,"1,263.68",Nov-23
Slough Borough Council,1162,Care Uk Community Partnership Ltd,M26E,Adult Social Care Operations,Supplies and Services,"4,633.48",Nov-23
Slough Borough Council,1162,Care Uk Community Partnership Ltd,M26E,Adult Social Care Operations,Supplies and Services,"1,895.52",Nov-23
Slough Borough Council,1162,Care Uk Community Partnership Ltd,M26E,Adult Social Care Operations,Supplies and Services,"4,001.64",Nov-23
Slough Borough Council,1162,Care Uk Community Partnership Ltd,M26E,Adult Social Care Operations,Supplies and Services,"5,897.16",Nov-23
Slough Borough Council,1162,Care Uk Community Partnership Ltd,M26E,Adult Social Care Operations,Supplies and Services,"2,948.59",Nov-23
Slough Borough Council,1162,Care Uk Community Partnership Ltd,M27C,Adult Social Care Operations,Supplies and Services,"3,703.00",Nov-23
Slough Borough Council,1162,Care Uk Community Partnership Ltd,M27C,Adult Social Care Operations,Supplies and Services,"3,380.88",Nov-23
Slough Borough Council,1162,Care Uk Community Partnership Ltd,M27C,Adult Social Care Operations,Supplies and Services,"3,380.88",Nov-23
Slough Borough Council,1162,Care Uk Community Partnership Ltd,M27C,Adult Social Care Operations,Supplies and Services,"4,800.00",Nov-23
Slough Borough Council,1162,Care Uk Community Partnership Ltd,M27C,Adult Social Care Operations,Supplies and Services,"3,703.00",Nov-23
Slough Borough Council,1162,Care Uk Community Partnership Ltd,M27C,Adult Social Care Operations,Supplies and Services,"3,703.00",Nov-23
Slough Borough Council,1162,Care Uk Community Partnership Ltd,M27C,Adult Social Care Operations,Supplies and Services,"3,380.88",Nov-23
Slough Borough Council,1162,Care Uk Community Partnership Ltd,M27C,Adult Social Care Operations,Supplies and Services,"23,666.16",Nov-23
Slough Borough Council,1162,Care Uk Community Partnership Ltd,M27C,Adult Social Care Operations,Supplies and Services,"3,380.88",Nov-23
Slough Borough Council,1162,Care Uk Community Partnership Ltd,M27C,Adult Social Care Operations,Supplies and Services,"3,703.00",Nov-23
Slough Borough Council,1162,Care Uk Community Partnership Ltd,M27C,Adult Social Care Operations,Supplies and Services,"3,703.00",Nov-23
Slough Borough Council,1162,Care Uk Community Partnership Ltd,M27C,Adult Social Care Operations,Supplies and Services,"3,380.88",Nov-23
Slough Borough Council,1162,Care Uk Community Partnership Ltd,M27C,Adult Social Care Operations,Supplies and Services,"3,380.88",Nov-23
Slough Borough Council,1162,Care Uk Community Partnership Ltd,M27C,Adult Social Care Operations,Supplies and Services,"3,703.00",Nov-23
Slough Borough Council,1162,Care Uk Community Partnership Ltd,M27C,Adult Social Care Operations,Supplies and Services,"3,703.00",Nov-23
Slough Borough Council,1162,Care Uk Community Partnership Ltd,M27C,Adult Social Care Operations,Supplies and Services,"3,600.00",Nov-23
Slough Borough Council,1162,Care Uk Community Partnership Ltd,M27C,Adult Social Care Operations,Supplies and Services,"3,703.00",Nov-23
Slough Borough Council,1162,Care Uk Community Partnership Ltd,M27C,Adult Social Care Operations,Supplies and Services,"3,703.00",Nov-23
Slough Borough Council,1162,Care Uk Community Partnership Ltd,M27C,Adult Social Care Operations,Supplies and Services,"4,285.71",Nov-23
Slough Borough Council,1162,Care Uk Community Partnership Ltd,M27C,Adult Social Care Operations,Supplies and Services,514.29,Nov-23
Slough Borough Council,1162,Care Uk Community Partnership Ltd,M27C,Adult Social Care Operations,Supplies and Services,"4,628.57",Nov-23
Slough Borough Council,1162,Care Uk Community Partnership Ltd,M27C,Adult Social Care Operations,Supplies and Services,"3,380.88",Nov-23
Slough Borough Council,1162,Care Uk Community Partnership Ltd,M27F,Adult Social Care Operations,Supplies and Services,"3,380.88",Nov-23
Slough Borough Council,809100,Careful Choices,M44D,Adult Social Care Operations,Supplies and Services,"1,124.00",Nov-23
Slough Borough Council,809100,Careful Choices,M44D,Adult Social Care Operations,Supplies and Services,"1,124.00",Nov-23
Slough Borough Council,809100,Careful Choices,M44D,Adult Social Care Operations,Supplies and Services,"1,124.00",Nov-23
Slough Borough Council,809100,Careful Choices,M44D,Adult Social Care Operations,Supplies and Services,"1,124.00",Nov-23
Slough Borough Council,809100,Careful Choices,M44D,Adult Social Care Operations,Supplies and Services,"1,124.00",Nov-23
Slough Borough Council,804413,Castle Water,B060,Business Services,Premises,512.15,Nov-23
Slough Borough Council,804413,Castle Water,D900,Place Operations,Premises,778.12,Nov-23
Slough Borough Council,804413,Castle Water,D900,Place Operations,Premises,"-1,775.24",Nov-23
Slough Borough Council,418,Castleview School,E620,Children & Families,Supplies and Services,"39,971.66",Nov-23
Slough Borough Council,808721,Catercall Ltd,B060,Business Services,Premises,"1,248.00",Nov-23
Slough Borough Council,3609,Centurion Healthcare Ltd,M26E,Adult Social Care Operations,Supplies and Services,"6,304.24",Nov-23
Slough Borough Council,805174,Certas Energy,D900,Place Operations,Supplies and Services,"25,328.73",Nov-23
Slough Borough Council,809124,Chalet Homes Ltd,H205,Housing (People) Services,Supplies and Services,"2,480.00",Nov-23
Slough Borough Council,809124,Chalet Homes Ltd,H205,Housing (People) Services,Supplies and Services,"2,480.00",Nov-23
Slough Borough Council,2892,Chalfont Lodge,M15D,Adult Social Care Operations,Supplies and Services,"5,785.71",Nov-23
Slough Borough Council,2892,Chalfont Lodge,M15F,Adult Social Care Operations,Supplies and Services,"8,571.43",Nov-23
Slough Borough Council,2608,Chandos Lodge Nursing Home,M15D,Adult Social Care Operations,Supplies and Services,"4,400.00",Nov-23
Slough Borough Council,2608,Chandos Lodge Nursing Home,M15D,Adult Social Care Operations,Supplies and Services,"4,400.00",Nov-23
Slough Borough Council,2608,Chandos Lodge Nursing Home,M15D,Adult Social Care Operations,Supplies and Services,"4,400.00",Nov-23
Slough Borough Council,2608,Chandos Lodge Nursing Home,M15D,Adult Social Care Operations,Supplies and Services,"4,400.00",Nov-23
Slough Borough Council,2608,Chandos Lodge Nursing Home,M18C,Adult Social Care Operations,Supplies and Services,"4,400.00",Nov-23
Slough Borough Council,2608,Chandos Lodge Nursing Home,M18C,Adult Social Care Operations,Supplies and Services,"4,400.00",Nov-23
Slough Borough Council,1877,Chelsie Innes,C322,Community,Supplies and Services,500.00,Nov-23
Slough Borough Council,3114,Cherry Trees Day Nursery,F909,Children & Families,Supplies and Services,"4,000.29",Nov-23
Slough Borough Council,3114,Cherry Trees Day Nursery,F909,Children & Families,Supplies and Services,"28,981.07",Nov-23
Slough Borough Council,3114,Cherry Trees Day Nursery,F909,Children & Families,Supplies and Services,"2,430.00",Nov-23
Slough Borough Council,2871,Cherry Trees Residential Care,M27F,Adult Social Care Operations,Supplies and Services,"2,357.14",Nov-23
Slough Borough Council,2871,Cherry Trees Residential Care,M42F,Adult Social Care Operations,Supplies and Services,"1,607.14",Nov-23
Slough Borough Council,2871,Cherry Trees Residential Care,M42F,Adult Social Care Operations,Supplies and Services,"2,410.71",Nov-23
Slough Borough Council,2871,Cherry Trees Residential Care,M42F,Adult Social Care Operations,Supplies and Services,"2,410.71",Nov-23
Slough Borough Council,2871,Cherry Trees Residential Care,M42F,Adult Social Care Operations,Supplies and Services,"2,491.07",Nov-23
Slough Borough Council,809146,Chilmington Homes Ltd,M26E,Adult Social Care Operations,Supplies and Services,"8,358.00",Nov-23
Slough Borough Council,809146,Chilmington Homes Ltd,M26E,Adult Social Care Operations,Supplies and Services,"8,358.00",Nov-23
Slough Borough Council,808527,Chiron Care (Uk) Limited,M44F,Adult Social Care Operations,Supplies and Services,"1,808.40",Nov-23
Slough Borough Council,808527,Chiron Care (Uk) Limited,M44F,Adult Social Care Operations,Supplies and Services,"3,002.04",Nov-23
Slough Borough Council,808527,Chiron Care (Uk) Limited,M44F,Adult Social Care Operations,Supplies and Services,"4,579.01",Nov-23
Slough Borough Council,808527,Chiron Care (Uk) Limited,M44F,Adult Social Care Operations,Supplies and Services,"1,868.68",Nov-23
Slough Borough Council,808527,Chiron Care (Uk) Limited,M44F,Adult Social Care Operations,Supplies and Services,"2,560.50",Nov-23
Slough Borough Council,808527,Chiron Care (Uk) Limited,M44F,Adult Social Care Operations,Supplies and Services,"2,645.85",Nov-23
Slough Borough Council,808527,Chiron Care (Uk) Limited,M44F,Adult Social Care Operations,Supplies and Services,"4,431.30",Nov-23
Slough Borough Council,808527,Chiron Care (Uk) Limited,M44F,Adult Social Care Operations,Supplies and Services,"1,808.40",Nov-23
Slough Borough Council,808527,Chiron Care (Uk) Limited,M44F,Adult Social Care Operations,Supplies and Services,"2,694.83",Nov-23
Slough Borough Council,803495,Christchurch Court Ltd,M15D,Adult Social Care Operations,Supplies and Services,"8,917.11",Nov-23
Slough Borough Council,807491,Cippenham School,E620,Children & Families,Supplies and Services,"16,125.00",Nov-23
Slough Borough Council,806550,City Homecare Ltd,A07R,Adult Social Care Operations,Supplies and Services,586.25,Nov-23
Slough Borough Council,806550,City Homecare Ltd,A07R,Adult Social Care Operations,Supplies and Services,"2,205.00",Nov-23
Slough Borough Council,806550,City Homecare Ltd,M44C,Adult Social Care Operations,Supplies and Services,555.63,Nov-23
Slough Borough Council,806550,City Homecare Ltd,M44C,Adult Social Care Operations,Supplies and Services,"1,960.00",Nov-23
Slough Borough Council,806550,City Homecare Ltd,M44C,Adult Social Care Operations,Supplies and Services,875.00,Nov-23
Slough Borough Council,806550,City Homecare Ltd,M44C,Adult Social Care Operations,Supplies and Services,"1,347.50",Nov-23
Slough Borough Council,806550,City Homecare Ltd,M44C,Adult Social Care Operations,Supplies and Services,756.88,Nov-23
Slough Borough Council,806550,City Homecare Ltd,M44C,Adult Social Care Operations,Supplies and Services,"1,225.00",Nov-23
Slough Borough Council,806550,City Homecare Ltd,M44C,Adult Social Care Operations,Supplies and Services,787.50,Nov-23
Slough Borough Council,806550,City Homecare Ltd,M44C,Adult Social Care Operations,Supplies and Services,"1,128.75",Nov-23
Slough Borough Council,806550,City Homecare Ltd,M44C,Adult Social Care Operations,Supplies and Services,"2,371.25",Nov-23
Slough Borough Council,806550,City Homecare Ltd,M44C,Adult Social Care Operations,Supplies and Services,"1,225.00",Nov-23
Slough Borough Council,806550,City Homecare Ltd,M44C,Adult Social Care Operations,Supplies and Services,"2,275.00",Nov-23
Slough Borough Council,806550,City Homecare Ltd,M44C,Adult Social Care Operations,Supplies and Services,612.50,Nov-23
Slough Borough Council,806550,City Homecare Ltd,M44C,Adult Social Care Operations,Supplies and Services,"1,715.00",Nov-23
Slough Borough Council,806550,City Homecare Ltd,M44C,Adult Social Care Operations,Supplies and Services,735.00,Nov-23
Slough Borough Council,806550,City Homecare Ltd,M44C,Adult Social Care Operations,Supplies and Services,"2,205.00",Nov-23
Slough Borough Council,806550,City Homecare Ltd,M44C,Adult Social Care Operations,Supplies and Services,"2,345.00",Nov-23
Slough Borough Council,806550,City Homecare Ltd,M44C,Adult Social Care Operations,Supplies and Services,857.50,Nov-23
Slough Borough Council,806550,City Homecare Ltd,M44C,Adult Social Care Operations,Supplies and Services,"1,960.00",Nov-23
Slough Borough Council,806550,City Homecare Ltd,M44C,Adult Social Care Operations,Supplies and Services,770.00,Nov-23
Slough Borough Council,806550,City Homecare Ltd,M44C,Adult Social Care Operations,Supplies and Services,"1,820.00",Nov-23
Slough Borough Council,806550,City Homecare Ltd,M44C,Adult Social Care Operations,Supplies and Services,612.50,Nov-23
Slough Borough Council,806550,City Homecare Ltd,M44C,Adult Social Care Operations,Supplies and Services,980.00,Nov-23
Slough Borough Council,806550,City Homecare Ltd,M44C,Adult Social Care Operations,Supplies and Services,735.00,Nov-23
Slough Borough Council,806550,City Homecare Ltd,M44C,Adult Social Care Operations,Supplies and Services,612.50,Nov-23
Slough Borough Council,806550,City Homecare Ltd,M44C,Adult Social Care Operations,Supplies and Services,857.50,Nov-23
Slough Borough Council,806550,City Homecare Ltd,M44C,Adult Social Care Operations,Supplies and Services,"1,102.50",Nov-23
Slough Borough Council,806550,City Homecare Ltd,M44C,Adult Social Care Operations,Supplies and Services,612.50,Nov-23
Slough Borough Council,806550,City Homecare Ltd,M44C,Adult Social Care Operations,Supplies and Services,"2,450.00",Nov-23
Slough Borough Council,806550,City Homecare Ltd,M44C,Adult Social Care Operations,Supplies and Services,"2,205.00",Nov-23
Slough Borough Council,806550,City Homecare Ltd,M44C,Adult Social Care Operations,Supplies and Services,875.00,Nov-23
Slough Borough Council,806550,City Homecare Ltd,M44C,Adult Social Care Operations,Supplies and Services,507.50,Nov-23
Slough Borough Council,806550,City Homecare Ltd,M44C,Adult Social Care Operations,Supplies and Services,"1,273.13",Nov-23
Slough Borough Council,806550,City Homecare Ltd,M44C,Adult Social Care Operations,Supplies and Services,682.50,Nov-23
Slough Borough Council,806550,City Homecare Ltd,M44C,Adult Social Care Operations,Supplies and Services,612.50,Nov-23
Slough Borough Council,806550,City Homecare Ltd,M44D,Adult Social Care Operations,Supplies and Services,"1,610.00",Nov-23
Slough Borough Council,806550,City Homecare Ltd,M44D,Adult Social Care Operations,Supplies and Services,945.00,Nov-23
Slough Borough Council,806550,City Homecare Ltd,M44D,Adult Social Care Operations,Supplies and Services,542.50,Nov-23
Slough Borough Council,806550,City Homecare Ltd,M44D,Adult Social Care Operations,Supplies and Services,525.00,Nov-23
Slough Borough Council,806550,City Homecare Ltd,M44D,Adult Social Care Operations,Supplies and Services,883.75,Nov-23
Slough Borough Council,806550,City Homecare Ltd,M44D,Adult Social Care Operations,Supplies and Services,673.75,Nov-23
Slough Borough Council,806550,City Homecare Ltd,M44D,Adult Social Care Operations,Supplies and Services,"2,940.00",Nov-23
Slough Borough Council,806550,City Homecare Ltd,M44D,Adult Social Care Operations,Supplies and Services,735.00,Nov-23
Slough Borough Council,806550,City Homecare Ltd,M44D,Adult Social Care Operations,Supplies and Services,980.00,Nov-23
Slough Borough Council,806550,City Homecare Ltd,M44E,Adult Social Care Operations,Supplies and Services,735.00,Nov-23
Slough Borough Council,806550,City Homecare Ltd,M44E,Adult Social Care Operations,Supplies and Services,630.00,Nov-23
Slough Borough Council,806550,City Homecare Ltd,M44F,Adult Social Care Operations,Supplies and Services,560.00,Nov-23
Slough Borough Council,806550,City Homecare Ltd,M44F,Adult Social Care Operations,Supplies and Services,"1,610.00",Nov-23
Slough Borough Council,806550,City Homecare Ltd,M44F,Adult Social Care Operations,Supplies and Services,840.00,Nov-23
Slough Borough Council,806550,City Homecare Ltd,M45C,Adult Social Care Operations,Supplies and Services,673.75,Nov-23
Slough Borough Council,806550,City Homecare Ltd,M48C,Adult Social Care Operations,Supplies and Services,857.50,Nov-23
Slough Borough Council,806550,City Homecare Ltd,M48C,Adult Social Care Operations,Supplies and Services,612.50,Nov-23
Slough Borough Council,806550,City Homecare Ltd,M48C,Adult Social Care Operations,Supplies and Services,577.50,Nov-23
Slough Borough Council,806550,City Homecare Ltd,M48C,Adult Social Care Operations,Supplies and Services,857.50,Nov-23
Slough Borough Council,1083,Civica Uk Limited,C104,Community,Supplies and Services,"21,236.00",Nov-23
Slough Borough Council,1151,Claycots Primary School,E200,Children & Families,Supplies and Services,"949,441.10",Nov-23
Slough Borough Council,1747,Cms Training Ltd,B409,Customer,Indirect Employee Expenses,780.00,Nov-23
Slough Borough Council,3685,Coghlan Lodges Limited,M44D,Adult Social Care Operations,Supplies and Services,"2,116.04",Nov-23
Slough Borough Council,3685,Coghlan Lodges Limited,M44F,Adult Social Care Operations,Supplies and Services,"1,870.00",Nov-23
Slough Borough Council,805823,Collaborative Care Solutions,M42E,Adult Social Care Operations,Supplies and Services,"8,914.28",Nov-23
Slough Borough Council,805823,Collaborative Care Solutions,M42F,Adult Social Care Operations,Supplies and Services,"2,875.71",Nov-23
Slough Borough Council,805823,Collaborative Care Solutions,M44D,Adult Social Care Operations,Supplies and Services,"8,914.28",Nov-23
Slough Borough Council,805823,Collaborative Care Solutions,M44F,Adult Social Care Operations,Supplies and Services,"4,821.42",Nov-23
Slough Borough Council,459,Colliers Cre,J006,Place Management,Supplies and Services,"1,250.00",Nov-23
Slough Borough Council,459,Colliers Cre,J006,Place Management,Supplies and Services,"3,666.67",Nov-23
Slough Borough Council,459,Colliers Cre,J006,Place Management,Supplies and Services,"3,666.67",Nov-23
Slough Borough Council,286,Colnbrook C Of E Primary School,E620,Children & Families,Supplies and Services,"15,816.44",Nov-23
Slough Borough Council,2535,Comfort Care Services,M42E,Adult Social Care Operations,Supplies and Services,932.66,Nov-23
Slough Borough Council,2535,Comfort Care Services,M42E,Adult Social Care Operations,Supplies and Services,932.66,Nov-23
Slough Borough Council,2535,Comfort Care Services,M42E,Adult Social Care Operations,Supplies and Services,902.57,Nov-23
Slough Borough Council,2535,Comfort Care Services,M42E,Adult Social Care Operations,Supplies and Services,932.66,Nov-23
Slough Borough Council,2535,Comfort Care Services,M42E,Adult Social Care Operations,Supplies and Services,"2,723.36",Nov-23
Slough Borough Council,2535,Comfort Care Services,M42E,Adult Social Care Operations,Supplies and Services,778.54,Nov-23
Slough Borough Council,2535,Comfort Care Services,M42E,Adult Social Care Operations,Supplies and Services,821.27,Nov-23
Slough Borough Council,2535,Comfort Care Services,M42E,Adult Social Care Operations,Supplies and Services,"1,128.21",Nov-23
Slough Borough Council,2535,Comfort Care Services,M42E,Adult Social Care Operations,Supplies and Services,"1,489.24",Nov-23
Slough Borough Council,2535,Comfort Care Services,M42E,Adult Social Care Operations,Supplies and Services,"4,949.92",Nov-23
Slough Borough Council,2535,Comfort Care Services,M42E,Adult Social Care Operations,Supplies and Services,"2,482.07",Nov-23
Slough Borough Council,2535,Comfort Care Services,M42E,Adult Social Care Operations,Supplies and Services,902.57,Nov-23
Slough Borough Council,2535,Comfort Care Services,M42E,Adult Social Care Operations,Supplies and Services,"2,565.93",Nov-23
Slough Borough Council,2535,Comfort Care Services,M42E,Adult Social Care Operations,Supplies and Services,"1,421.53",Nov-23
Slough Borough Council,2535,Comfort Care Services,M42E,Adult Social Care Operations,Supplies and Services,"1,128.21",Nov-23
Slough Borough Council,2535,Comfort Care Services,M42F,Adult Social Care Operations,Supplies and Services,"2,550.00",Nov-23
Slough Borough Council,2535,Comfort Care Services,M42F,Adult Social Care Operations,Supplies and Services,"2,635.00",Nov-23
Slough Borough Council,2535,Comfort Care Services,M42F,Adult Social Care Operations,Supplies and Services,"2,635.00",Nov-23
Slough Borough Council,2535,Comfort Care Services,M42F,Adult Social Care Operations,Supplies and Services,902.57,Nov-23
Slough Borough Council,2535,Comfort Care Services,M42F,Adult Social Care Operations,Supplies and Services,"2,792.27",Nov-23
Slough Borough Council,2535,Comfort Care Services,M42F,Adult Social Care Operations,Supplies and Services,902.57,Nov-23
Slough Borough Council,2535,Comfort Care Services,M42F,Adult Social Care Operations,Supplies and Services,"1,126.11",Nov-23
Slough Borough Council,2535,Comfort Care Services,M42F,Adult Social Care Operations,Supplies and Services,"2,792.27",Nov-23
Slough Borough Council,2535,Comfort Care Services,M42F,Adult Social Care Operations,Supplies and Services,"4,126.20",Nov-23
Slough Borough Council,2535,Comfort Care Services,M42F,Adult Social Care Operations,Supplies and Services,"1,853.70",Nov-23
Slough Borough Council,2535,Comfort Care Services,M42F,Adult Social Care Operations,Supplies and Services,"1,378.41",Nov-23
Slough Borough Council,2535,Comfort Care Services,M42F,Adult Social Care Operations,Supplies and Services,902.57,Nov-23
Slough Borough Council,2535,Comfort Care Services,M42F,Adult Social Care Operations,Supplies and Services,"2,792.27",Nov-23
Slough Borough Council,2535,Comfort Care Services,M42F,Adult Social Care Operations,Supplies and Services,902.57,Nov-23
Slough Borough Council,2535,Comfort Care Services,M42F,Adult Social Care Operations,Supplies and Services,"1,579.50",Nov-23
Slough Borough Council,2535,Comfort Care Services,M44C,Adult Social Care Operations,Supplies and Services,"3,249.17",Nov-23
Slough Borough Council,2535,Comfort Care Services,M44E,Adult Social Care Operations,Supplies and Services,"2,013.47",Nov-23
Slough Borough Council,2535,Comfort Care Services,M44E,Adult Social Care Operations,Supplies and Services,"4,727.83",Nov-23
Slough Borough Council,2535,Comfort Care Services,M44F,Adult Social Care Operations,Supplies and Services,-757.75,Nov-23
Slough Borough Council,2535,Comfort Care Services,M44F,Adult Social Care Operations,Supplies and Services,"1,275.00",Nov-23
Slough Borough Council,2535,Comfort Care Services,M44F,Adult Social Care Operations,Supplies and Services,"1,505.77",Nov-23
Slough Borough Council,2535,Comfort Care Services,M44F,Adult Social Care Operations,Supplies and Services,"2,053.35",Nov-23
Slough Borough Council,2535,Comfort Care Services,M44F,Adult Social Care Operations,Supplies and Services,"2,121.80",Nov-23
Slough Borough Council,2535,Comfort Care Services,M44F,Adult Social Care Operations,Supplies and Services,"2,120.93",Nov-23
Slough Borough Council,2535,Comfort Care Services,M44F,Adult Social Care Operations,Supplies and Services,"2,191.64",Nov-23
Slough Borough Council,2535,Comfort Care Services,M44F,Adult Social Care Operations,Supplies and Services,"3,005.53",Nov-23
Slough Borough Council,2535,Comfort Care Services,M44F,Adult Social Care Operations,Supplies and Services,"2,191.64",Nov-23
Slough Borough Council,2535,Comfort Care Services,M44F,Adult Social Care Operations,Supplies and Services,"2,191.64",Nov-23
Slough Borough Council,2535,Comfort Care Services,M44F,Adult Social Care Operations,Supplies and Services,"3,204.13",Nov-23
Slough Borough Council,2535,Comfort Care Services,M44F,Adult Social Care Operations,Supplies and Services,"1,421.49",Nov-23
Slough Borough Council,2535,Comfort Care Services,M44F,Adult Social Care Operations,Supplies and Services,"2,843.10",Nov-23
Slough Borough Council,2535,Comfort Care Services,M44F,Adult Social Care Operations,Supplies and Services,"1,421.49",Nov-23
Slough Borough Council,2535,Comfort Care Services,M44F,Adult Social Care Operations,Supplies and Services,"2,120.93",Nov-23
Slough Borough Council,2535,Comfort Care Services,M44F,Adult Social Care Operations,Supplies and Services,"1,827.34",Nov-23
Slough Borough Council,2535,Comfort Care Services,M44F,Adult Social Care Operations,Supplies and Services,"2,843.10",Nov-23
Slough Borough Council,2535,Comfort Care Services,M44F,Adult Social Care Operations,Supplies and Services,"3,681.56",Nov-23
Slough Borough Council,2535,Comfort Care Services,M44F,Adult Social Care Operations,Supplies and Services,"2,792.27",Nov-23
Slough Borough Council,2535,Comfort Care Services,M44F,Adult Social Care Operations,Supplies and Services,"1,128.21",Nov-23
Slough Borough Council,2535,Comfort Care Services,M44F,Adult Social Care Operations,Supplies and Services,"3,005.53",Nov-23
Slough Borough Council,2535,Comfort Care Services,M44F,Adult Social Care Operations,Supplies and Services,"2,053.35",Nov-23
Slough Borough Council,2535,Comfort Care Services,M81D,Adult Social Care Operations,Supplies and Services,"2,792.27",Nov-23
Slough Borough Council,2585,Comitted Care Services Limited,M26E,Adult Social Care Operations,Supplies and Services,"1,488.00",Nov-23
Slough Borough Council,2585,Comitted Care Services Limited,M26E,Adult Social Care Operations,Supplies and Services,"6,561.18",Nov-23
Slough Borough Council,2585,Comitted Care Services Limited,M26E,Adult Social Care Operations,Supplies and Services,"6,308.77",Nov-23
Slough Borough Council,2585,Comitted Care Services Limited,M26E,Adult Social Care Operations,Supplies and Services,"6,572.27",Nov-23
Slough Borough Council,2585,Comitted Care Services Limited,M26E,Adult Social Care Operations,Supplies and Services,"1,615.01",Nov-23
Slough Borough Council,2585,Comitted Care Services Limited,M26E,Adult Social Care Operations,Supplies and Services,"1,440.00",Nov-23
Slough Borough Council,2585,Comitted Care Services Limited,M26E,Adult Social Care Operations,Supplies and Services,"6,349.52",Nov-23
Slough Borough Council,2585,Comitted Care Services Limited,M26E,Adult Social Care Operations,Supplies and Services,"6,105.26",Nov-23
Slough Borough Council,2585,Comitted Care Services Limited,M26E,Adult Social Care Operations,Supplies and Services,"6,360.26",Nov-23
Slough Borough Council,2585,Comitted Care Services Limited,M26E,Adult Social Care Operations,Supplies and Services,"1,562.91",Nov-23
Slough Borough Council,2585,Comitted Care Services Limited,M42E,Adult Social Care Operations,Supplies and Services,"2,150.40",Nov-23
Slough Borough Council,2585,Comitted Care Services Limited,M42E,Adult Social Care Operations,Supplies and Services,"1,985.48",Nov-23
Slough Borough Council,2585,Comitted Care Services Limited,M42E,Adult Social Care Operations,Supplies and Services,"2,263.63",Nov-23
Slough Borough Council,2585,Comitted Care Services Limited,M42E,Adult Social Care Operations,Supplies and Services,"2,127.30",Nov-23
Slough Borough Council,2585,Comitted Care Services Limited,M26E,Adult Social Care Operations,External Receipts,-510.44,Nov-23
Slough Borough Council,804912,CommuniKate Ltd,M22D,Adult Social Care Operations,Supplies and Services,761.75,Nov-23
Slough Borough Council,804912,CommuniKate Ltd,M22D,Adult Social Care Operations,Supplies and Services,761.75,Nov-23
Slough Borough Council,804912,CommuniKate Ltd,M22D,Adult Social Care Operations,Supplies and Services,761.75,Nov-23
Slough Borough Council,804912,CommuniKate Ltd,M22D,Adult Social Care Operations,Supplies and Services,761.75,Nov-23
Slough Borough Council,804912,CommuniKate Ltd,M22D,Adult Social Care Operations,Supplies and Services,761.75,Nov-23
Slough Borough Council,3840,Community Housing And Therapy,M80F,Adult Social Care Operations,Supplies and Services,"2,615.65",Nov-23
Slough Borough Council,809195,Compass Radio Cars Ltd,F123,Education & Inclusion,External Receipts,720.00,Nov-23
Slough Borough Council,809195,Compass Radio Cars Ltd,F123,Education & Inclusion,External Receipts,920.00,Nov-23
Slough Borough Council,809195,Compass Radio Cars Ltd,F123,Education & Inclusion,External Receipts,990.00,Nov-23
Slough Borough Council,809195,Compass Radio Cars Ltd,F123,Education & Inclusion,External Receipts,"2,100.00",Nov-23
Slough Borough Council,1772,Computershare Voucher Services,B348,People,Supplies and Services,"1,459.00",Nov-23
Slough Borough Council,1480,Corona Energy Limited,B668,Business Services,Premises,"19,911.24",Nov-23
Slough Borough Council,1480,Corona Energy Limited,B668,Business Services,Premises,"3,549.37",Nov-23
Slough Borough Council,1480,Corona Energy Limited,B668,Business Services,Premises,"8,432.01",Nov-23
Slough Borough Council,1480,Corona Energy Limited,B668,Business Services,Premises,"6,825.40",Nov-23
Slough Borough Council,1480,Corona Energy Limited,J015,Place Management,Premises,"15,823.88",Nov-23
Slough Borough Council,1480,Corona Energy Limited,J015,Place Management,Premises,"2,740.57",Nov-23
Slough Borough Council,1480,Corona Energy Limited,J015,Place Management,Premises,"6,515.43",Nov-23
Slough Borough Council,805278,Countrystyle Recycling Ltd,D342,Place Operations,Supplies and Services,"5,540.00",Nov-23
Slough Borough Council,808737,COUNTY PRIVATE CLIENT LIMITED,H205,Housing (People) Services,Supplies and Services,"35,890.00",Nov-23
Slough Borough Council,808737,COUNTY PRIVATE CLIENT LIMITED,H205,Housing (People) Services,Supplies and Services,"36,346.00",Nov-23
Slough Borough Council,3670,Craegmoor Birches Grove Priory,M27F,Adult Social Care Operations,Supplies and Services,"4,072.08",Nov-23
Slough Borough Council,3670,Craegmoor Birches Grove Priory,M27F,Adult Social Care Operations,Supplies and Services,"2,122.92",Nov-23
Slough Borough Council,3670,Craegmoor Birches Grove Priory,M27F,Adult Social Care Operations,Supplies and Services,"2,122.92",Nov-23
Slough Borough Council,1638,Creative Support Ltd,A02F,Adult Social Care Operations,Supplies and Services,"8,417.92",Nov-23
Slough Borough Council,1638,Creative Support Ltd,A02F,Adult Social Care Operations,Supplies and Services,"23,938.46",Nov-23
Slough Borough Council,1638,Creative Support Ltd,A02F,Adult Social Care Operations,Supplies and Services,"23,938.46",Nov-23
Slough Borough Council,1638,Creative Support Ltd,A02F,Adult Social Care Operations,Supplies and Services,"24,464.58",Nov-23
Slough Borough Council,1638,Creative Support Ltd,A02F,Adult Social Care Operations,Supplies and Services,"8,417.92",Nov-23
Slough Borough Council,1638,Creative Support Ltd,A02F,Adult Social Care Operations,Supplies and Services,"23,027.14",Nov-23
Slough Borough Council,1638,Creative Support Ltd,A02F,Adult Social Care Operations,Supplies and Services,"9,470.16",Nov-23
Slough Borough Council,1638,Creative Support Ltd,A02F,Adult Social Care Operations,Supplies and Services,"8,417.92",Nov-23
Slough Borough Council,1638,Creative Support Ltd,A02F,Adult Social Care Operations,Supplies and Services,"33,934.74",Nov-23
Slough Borough Council,1638,Creative Support Ltd,A02L,Adult Social Care Operations,Supplies and Services,"1,431.90",Nov-23
Slough Borough Council,1638,Creative Support Ltd,A02L,Adult Social Care Operations,Supplies and Services,"1,565.10",Nov-23
Slough Borough Council,1638,Creative Support Ltd,A02L,Adult Social Care Operations,Supplies and Services,"1,165.50",Nov-23
Slough Borough Council,1638,Creative Support Ltd,A02L,Adult Social Care Operations,Supplies and Services,"1,365.30",Nov-23
Slough Borough Council,1638,Creative Support Ltd,A02L,Adult Social Care Operations,Supplies and Services,"1,065.60",Nov-23
Slough Borough Council,1638,Creative Support Ltd,A02L,Adult Social Care Operations,Supplies and Services,"1,431.90",Nov-23
Slough Borough Council,1638,Creative Support Ltd,A02L,Adult Social Care Operations,Supplies and Services,"1,565.10",Nov-23
Slough Borough Council,1638,Creative Support Ltd,A02L,Adult Social Care Operations,Supplies and Services,"1,165.50",Nov-23
Slough Borough Council,1638,Creative Support Ltd,A02L,Adult Social Care Operations,Supplies and Services,"1,065.60",Nov-23
Slough Borough Council,1638,Creative Support Ltd,A02L,Adult Social Care Operations,Supplies and Services,"1,365.30",Nov-23
Slough Borough Council,1638,Creative Support Ltd,M42E,Adult Social Care Operations,Supplies and Services,"1,665.00",Nov-23
Slough Borough Council,1638,Creative Support Ltd,M44C,Adult Social Care Operations,Supplies and Services,899.10,Nov-23
Slough Borough Council,1638,Creative Support Ltd,M44E,Adult Social Care Operations,Supplies and Services,"1,265.40",Nov-23
Slough Borough Council,1638,Creative Support Ltd,M44E,Adult Social Care Operations,Supplies and Services,932.40,Nov-23
Slough Borough Council,1638,Creative Support Ltd,M44E,Adult Social Care Operations,Supplies and Services,607.73,Nov-23
Slough Borough Council,1638,Creative Support Ltd,M44E,Adult Social Care Operations,Supplies and Services,932.40,Nov-23
Slough Borough Council,806983,Critiqom,H020,Finance & Commercial,Supplies and Services,"2,633.44",Nov-23
Slough Borough Council,806983,Critiqom,H020,Finance & Commercial,Supplies and Services,"1,053.84",Nov-23
Slough Borough Council,806983,Critiqom,H020,Finance & Commercial,Supplies and Services,"4,498.46",Nov-23
Slough Borough Council,806983,Critiqom,H020,Finance & Commercial,Supplies and Services,812.32,Nov-23
Slough Borough Council,806983,Critiqom,H020,Finance & Commercial,Supplies and Services,"1,610.22",Nov-23
Slough Borough Council,808775,Danescroft Consultants Ltd,A01D,People Adults,Agency Staff,"7,650.00",Nov-23
Slough Borough Council,807288,David Allwood,C322,Community,Supplies and Services,"1,890.00",Nov-23
Slough Borough Council,804284,David Kemp Productions LTD,C322,Community,Supplies and Services,"4,120.00",Nov-23
Slough Borough Council,808657,Davinder Selby,H205,Housing (People) Services,Supplies and Services,"1,860.00",Nov-23
Slough Borough Council,807563,Delib Limited,B203,Finance & Commercial,Supplies and Services,"9,995.00",Nov-23
Slough Borough Council,808612,Delta 4 Services Ltd,B377,Finance & Commercial,Supplies and Services,"1,666.67",Nov-23
Slough Borough Council,808612,Delta 4 Services Ltd,B377,Finance & Commercial,Supplies and Services,"8,333.33",Nov-23
Slough Borough Council,808933,Denhan International Limited,H205,Housing (People) Services,Supplies and Services,"12,050.00",Nov-23
Slough Borough Council,806159,Devon Piatt-Panton,C322,Community,Supplies and Services,890.00,Nov-23
Slough Borough Council,3554,Dimensions (Uk) Ltd,M42E,Adult Social Care Operations,Supplies and Services,"9,045.94",Nov-23
Slough Borough Council,3554,Dimensions (Uk) Ltd,M42E,Adult Social Care Operations,Supplies and Services,"8,643.92",Nov-23
Slough Borough Council,3554,Dimensions (Uk) Ltd,M42E,Adult Social Care Operations,Supplies and Services,"8,417.31",Nov-23
Slough Borough Council,3554,Dimensions (Uk) Ltd,M42E,Adult Social Care Operations,Supplies and Services,"6,750.26",Nov-23
Slough Borough Council,3554,Dimensions (Uk) Ltd,M42E,Adult Social Care Operations,Supplies and Services,"7,072.55",Nov-23
Slough Borough Council,3554,Dimensions (Uk) Ltd,M42E,Adult Social Care Operations,Supplies and Services,"8,988.19",Nov-23
Slough Borough Council,3554,Dimensions (Uk) Ltd,M42E,Adult Social Care Operations,Supplies and Services,"8,644.16",Nov-23
Slough Borough Council,3554,Dimensions (Uk) Ltd,M42E,Adult Social Care Operations,Supplies and Services,"7,494.56",Nov-23
Slough Borough Council,3554,Dimensions (Uk) Ltd,M42E,Adult Social Care Operations,Supplies and Services,"7,099.23",Nov-23
Slough Borough Council,3554,Dimensions (Uk) Ltd,M42E,Adult Social Care Operations,Supplies and Services,"7,232.42",Nov-23
Slough Borough Council,803306,Ditton Park Academy,E620,Children & Families,Supplies and Services,"39,125.00",Nov-23
Slough Borough Council,809145,Drains Surgeon Limited,P243,Capital,Capital Charges,"3,180.00",Nov-23
Slough Borough Council,854,Drayton Fencing,C001,Place Operations,Premises,"1,392.00",Nov-23
Slough Borough Council,803177,Early Steps Preschool,F909,Children & Families,Supplies and Services,545.88,Nov-23
Slough Borough Council,803177,Early Steps Preschool,F909,Children & Families,Supplies and Services,"8,081.14",Nov-23
Slough Borough Council,804924,Econ Engineering Limited,D880,Place Operations,Transport,"10,142.00",Nov-23
Slough Borough Council,803301,Eden Girls School,E610,Children & Families,Supplies and Services,"5,000.00",Nov-23
Slough Borough Council,2159,Edge Training And Consultancy Ltd,A02A,People,Indirect Employee Expenses,875.00,Nov-23
Slough Borough Council,808885,Ekom Solutions,H205,Housing (People) Services,Supplies and Services,"6,975.00",Nov-23
Slough Borough Council,808885,Ekom Solutions,H205,Housing (People) Services,Supplies and Services,"7,006.00",Nov-23
Slough Borough Council,807001,Elegant Care Services Ltd,M42E,Adult Social Care Operations,Supplies and Services,"5,794.28",Nov-23
Slough Borough Council,807001,Elegant Care Services Ltd,M42E,Adult Social Care Operations,Supplies and Services,"9,857.14",Nov-23
Slough Borough Council,807001,Elegant Care Services Ltd,M42E,Adult Social Care Operations,Supplies and Services,"6,017.14",Nov-23
Slough Borough Council,807001,Elegant Care Services Ltd,M44C,Adult Social Care Operations,Supplies and Services,"6,797.14",Nov-23
Slough Borough Council,807001,Elegant Care Services Ltd,M44D,Adult Social Care Operations,Supplies and Services,"2,963.05",Nov-23
Slough Borough Council,806355,Elysium Healthcare,M26E,Adult Social Care Operations,Supplies and Services,"11,044.68",Nov-23
Slough Borough Council,806355,Elysium Healthcare,M26E,Adult Social Care Operations,Supplies and Services,"9,576.52",Nov-23
Slough Borough Council,3752,Endurance Health,A07R,Adult Social Care Operations,Supplies and Services,"1,357.96",Nov-23
Slough Borough Council,3752,Endurance Health,A07R,Adult Social Care Operations,Supplies and Services,"2,071.16",Nov-23
Slough Borough Council,3752,Endurance Health,A07R,Adult Social Care Operations,Supplies and Services,580.14,Nov-23
Slough Borough Council,3752,Endurance Health,M44C,Adult Social Care Operations,Supplies and Services,"1,406.84",Nov-23
Slough Borough Council,3752,Endurance Health,M44C,Adult Social Care Operations,Supplies and Services,"3,647.10",Nov-23
Slough Borough Council,3752,Endurance Health,M44C,Adult Social Care Operations,Supplies and Services,"1,099.98",Nov-23
Slough Borough Council,3752,Endurance Health,M44C,Adult Social Care Operations,Supplies and Services,683.48,Nov-23
Slough Borough Council,3752,Endurance Health,M44C,Adult Social Care Operations,Supplies and Services,"1,950.69",Nov-23
Slough Borough Council,3752,Endurance Health,M44C,Adult Social Care Operations,Supplies and Services,676.14,Nov-23
Slough Borough Council,3752,Endurance Health,M44C,Adult Social Care Operations,Supplies and Services,"2,512.48",Nov-23
Slough Borough Council,3752,Endurance Health,M44C,Adult Social Care Operations,Supplies and Services,610.14,Nov-23
Slough Borough Council,3752,Endurance Health,M44C,Adult Social Care Operations,Supplies and Services,"1,251.91",Nov-23
Slough Borough Council,3752,Endurance Health,M44C,Adult Social Care Operations,Supplies and Services,833.00,Nov-23
Slough Borough Council,3752,Endurance Health,M44C,Adult Social Care Operations,Supplies and Services,"1,441.47",Nov-23
Slough Borough Council,3752,Endurance Health,M44C,Adult Social Care Operations,Supplies and Services,"1,106.58",Nov-23
Slough Borough Council,3752,Endurance Health,M44C,Adult Social Care Operations,Supplies and Services,"1,228.58",Nov-23
Slough Borough Council,3752,Endurance Health,M44C,Adult Social Care Operations,Supplies and Services,559.72,Nov-23
Slough Borough Council,3752,Endurance Health,M44C,Adult Social Care Operations,Supplies and Services,"1,397.23",Nov-23
Slough Borough Council,3752,Endurance Health,M44C,Adult Social Care Operations,Supplies and Services,"1,948.69",Nov-23
Slough Borough Council,3752,Endurance Health,M44C,Adult Social Care Operations,Supplies and Services,753.02,Nov-23
Slough Borough Council,3752,Endurance Health,M44C,Adult Social Care Operations,Supplies and Services,"1,328.14",Nov-23
Slough Borough Council,3752,Endurance Health,M44C,Adult Social Care Operations,Supplies and Services,"1,206.62",Nov-23
Slough Borough Council,3752,Endurance Health,M44C,Adult Social Care Operations,Supplies and Services,"1,119.44",Nov-23
Slough Borough Council,3752,Endurance Health,M44C,Adult Social Care Operations,Supplies and Services,863.90,Nov-23
Slough Borough Council,3752,Endurance Health,M44C,Adult Social Care Operations,Supplies and Services,"3,334.49",Nov-23
Slough Borough Council,3752,Endurance Health,M44C,Adult Social Care Operations,Supplies and Services,"1,358.28",Nov-23
Slough Borough Council,3752,Endurance Health,M44C,Adult Social Care Operations,Supplies and Services,"1,186.70",Nov-23
Slough Borough Council,3752,Endurance Health,M44C,Adult Social Care Operations,Supplies and Services,648.14,Nov-23
Slough Borough Council,3752,Endurance Health,M44C,Adult Social Care Operations,Supplies and Services,"1,397.30",Nov-23
Slough Borough Council,3752,Endurance Health,M44C,Adult Social Care Operations,Supplies and Services,830.58,Nov-23
Slough Borough Council,3752,Endurance Health,M44C,Adult Social Care Operations,Supplies and Services,"1,392.32",Nov-23
Slough Borough Council,3752,Endurance Health,M44C,Adult Social Care Operations,Supplies and Services,"1,402.99",Nov-23
Slough Borough Council,3752,Endurance Health,M44C,Adult Social Care Operations,Supplies and Services,"1,185.09",Nov-23
Slough Borough Council,3752,Endurance Health,M44C,Adult Social Care Operations,Supplies and Services,516.08,Nov-23
Slough Borough Council,3752,Endurance Health,M44C,Adult Social Care Operations,Supplies and Services,"1,396.98",Nov-23
Slough Borough Council,3752,Endurance Health,M44D,Adult Social Care Operations,Supplies and Services,796.40,Nov-23
Slough Borough Council,3752,Endurance Health,M44D,Adult Social Care Operations,Supplies and Services,"1,035.48",Nov-23
Slough Borough Council,3752,Endurance Health,M44D,Adult Social Care Operations,Supplies and Services,"1,188.30",Nov-23
Slough Borough Council,3752,Endurance Health,M44D,Adult Social Care Operations,Supplies and Services,"1,889.79",Nov-23
Slough Borough Council,3752,Endurance Health,M44D,Adult Social Care Operations,Supplies and Services,914.61,Nov-23
Slough Borough Council,3752,Endurance Health,M44D,Adult Social Care Operations,Supplies and Services,761.77,Nov-23
Slough Borough Council,3752,Endurance Health,M45C,Adult Social Care Operations,Supplies and Services,"1,886.02",Nov-23
Slough Borough Council,3752,Endurance Health,M45C,Adult Social Care Operations,Supplies and Services,979.83,Nov-23
Slough Borough Council,3752,Endurance Health,M45C,Adult Social Care Operations,Supplies and Services,"2,763.15",Nov-23
Slough Borough Council,3752,Endurance Health,M45C,Adult Social Care Operations,Supplies and Services,524.58,Nov-23
Slough Borough Council,3752,Endurance Health,M45C,Adult Social Care Operations,Supplies and Services,"1,259.37",Nov-23
Slough Borough Council,3752,Endurance Health,M45C,Adult Social Care Operations,Supplies and Services,"2,875.89",Nov-23
Slough Borough Council,805423,Enriched Care,M44D,Adult Social Care Operations,Supplies and Services,"3,621.00",Nov-23
Slough Borough Council,805423,Enriched Care,M44D,Adult Social Care Operations,Supplies and Services,"3,621.00",Nov-23
Slough Borough Council,805423,Enriched Care,M44F,Adult Social Care Operations,Supplies and Services,"2,529.00",Nov-23
Slough Borough Council,805423,Enriched Care,M44F,Adult Social Care Operations,Supplies and Services,"2,787.00",Nov-23
Slough Borough Council,805423,Enriched Care,M80F,Adult Social Care Operations,Supplies and Services,"1,701.30",Nov-23
Slough Borough Council,807310,Enterprise Rent-A-Car UK Limited trading as Enterprise Flex-E-Rent,B060,Business Services,Premises,"2,360.80",Nov-23
Slough Borough Council,2677,Eton House Residential Home,M25C,Adult Social Care Operations,Supplies and Services,"3,534.00",Nov-23
Slough Borough Council,2677,Eton House Residential Home,M25C,Adult Social Care Operations,Supplies and Services,"5,092.86",Nov-23
Slough Borough Council,2677,Eton House Residential Home,M25D,Adult Social Care Operations,Supplies and Services,"3,199.64",Nov-23
Slough Borough Council,2677,Eton House Residential Home,M27C,Adult Social Care Operations,Supplies and Services,"3,520.71",Nov-23
Slough Borough Council,2677,Eton House Residential Home,M27C,Adult Social Care Operations,Supplies and Services,"5,092.86",Nov-23
Slough Borough Council,2677,Eton House Residential Home,M27C,Adult Social Care Operations,Supplies and Services,"2,657.14",Nov-23
Slough Borough Council,2677,Eton House Residential Home,M27C,Adult Social Care Operations,Supplies and Services,"6,642.86",Nov-23
Slough Borough Council,2677,Eton House Residential Home,M29C,Adult Social Care Operations,Supplies and Services,"3,837.86",Nov-23
Slough Borough Council,2677,Eton House Residential Home,M29C,Adult Social Care Operations,Supplies and Services,568.57,Nov-23
Slough Borough Council,2677,Eton House Residential Home,M29C,Adult Social Care Operations,Supplies and Services,710.71,Nov-23
Slough Borough Council,2677,Eton House Residential Home,M29C,Adult Social Care Operations,Supplies and Services,-568.57,Nov-23
Slough Borough Council,2677,Eton House Residential Home,M29C,Adult Social Care Operations,Supplies and Services,"4,264.29",Nov-23
Slough Borough Council,2677,Eton House Residential Home,M29C,Adult Social Care Operations,Supplies and Services,"8,812.86",Nov-23
Slough Borough Council,808344,Euro Housing UK LTD,H205,Housing (People) Services,Supplies and Services,"15,965.00",Nov-23
Slough Borough Council,808344,Euro Housing UK LTD,H205,Housing (People) Services,Supplies and Services,"14,130.00",Nov-23
Slough Borough Council,808344,Euro Housing UK LTD,H205,Housing (People) Services,Supplies and Services,"42,295.00",Nov-23
Slough Borough Council,808344,Euro Housing UK LTD,H205,Housing (People) Services,Supplies and Services,"1,215.00",Nov-23
Slough Borough Council,806501,Excellent Healthcare Services Ltd,A07R,Adult Social Care Operations,Supplies and Services,"1,965.81",Nov-23
Slough Borough Council,806501,Excellent Healthcare Services Ltd,A07R,Adult Social Care Operations,Supplies and Services,"1,548.82",Nov-23
Slough Borough Council,806501,Excellent Healthcare Services Ltd,M44C,Adult Social Care Operations,Supplies and Services,833.98,Nov-23
Slough Borough Council,806501,Excellent Healthcare Services Ltd,M44C,Adult Social Care Operations,Supplies and Services,"1,072.26",Nov-23
Slough Borough Council,806501,Excellent Healthcare Services Ltd,M44C,Adult Social Care Operations,Supplies and Services,833.98,Nov-23
Slough Borough Council,806501,Excellent Healthcare Services Ltd,M44C,Adult Social Care Operations,Supplies and Services,595.70,Nov-23
Slough Borough Council,806501,Excellent Healthcare Services Ltd,M44C,Adult Social Care Operations,Supplies and Services,765.90,Nov-23
Slough Borough Council,806501,Excellent Healthcare Services Ltd,M44C,Adult Social Care Operations,Supplies and Services,"2,280.68",Nov-23
Slough Borough Council,806501,Excellent Healthcare Services Ltd,M44C,Adult Social Care Operations,Supplies and Services,"1,667.96",Nov-23
Slough Borough Council,806501,Excellent Healthcare Services Ltd,M44C,Adult Social Care Operations,Supplies and Services,919.08,Nov-23
Slough Borough Council,806501,Excellent Healthcare Services Ltd,M44C,Adult Social Care Operations,Supplies and Services,"2,144.52",Nov-23
Slough Borough Council,806501,Excellent Healthcare Services Ltd,M44C,Adult Social Care Operations,Supplies and Services,"1,072.26",Nov-23
Slough Borough Council,806501,Excellent Healthcare Services Ltd,M44C,Adult Social Care Operations,Supplies and Services,833.98,Nov-23
Slough Borough Council,806501,Excellent Healthcare Services Ltd,M44C,Adult Social Care Operations,Supplies and Services,714.84,Nov-23
Slough Borough Council,806501,Excellent Healthcare Services Ltd,M44D,Adult Social Care Operations,Supplies and Services,"2,144.52",Nov-23
Slough Borough Council,806501,Excellent Healthcare Services Ltd,M44F,Adult Social Care Operations,Supplies and Services,"1,350.00",Nov-23
Slough Borough Council,806501,Excellent Healthcare Services Ltd,M44F,Adult Social Care Operations,Supplies and Services,527.62,Nov-23
Slough Borough Council,806501,Excellent Healthcare Services Ltd,M44F,Adult Social Care Operations,Supplies and Services,919.08,Nov-23
Slough Borough Council,806501,Excellent Healthcare Services Ltd,M45C,Adult Social Care Operations,Supplies and Services,833.98,Nov-23
Slough Borough Council,806501,Excellent Healthcare Services Ltd,M45C,Adult Social Care Operations,Supplies and Services,"1,004.18",Nov-23
Slough Borough Council,806501,Excellent Healthcare Services Ltd,M45C,Adult Social Care Operations,Supplies and Services,514.86,Nov-23
Slough Borough Council,806501,Excellent Healthcare Services Ltd,M45C,Adult Social Care Operations,Supplies and Services,902.06,Nov-23
Slough Borough Council,806501,Excellent Healthcare Services Ltd,M45C,Adult Social Care Operations,Supplies and Services,"1,191.40",Nov-23
Slough Borough Council,806501,Excellent Healthcare Services Ltd,M45C,Adult Social Care Operations,Supplies and Services,"1,667.96",Nov-23
Slough Borough Council,806501,Excellent Healthcare Services Ltd,M45C,Adult Social Care Operations,Supplies and Services,970.14,Nov-23
Slough Borough Council,806501,Excellent Healthcare Services Ltd,M48C,Adult Social Care Operations,Supplies and Services,595.70,Nov-23
Slough Borough Council,808736,EXCLUSIVE HOUSING SOLUTION LIMITED,H205,Housing (People) Services,Supplies and Services,"30,438.00",Nov-23
Slough Borough Council,805225,Falcon Surfacing Ltd,P579,Capital,Capital Charges,"6,300.00",Nov-23
Slough Borough Council,805225,Falcon Surfacing Ltd,P579,Capital,Capital Charges,"2,631.30",Nov-23
Slough Borough Council,805225,Falcon Surfacing Ltd,P579,Capital,Capital Charges,"1,655.88",Nov-23
Slough Borough Council,805225,Falcon Surfacing Ltd,D509,Place Strategy & Infrastructure,Supplies and Services,"3,780.00",Nov-23
Slough Borough Council,2678,Farnham Common Nurseries Ltd,D320,Place Operations,Supplies and Services,"1,056.80",Nov-23
Slough Borough Council,955,First Beeline Buses Ltd,D512,Place Strategy & Infrastructure,Supplies and Services,"67,578.66",Nov-23
Slough Borough Council,955,First Beeline Buses Ltd,D512,Place Strategy & Infrastructure,Supplies and Services,"62,035.92",Nov-23
Slough Borough Council,955,First Beeline Buses Ltd,D512,Place Strategy & Infrastructure,Supplies and Services,"66,720.63",Nov-23
Slough Borough Council,955,First Beeline Buses Ltd,D512,Place Strategy & Infrastructure,Supplies and Services,"67,857.33",Nov-23
Slough Borough Council,955,First Beeline Buses Ltd,D512,Place Strategy & Infrastructure,Supplies and Services,"70,110.35",Nov-23
Slough Borough Council,955,First Beeline Buses Ltd,D512,Place Strategy & Infrastructure,Supplies and Services,"70,528.88",Nov-23
Slough Borough Council,1413,First Greater Western Ltd,F123,Education & Inclusion,External Receipts,"1,969.00",Nov-23
Slough Borough Council,754,First Steps Day Nursery,F909,Children & Families,Supplies and Services,"12,973.29",Nov-23
Slough Borough Council,1626,Five Star Radio Cars Limited,F123,Education & Inclusion,External Receipts,"1,567.50",Nov-23
Slough Borough Council,2460,Forest Bridge School Ltd,F417,Education & Inclusion,Supplies and Services,833.33,Nov-23
Slough Borough Council,2460,Forest Bridge School Ltd,F551,Children & Families,Supplies and Services,"15,135.96",Nov-23
Slough Borough Council,2460,Forest Bridge School Ltd,F551,Children & Families,Supplies and Services,"15,135.96",Nov-23
Slough Borough Council,2460,Forest Bridge School Ltd,F551,Children & Families,Supplies and Services,"15,135.69",Nov-23
Slough Borough Council,2460,Forest Bridge School Ltd,F551,Children & Families,Supplies and Services,"15,135.69",Nov-23
Slough Borough Council,2460,Forest Bridge School Ltd,F551,Children & Families,Supplies and Services,"9,150.21",Nov-23
Slough Borough Council,2460,Forest Bridge School Ltd,F551,Children & Families,Supplies and Services,"9,150.21",Nov-23
Slough Borough Council,2460,Forest Bridge School Ltd,F551,Children & Families,Supplies and Services,"2,966.67",Nov-23
Slough Borough Council,2460,Forest Bridge School Ltd,F551,Children & Families,Supplies and Services,"13,204.87",Nov-23
Slough Borough Council,2460,Forest Bridge School Ltd,F551,Children & Families,Supplies and Services,"10,504.06",Nov-23
Slough Borough Council,2460,Forest Bridge School Ltd,F551,Children & Families,Supplies and Services,"9,150.21",Nov-23
Slough Borough Council,1204,Forget Me Not,M25C,Adult Social Care Operations,Supplies and Services,"4,800.00",Nov-23
Slough Borough Council,1204,Forget Me Not,M25C,Adult Social Care Operations,Supplies and Services,"3,400.00",Nov-23
Slough Borough Council,1204,Forget Me Not,M25C,Adult Social Care Operations,Supplies and Services,"3,800.00",Nov-23
Slough Borough Council,1204,Forget Me Not,M25D,Adult Social Care Operations,Supplies and Services,"3,600.00",Nov-23
Slough Borough Council,1204,Forget Me Not,M27C,Adult Social Care Operations,Supplies and Services,"3,199.76",Nov-23
Slough Borough Council,1204,Forget Me Not,M27C,Adult Social Care Operations,Supplies and Services,"3,800.00",Nov-23
Slough Borough Council,1204,Forget Me Not,M27C,Adult Social Care Operations,Supplies and Services,"4,000.00",Nov-23
Slough Borough Council,647,Foxborough Primary School,E620,Children & Families,Supplies and Services,"10,795.33",Nov-23
Slough Borough Council,807125,Futures For Shared Lives,M36E,Adult Social Care Operations,Supplies and Services,"3,325.50",Nov-23
Slough Borough Council,1758,Gas Advisory Services Limited,J606,Place Management,Supplies and Services,"2,737.00",Nov-23
Slough Borough Council,1758,Gas Advisory Services Limited,J606,Place Management,Supplies and Services,"2,162.00",Nov-23
Slough Borough Council,809062,GCH (St Katharine's) Limited,M25C,Adult Social Care Operations,Supplies and Services,"3,928.57",Nov-23
Slough Borough Council,809062,GCH (St Katharine's) Limited,M25C,Adult Social Care Operations,Supplies and Services,785.72,Nov-23
Slough Borough Council,805362,Gear4music,F253,Children & Families,Supplies and Services,"1,310.82",Nov-23
Slough Borough Council,808013,Get Active Sports,F382,Children & Families,Supplies and Services,"1,030.43",Nov-23
Slough Borough Council,808013,Get Active Sports,F382,Children & Families,Supplies and Services,843.15,Nov-23
Slough Borough Council,806204,GLOBAL MEDIATION LIMITED,F500,Education & Inclusion,Supplies and Services,800.00,Nov-23
Slough Borough Council,806485,GPF Lewis Plc,P093,Capital,Capital Charges,"45,093.25",Nov-23
Slough Borough Council,806485,GPF Lewis Plc,P093,Capital,Capital Charges,"7,398.20",Nov-23
Slough Borough Council,2830,GR Response Healthcare Ltd,M44C,Adult Social Care Operations,Supplies and Services,"2,394.00",Nov-23
Slough Borough Council,2830,GR Response Healthcare Ltd,M44C,Adult Social Care Operations,Supplies and Services,"1,862.00",Nov-23
Slough Borough Council,2830,GR Response Healthcare Ltd,M44C,Adult Social Care Operations,Supplies and Services,"2,000.32",Nov-23
Slough Borough Council,2830,GR Response Healthcare Ltd,M44C,Adult Social Care Operations,Supplies and Services,"1,178.00",Nov-23
Slough Borough Council,2830,GR Response Healthcare Ltd,M44C,Adult Social Care Operations,Supplies and Services,"2,926.00",Nov-23
Slough Borough Council,2830,GR Response Healthcare Ltd,M44C,Adult Social Care Operations,Supplies and Services,"2,250.08",Nov-23
Slough Borough Council,2830,GR Response Healthcare Ltd,M44C,Adult Social Care Operations,Supplies and Services,"1,500.24",Nov-23
Slough Borough Council,2830,GR Response Healthcare Ltd,M44C,Adult Social Care Operations,Supplies and Services,749.84,Nov-23
Slough Borough Council,2830,GR Response Healthcare Ltd,M44C,Adult Social Care Operations,Supplies and Services,"2,394.00",Nov-23
Slough Borough Council,2830,GR Response Healthcare Ltd,M44C,Adult Social Care Operations,Supplies and Services,"1,862.00",Nov-23
Slough Borough Council,2830,GR Response Healthcare Ltd,M44C,Adult Social Care Operations,Supplies and Services,"2,318.00",Nov-23
Slough Borough Council,2830,GR Response Healthcare Ltd,M44C,Adult Social Care Operations,Supplies and Services,"2,169.72",Nov-23
Slough Borough Council,2830,GR Response Healthcare Ltd,M44D,Adult Social Care Operations,Supplies and Services,"2,250.08",Nov-23
Slough Borough Council,2830,GR Response Healthcare Ltd,M44D,Adult Social Care Operations,Supplies and Services,"1,596.00",Nov-23
Slough Borough Council,2830,GR Response Healthcare Ltd,M44D,Adult Social Care Operations,Supplies and Services,750.12,Nov-23
Slough Borough Council,2830,GR Response Healthcare Ltd,M44D,Adult Social Care Operations,Supplies and Services,931.00,Nov-23
Slough Borough Council,2830,GR Response Healthcare Ltd,M44D,Adult Social Care Operations,Supplies and Services,"2,736.00",Nov-23
Slough Borough Council,2830,GR Response Healthcare Ltd,M44D,Adult Social Care Operations,Supplies and Services,"1,446.12",Nov-23
Slough Borough Council,2830,GR Response Healthcare Ltd,M44D,Adult Social Care Operations,Supplies and Services,"2,250.08",Nov-23
Slough Borough Council,2830,GR Response Healthcare Ltd,M44D,Adult Social Care Operations,Supplies and Services,"1,862.00",Nov-23
Slough Borough Council,2830,GR Response Healthcare Ltd,M44D,Adult Social Care Operations,Supplies and Services,"2,436.75",Nov-23
Slough Borough Council,2830,GR Response Healthcare Ltd,M44E,Adult Social Care Operations,Supplies and Services,532.00,Nov-23
Slough Borough Council,809197,Grays Essex Limited,F123,Education & Inclusion,External Receipts,"16,370.00",Nov-23
Slough Borough Council,807255,Green Corridor,F558,Children & Families,Supplies and Services,"2,348.04",Nov-23
Slough Borough Council,808464,Greenstone Care,M44F,Adult Social Care Operations,Supplies and Services,"1,706.00",Nov-23
Slough Borough Council,808464,Greenstone Care,M44F,Adult Social Care Operations,Supplies and Services,"1,261.00",Nov-23
Slough Borough Council,808464,Greenstone Care,M51C,Adult Social Care Operations,Supplies and Services,"2,571.43",Nov-23
Slough Borough Council,808464,Greenstone Care,M51C,Adult Social Care Operations,Supplies and Services,843.57,Nov-23
Slough Borough Council,805069,Grove Academy,E610,Children & Families,Supplies and Services,"13,026.47",Nov-23
Slough Borough Council,807858,H J Newman,H253,Place Regulation,Supplies and Services,870.00,Nov-23
Slough Borough Council,807858,H J Newman,H253,Place Regulation,Supplies and Services,"1,925.00",Nov-23
Slough Borough Council,1610,Handicare Uk,P006,Capital,Capital Charges,"5,570.00",Nov-23
Slough Borough Council,1610,Handicare Uk,P006,Capital,Capital Charges,"6,281.00",Nov-23
Slough Borough Council,1610,Handicare Uk,P006,Capital,Capital Charges,"5,975.00",Nov-23
Slough Borough Council,1610,Handicare Uk,P006,Capital,Capital Charges,"6,020.00",Nov-23
Slough Borough Council,1610,Handicare Uk,P006,Capital,Capital Charges,"6,020.00",Nov-23
Slough Borough Council,1610,Handicare Uk,P006,Capital,Capital Charges,"5,801.00",Nov-23
Slough Borough Council,1610,Handicare Uk,P006,Capital,Capital Charges,"5,888.00",Nov-23
Slough Borough Council,1610,Handicare Uk,P006,Capital,Capital Charges,"3,573.00",Nov-23
Slough Borough Council,1610,Handicare Uk,P006,Capital,Capital Charges,"6,240.00",Nov-23
Slough Borough Council,804986,Havencare Ltd,M26E,Adult Social Care Operations,Supplies and Services,"1,356.27",Nov-23
Slough Borough Council,804986,Havencare Ltd,M26E,Adult Social Care Operations,Supplies and Services,"1,356.27",Nov-23
Slough Borough Council,804986,Havencare Ltd,M26E,Adult Social Care Operations,Supplies and Services,"1,356.27",Nov-23
Slough Borough Council,804986,Havencare Ltd,M26E,Adult Social Care Operations,Supplies and Services,"1,356.27",Nov-23
Slough Borough Council,1381,Haybrook College,E610,Children & Families,Supplies and Services,"26,208.06",Nov-23
Slough Borough Council,3784,Haybrook College Pru,E610,Children & Families,Supplies and Services,"31,968.18",Nov-23
Slough Borough Council,808639,Hazel Care Services Ltd,M42E,Adult Social Care Operations,Supplies and Services,"4,565.68",Nov-23
Slough Borough Council,808639,Hazel Care Services Ltd,M42E,Adult Social Care Operations,Supplies and Services,"2,237.17",Nov-23
Slough Borough Council,808639,Hazel Care Services Ltd,M42E,Adult Social Care Operations,Supplies and Services,"6,993.60",Nov-23
Slough Borough Council,808639,Hazel Care Services Ltd,M42E,Adult Social Care Operations,Supplies and Services,"3,713.49",Nov-23
Slough Borough Council,808639,Hazel Care Services Ltd,M44F,Adult Social Care Operations,Supplies and Services,"3,498.66",Nov-23
Slough Borough Council,803753,Healthcare Homes,M15D,Adult Social Care Operations,Supplies and Services,"2,843.66",Nov-23
Slough Borough Council,803753,Healthcare Homes,M17C,Adult Social Care Operations,Supplies and Services,"5,142.86",Nov-23
Slough Borough Council,803753,Healthcare Homes,M17C,Adult Social Care Operations,Supplies and Services,"5,314.29",Nov-23
Slough Borough Council,803753,Healthcare Homes,M17C,Adult Social Care Operations,Supplies and Services,"5,314.29",Nov-23
Slough Borough Council,803753,Healthcare Homes,M17C,Adult Social Care Operations,Supplies and Services,"5,314.29",Nov-23
Slough Borough Council,803753,Healthcare Homes,M17C,Adult Social Care Operations,Supplies and Services,"5,142.86",Nov-23
Slough Borough Council,803753,Healthcare Homes,M17C,Adult Social Care Operations,Supplies and Services,"5,142.86",Nov-23
Slough Borough Council,803753,Healthcare Homes,M17C,Adult Social Care Operations,Supplies and Services,"5,314.29",Nov-23
Slough Borough Council,803753,Healthcare Homes,M17C,Adult Social Care Operations,Supplies and Services,"-3,142.86",Nov-23
Slough Borough Council,803753,Healthcare Homes,M17C,Adult Social Care Operations,Supplies and Services,"5,142.86",Nov-23
Slough Borough Council,803753,Healthcare Homes,M17C,Adult Social Care Operations,Supplies and Services,"4,714.29",Nov-23
Slough Borough Council,803753,Healthcare Homes,M17C,Adult Social Care Operations,Supplies and Services,"4,714.29",Nov-23
Slough Borough Council,803753,Healthcare Homes,M17C,Adult Social Care Operations,Supplies and Services,"5,142.86",Nov-23
Slough Borough Council,803753,Healthcare Homes,M17C,Adult Social Care Operations,Supplies and Services,"4,285.71",Nov-23
Slough Borough Council,803753,Healthcare Homes,M17C,Adult Social Care Operations,Supplies and Services,"2,544.86",Nov-23
Slough Borough Council,803753,Healthcare Homes,M18C,Adult Social Care Operations,Supplies and Services,"4,714.29",Nov-23
Slough Borough Council,803753,Healthcare Homes,M18C,Adult Social Care Operations,Supplies and Services,"4,714.29",Nov-23
Slough Borough Council,803753,Healthcare Homes,M18C,Adult Social Care Operations,Supplies and Services,"4,714.29",Nov-23
Slough Borough Council,803753,Healthcare Homes,M18C,Adult Social Care Operations,Supplies and Services,"4,714.29",Nov-23
Slough Borough Council,803753,Healthcare Homes,M18C,Adult Social Care Operations,Supplies and Services,"4,714.29",Nov-23
Slough Borough Council,803753,Healthcare Homes,M27C,Adult Social Care Operations,Supplies and Services,"3,120.00",Nov-23
Slough Borough Council,1686,Herald Chase,B660,Finance & Commercial,Supplies and Services,"1,082.51",Nov-23
Slough Borough Council,803447,Herewards House Residential Home,A03E,Adult Social Care Operations,Supplies and Services,"7,528.57",Nov-23
Slough Borough Council,803447,Herewards House Residential Home,A03E,Adult Social Care Operations,Supplies and Services,"7,285.71",Nov-23
Slough Borough Council,803447,Herewards House Residential Home,M25C,Adult Social Care Operations,Supplies and Services,"3,857.14",Nov-23
Slough Borough Council,803447,Herewards House Residential Home,M25C,Adult Social Care Operations,Supplies and Services,"3,642.86",Nov-23
Slough Borough Council,803447,Herewards House Residential Home,M25C,Adult Social Care Operations,Supplies and Services,"3,857.14",Nov-23
Slough Borough Council,803447,Herewards House Residential Home,M25C,Adult Social Care Operations,Supplies and Services,"3,985.71",Nov-23
Slough Borough Council,803447,Herewards House Residential Home,M25C,Adult Social Care Operations,Supplies and Services,"3,985.71",Nov-23
Slough Borough Council,803447,Herewards House Residential Home,M25C,Adult Social Care Operations,Supplies and Services,"3,857.14",Nov-23
Slough Borough Council,803447,Herewards House Residential Home,M25C,Adult Social Care Operations,Supplies and Services,"1,278.59",Nov-23
Slough Borough Council,803447,Herewards House Residential Home,M27C,Adult Social Care Operations,Supplies and Services,"3,642.86",Nov-23
Slough Borough Council,803447,Herewards House Residential Home,M27C,Adult Social Care Operations,Supplies and Services,"2,785.71",Nov-23
Slough Borough Council,803447,Herewards House Residential Home,M27C,Adult Social Care Operations,Supplies and Services,"3,642.86",Nov-23
Slough Borough Council,803447,Herewards House Residential Home,M27C,Adult Social Care Operations,Supplies and Services,"3,857.14",Nov-23
Slough Borough Council,3387,Herschel Grammar School,E610,Children & Families,Supplies and Services,"3,750.00",Nov-23
Slough Borough Council,3387,Herschel Grammar School,B297,Finance & Commercial,Government Grants,705.00,Nov-23
Slough Borough Council,850,Holy Family Catholic Primary School,E250,Children & Families,Supplies and Services,"327,106.18",Nov-23
Slough Borough Council,808797,Home School Tutoring Twickenham & Richmond,F449,Education & Inclusion,Supplies and Services,900.00,Nov-23
Slough Borough Council,808797,Home School Tutoring Twickenham & Richmond,F449,Education & Inclusion,Supplies and Services,"1,450.00",Nov-23
Slough Borough Council,808797,Home School Tutoring Twickenham & Richmond,F449,Education & Inclusion,Supplies and Services,"2,700.00",Nov-23
Slough Borough Council,2113,Housing Partners,H216,Community,External Receipts,"14,715.00",Nov-23
Slough Borough Council,808676,Human Engine Limited,P243,Capital,Supplies and Services,"3,500.00",Nov-23
Slough Borough Council,1914,Huntcliff Limited,J028,Place Management,Supplies and Services,"1,495.36",Nov-23
Slough Borough Council,808897,Imperial Breeze Healthcare South East Ltd,M42E,Adult Social Care Operations,Supplies and Services,"5,714.27",Nov-23
Slough Borough Council,808897,Imperial Breeze Healthcare South East Ltd,M42E,Adult Social Care Operations,Supplies and Services,685.73,Nov-23
Slough Borough Council,808897,Imperial Breeze Healthcare South East Ltd,M42E,Adult Social Care Operations,Supplies and Services,"4,119.65",Nov-23
Slough Borough Council,808897,Imperial Breeze Healthcare South East Ltd,M42E,Adult Social Care Operations,Supplies and Services,"5,028.56",Nov-23
Slough Borough Council,808897,Imperial Breeze Healthcare South East Ltd,M42E,Adult Social Care Operations,Supplies and Services,"1,371.44",Nov-23
Slough Borough Council,808897,Imperial Breeze Healthcare South East Ltd,M42E,Adult Social Care Operations,Supplies and Services,"3,625.29",Nov-23
Slough Borough Council,808897,Imperial Breeze Healthcare South East Ltd,M42E,Adult Social Care Operations,Supplies and Services,988.71,Nov-23
Slough Borough Council,808897,Imperial Breeze Healthcare South East Ltd,M44D,Adult Social Care Operations,Supplies and Services,678.58,Nov-23
Slough Borough Council,808897,Imperial Breeze Healthcare South East Ltd,M44D,Adult Social Care Operations,Supplies and Services,"3,800.00",Nov-23
Slough Borough Council,808897,Imperial Breeze Healthcare South East Ltd,M44D,Adult Social Care Operations,Supplies and Services,"3,121.42",Nov-23
Slough Borough Council,2917,Imperial Coaches Ltd,F123,Education & Inclusion,External Receipts,"4,590.00",Nov-23
Slough Borough Council,351,Imperial Polythene Products Ltd,D620,Place Operations,Supplies and Services,"2,016.00",Nov-23
Slough Borough Council,807666,Independence Home and Domicilary Care,M44F,Adult Social Care Operations,Supplies and Services,"3,381.17",Nov-23
Slough Borough Council,807666,Independence Home and Domicilary Care,M44F,Adult Social Care Operations,Supplies and Services,"2,940.66",Nov-23
Slough Borough Council,807666,Independence Home and Domicilary Care,M44F,Adult Social Care Operations,Supplies and Services,"3,348.00",Nov-23
Slough Borough Council,807666,Independence Home and Domicilary Care,M44F,Adult Social Care Operations,Supplies and Services,"1,544.58",Nov-23
Slough Borough Council,3570,Independent Supported Living And Disabilities Ltd,M42E,Adult Social Care Operations,Supplies and Services,"3,010.00",Nov-23
Slough Borough Council,3570,Independent Supported Living And Disabilities Ltd,M44D,Adult Social Care Operations,Supplies and Services,"3,044.16",Nov-23
Slough Borough Council,3570,Independent Supported Living And Disabilities Ltd,M44D,Adult Social Care Operations,Supplies and Services,"3,044.16",Nov-23
Slough Borough Council,3570,Independent Supported Living And Disabilities Ltd,M44D,Adult Social Care Operations,Supplies and Services,"3,044.16",Nov-23
Slough Borough Council,3570,Independent Supported Living And Disabilities Ltd,M44D,Adult Social Care Operations,Supplies and Services,"3,044.16",Nov-23
Slough Borough Council,3570,Independent Supported Living And Disabilities Ltd,M44E,Adult Social Care Operations,Supplies and Services,"1,050.00",Nov-23
Slough Borough Council,3570,Independent Supported Living And Disabilities Ltd,M44E,Adult Social Care Operations,Supplies and Services,"4,212.00",Nov-23
Slough Borough Council,3570,Independent Supported Living And Disabilities Ltd,M44E,Adult Social Care Operations,Supplies and Services,"1,440.00",Nov-23
Slough Borough Council,3570,Independent Supported Living And Disabilities Ltd,M44E,Adult Social Care Operations,Supplies and Services,"3,570.00",Nov-23
Slough Borough Council,3570,Independent Supported Living And Disabilities Ltd,M44F,Adult Social Care Operations,Supplies and Services,"2,608.00",Nov-23
Slough Borough Council,3172,Intelligent Transport Services,P212,Capital,Capital Charges,"2,467.80",Nov-23
Slough Borough Council,3172,Intelligent Transport Services,P235,Capital,Capital Charges,"1,500.00",Nov-23
Slough Borough Council,3172,Intelligent Transport Services,P238,Capital,Capital Charges,"2,467.80",Nov-23
Slough Borough Council,3172,Intelligent Transport Services,P238,Capital,Capital Charges,"1,645.20",Nov-23
Slough Borough Council,3172,Intelligent Transport Services,P238,Capital,Capital Charges,822.60,Nov-23
Slough Borough Council,3172,Intelligent Transport Services,P244,Capital,Capital Charges,"2,879.10",Nov-23
Slough Borough Council,3172,Intelligent Transport Services,P244,Capital,Capital Charges,"2,673.45",Nov-23
Slough Borough Council,3172,Intelligent Transport Services,P579,Capital,Capital Charges,"4,318.65",Nov-23
Slough Borough Council,3172,Intelligent Transport Services,P579,Capital,Capital Charges,"3,907.35",Nov-23
Slough Borough Council,3172,Intelligent Transport Services,P579,Capital,Capital Charges,"5,141.25",Nov-23
Slough Borough Council,3500,Iqra Slough Islamic Primary School,E480,Children & Families,Supplies and Services,"252,241.95",Nov-23
Slough Borough Council,2919,Islamic Shakhsiyah Foundation,F909,Children & Families,Supplies and Services,"12,290.18",Nov-23
Slough Borough Council,753,Jack In The Box Day Nursery,F909,Children & Families,Supplies and Services,"11,074.73",Nov-23
Slough Borough Council,809202,Jackie Bloyce,F640,Children & Families,Supplies and Services,"1,230.00",Nov-23
Slough Borough Council,733,James Elliman  School,E620,Children & Families,Supplies and Services,"21,752.33",Nov-23
Slough Borough Council,1970,James Elliman Academy,F200,Education & Inclusion,Salaries and Wages-Employees Expenses,503.30,Nov-23
Slough Borough Council,805666,James Rosental,C322,Community,Supplies and Services,652.50,Nov-23
Slough Borough Council,807308,JLA Total Care Ltd,H202,Community,Supplies and Services,549.18,Nov-23
Slough Borough Council,807308,JLA Total Care Ltd,H202,Community,Supplies and Services,549.18,Nov-23
Slough Borough Council,807308,JLA Total Care Ltd,H202,Community,Supplies and Services,549.18,Nov-23
Slough Borough Council,807308,JLA Total Care Ltd,H202,Community,Supplies and Services,549.18,Nov-23
Slough Borough Council,807308,JLA Total Care Ltd,H205,Housing (People) Services,Supplies and Services,760.81,Nov-23
Slough Borough Council,807308,JLA Total Care Ltd,H205,Housing (People) Services,Supplies and Services,760.81,Nov-23
Slough Borough Council,807308,JLA Total Care Ltd,H205,Housing (People) Services,Supplies and Services,760.81,Nov-23
Slough Borough Council,807308,JLA Total Care Ltd,H205,Housing (People) Services,Supplies and Services,760.81,Nov-23
Slough Borough Council,807807,John Gobongitta,A02A,People,Supplies and Services,"1,000.00",Nov-23
Slough Borough Council,809063,KARELINK LTD,M18C,Adult Social Care Operations,Supplies and Services,"3,321.43",Nov-23
Slough Borough Council,803815,Kathys Childcare,F909,Children & Families,Supplies and Services,952.35,Nov-23
Slough Borough Council,2620,Kcare Nursing Agency Ltd,M48C,Adult Social Care Operations,Supplies and Services,"4,000.00",Nov-23
Slough Borough Council,804887,KCare Nursing Agency Ltd Supported House Living,M42F,Adult Social Care Operations,Supplies and Services,"2,926.00",Nov-23
Slough Borough Council,804887,KCare Nursing Agency Ltd Supported House Living,M44F,Adult Social Care Operations,Supplies and Services,"2,493.50",Nov-23
Slough Borough Council,803658,Kendall Kingscott,P577,Capital,Capital Charges,"4,917.50",Nov-23
Slough Borough Council,808146,Kents Hill Care Home,M18C,Adult Social Care Operations,Supplies and Services,"3,914.86",Nov-23
Slough Borough Council,807742,Khalsa Primary School,E620,Children & Families,Supplies and Services,"15,642.00",Nov-23
Slough Borough Council,803916,Kharis Solutions,M42E,Adult Social Care Operations,Supplies and Services,"7,188.00",Nov-23
Slough Borough Council,803916,Kharis Solutions,M42E,Adult Social Care Operations,Supplies and Services,"7,188.00",Nov-23
Slough Borough Council,803916,Kharis Solutions,M42E,Adult Social Care Operations,Supplies and Services,"10,360.00",Nov-23
Slough Borough Council,803916,Kharis Solutions,M42E,Adult Social Care Operations,Supplies and Services,"10,360.00",Nov-23
Slough Borough Council,803916,Kharis Solutions,M44C,Adult Social Care Operations,Supplies and Services,551.62,Nov-23
Slough Borough Council,803916,Kharis Solutions,M44C,Adult Social Care Operations,Supplies and Services,"2,206.40",Nov-23
Slough Borough Council,803916,Kharis Solutions,M44C,Adult Social Care Operations,Supplies and Services,"2,206.40",Nov-23
Slough Borough Council,803916,Kharis Solutions,M44C,Adult Social Care Operations,Supplies and Services,"1,970.00",Nov-23
Slough Borough Council,803916,Kharis Solutions,M44C,Adult Social Care Operations,Supplies and Services,"1,751.14",Nov-23
Slough Borough Council,803916,Kharis Solutions,M48C,Adult Social Care Operations,Supplies and Services,"2,276.44",Nov-23
Slough Borough Council,803916,Kharis Solutions,M48C,Adult Social Care Operations,Supplies and Services,"2,276.44",Nov-23
Slough Borough Council,808599,lakhwinder Singh,H205,Housing (People) Services,Supplies and Services,"1,500.00",Nov-23
Slough Borough Council,808599,lakhwinder Singh,H205,Housing (People) Services,Supplies and Services,"1,500.00",Nov-23
Slough Borough Council,664,Langley Grammar School,E610,Children & Families,Supplies and Services,875.00,Nov-23
Slough Borough Council,664,Langley Grammar School,B297,Finance & Commercial,Government Grants,735.00,Nov-23
Slough Borough Council,1699,Langley Hall Primary Academy,E620,Children & Families,Supplies and Services,"4,750.00",Nov-23
Slough Borough Council,3001,Langley Haven Care Homes Ltd,M25C,Adult Social Care Operations,Supplies and Services,"4,287.21",Nov-23
Slough Borough Council,3001,Langley Haven Care Homes Ltd,M25C,Adult Social Care Operations,Supplies and Services,"4,740.39",Nov-23
Slough Borough Council,3001,Langley Haven Care Homes Ltd,M25D,Adult Social Care Operations,Supplies and Services,"4,287.21",Nov-23
Slough Borough Council,3001,Langley Haven Care Homes Ltd,M25D,Adult Social Care Operations,Supplies and Services,"4,287.21",Nov-23
Slough Borough Council,3001,Langley Haven Care Homes Ltd,M25D,Adult Social Care Operations,Supplies and Services,"4,144.31",Nov-23
Slough Borough Council,3001,Langley Haven Care Homes Ltd,M25D,Adult Social Care Operations,Supplies and Services,"4,430.12",Nov-23
Slough Borough Council,3001,Langley Haven Care Homes Ltd,M25D,Adult Social Care Operations,Supplies and Services,"4,287.21",Nov-23
Slough Borough Council,3001,Langley Haven Care Homes Ltd,M25D,Adult Social Care Operations,Supplies and Services,"4,287.21",Nov-23
Slough Borough Council,3001,Langley Haven Care Homes Ltd,M26E,Adult Social Care Operations,Supplies and Services,"4,424.36",Nov-23
Slough Borough Council,3001,Langley Haven Care Homes Ltd,M27C,Adult Social Care Operations,Supplies and Services,"4,287.21",Nov-23
Slough Borough Council,3001,Langley Haven Care Homes Ltd,M27C,Adult Social Care Operations,Supplies and Services,"4,287.21",Nov-23
Slough Borough Council,3001,Langley Haven Care Homes Ltd,M27C,Adult Social Care Operations,Supplies and Services,"4,287.21",Nov-23
Slough Borough Council,3001,Langley Haven Care Homes Ltd,M27C,Adult Social Care Operations,Supplies and Services,"4,287.21",Nov-23
Slough Borough Council,3001,Langley Haven Care Homes Ltd,M27C,Adult Social Care Operations,Supplies and Services,"4,287.21",Nov-23
Slough Borough Council,3001,Langley Haven Care Homes Ltd,M27F,Adult Social Care Operations,Supplies and Services,"2,238.51",Nov-23
Slough Borough Council,3001,Langley Haven Care Homes Ltd,M27F,Adult Social Care Operations,Supplies and Services,"4,740.39",Nov-23
Slough Borough Council,3001,Langley Haven Care Homes Ltd,M27F,Adult Social Care Operations,Supplies and Services,"4,287.21",Nov-23
Slough Borough Council,3001,Langley Haven Care Homes Ltd,M27F,Adult Social Care Operations,Supplies and Services,"4,287.21",Nov-23
Slough Borough Council,3001,Langley Haven Care Homes Ltd,M27F,Adult Social Care Operations,Supplies and Services,"4,287.21",Nov-23
Slough Borough Council,3001,Langley Haven Care Homes Ltd,M27F,Adult Social Care Operations,Supplies and Services,"4,287.21",Nov-23
Slough Borough Council,3001,Langley Haven Care Homes Ltd,M27F,Adult Social Care Operations,Supplies and Services,"4,430.12",Nov-23
Slough Borough Council,3001,Langley Haven Care Homes Ltd,M27F,Adult Social Care Operations,Supplies and Services,"4,224.86",Nov-23
Slough Borough Council,3001,Langley Haven Care Homes Ltd,M27F,Adult Social Care Operations,Supplies and Services,"1,671.43",Nov-23
Slough Borough Council,3001,Langley Haven Care Homes Ltd,M28C,Adult Social Care Operations,Supplies and Services,817.71,Nov-23
Slough Borough Council,3001,Langley Haven Care Homes Ltd,M28C,Adult Social Care Operations,Supplies and Services,"2,180.57",Nov-23
Slough Borough Council,3001,Langley Haven Care Homes Ltd,M28C,Adult Social Care Operations,Supplies and Services,"1,857.79",Nov-23
Slough Borough Council,3001,Langley Haven Care Homes Ltd,M28C,Adult Social Care Operations,Supplies and Services,"2,143.61",Nov-23
Slough Borough Council,3001,Langley Haven Care Homes Ltd,M29C,Adult Social Care Operations,Supplies and Services,"4,287.21",Nov-23
Slough Borough Council,3001,Langley Haven Care Homes Ltd,M29C,Adult Social Care Operations,Supplies and Services,"1,714.89",Nov-23
Slough Borough Council,3001,Langley Haven Care Homes Ltd,M29C,Adult Social Care Operations,Supplies and Services,"4,430.12",Nov-23
Slough Borough Council,3001,Langley Haven Care Homes Ltd,M29C,Adult Social Care Operations,Supplies and Services,"1,362.86",Nov-23
Slough Borough Council,3001,Langley Haven Care Homes Ltd,M29C,Adult Social Care Operations,Supplies and Services,"1,000.35",Nov-23
Slough Borough Council,3001,Langley Haven Care Homes Ltd,A06C,People Strategy & Commissioning,Supplies and Services,"-3,134.57",Nov-23
Slough Borough Council,3001,Langley Haven Care Homes Ltd,A06C,People Strategy & Commissioning,Supplies and Services,"4,088.57",Nov-23
Slough Borough Council,803686,Lascelles Park Nursery,F909,Children & Families,Supplies and Services,"1,903.82",Nov-23
Slough Borough Council,803686,Lascelles Park Nursery,F909,Children & Families,Supplies and Services,"18,949.31",Nov-23
Slough Borough Council,803686,Lascelles Park Nursery,F909,Children & Families,Supplies and Services,"1,316.25",Nov-23
Slough Borough Council,809192,Law Morgan Limited,B348,People,Supplies and Services,"4,287.00",Nov-23
Slough Borough Council,808111,Learning Curve Group Ltd,F210,Community,TP-Other Bodies,"1,159.30",Nov-23
Slough Borough Council,808423,Leo's Circus CIC,F382,Children & Families,Supplies and Services,701.45,Nov-23
Slough Borough Council,808892,Letee Limited,H205,Housing (People) Services,Supplies and Services,"2,015.00",Nov-23
Slough Borough Council,808892,Letee Limited,H205,Housing (People) Services,Supplies and Services,"1,705.00",Nov-23
Slough Borough Council,808892,Letee Limited,H205,Housing (People) Services,Supplies and Services,"1,705.00",Nov-23
Slough Borough Council,808892,Letee Limited,H205,Housing (People) Services,Supplies and Services,"6,820.00",Nov-23
Slough Borough Council,808892,Letee Limited,H205,Housing (People) Services,Supplies and Services,"6,975.00",Nov-23
Slough Borough Council,808892,Letee Limited,H205,Housing (People) Services,Supplies and Services,"1,705.00",Nov-23
Slough Borough Council,808892,Letee Limited,H205,Housing (People) Services,Supplies and Services,855.00,Nov-23
Slough Borough Council,301,Liberata Uk Limited,B048,Finance & Commercial,Supplies and Services,"10,983.29",Nov-23
Slough Borough Council,469,LimeBlue Innovation Limited,H213,Adult Social Care Operations,Supplies and Services,"1,640.00",Nov-23
Slough Borough Council,469,LimeBlue Innovation Limited,H213,Adult Social Care Operations,Supplies and Services,857.50,Nov-23
Slough Borough Council,469,LimeBlue Innovation Limited,H213,Adult Social Care Operations,Supplies and Services,"1,050.00",Nov-23
Slough Borough Council,469,LimeBlue Innovation Limited,P006,Capital,Capital Charges,857.20,Nov-23
Slough Borough Council,469,LimeBlue Innovation Limited,P006,Capital,Capital Charges,857.50,Nov-23
Slough Borough Council,397,Liquidlogic,A03D,People Adults,Supplies and Services,"13,199.00",Nov-23
Slough Borough Council,804692,Little Diamonds Pre School,F909,Children & Families,Supplies and Services,"17,000.00",Nov-23
Slough Borough Council,804692,Little Diamonds Pre School,F909,Children & Families,Supplies and Services,"1,628.10",Nov-23
Slough Borough Council,808192,Little Musketeers,F382,Children & Families,Supplies and Services,831.60,Nov-23
Slough Borough Council,808192,Little Musketeers,F382,Children & Families,Supplies and Services,"5,152.90",Nov-23
Slough Borough Council,808399,Little People Media (Trading as Families TV East Magazine),F382,Children & Families,Supplies and Services,976.00,Nov-23
Slough Borough Council,3791,Littledown Pru,E610,Children & Families,Supplies and Services,"17,100.00",Nov-23
Slough Borough Council,667,Littledown School,E610,Children & Families,Supplies and Services,"45,445.00",Nov-23
Slough Borough Council,807612,Logistics UK,D900,Place Operations,Salaries and Wages-Employees Expenses,"1,375.00",Nov-23
Slough Borough Council,1282,Long Close School,F462,Children & Families,Supplies and Services,"7,500.00",Nov-23
Slough Borough Council,1282,Long Close School,F909,Children & Families,Supplies and Services,"6,608.87",Nov-23
Slough Borough Council,2302,Look Ahead Care And Support,M42F,Adult Social Care Operations,Supplies and Services,"18,198.94",Nov-23
Slough Borough Council,2302,Look Ahead Care And Support,M42F,Adult Social Care Operations,Supplies and Services,"20,118.32",Nov-23
Slough Borough Council,2302,Look Ahead Care And Support,M42F,Adult Social Care Operations,Supplies and Services,"1,750.07",Nov-23
Slough Borough Council,2302,Look Ahead Care And Support,M44D,Adult Social Care Operations,Supplies and Services,"3,131.62",Nov-23
Slough Borough Council,2302,Look Ahead Care And Support,M44D,Adult Social Care Operations,Supplies and Services,"3,030.60",Nov-23
Slough Borough Council,2302,Look Ahead Care And Support,M44F,Adult Social Care Operations,Supplies and Services,"3,131.62",Nov-23
Slough Borough Council,2302,Look Ahead Care And Support,M44F,Adult Social Care Operations,Supplies and Services,"3,030.60",Nov-23
Slough Borough Council,2302,Look Ahead Care And Support,M44F,Adult Social Care Operations,Supplies and Services,"3,131.62",Nov-23
Slough Borough Council,2302,Look Ahead Care And Support,M44F,Adult Social Care Operations,Supplies and Services,"3,030.60",Nov-23
Slough Borough Council,2302,Look Ahead Care And Support,M44F,Adult Social Care Operations,Supplies and Services,"1,515.30",Nov-23
Slough Borough Council,2302,Look Ahead Care And Support,M44F,Adult Social Care Operations,Supplies and Services,"3,030.60",Nov-23
Slough Borough Council,2302,Look Ahead Care And Support,M44F,Adult Social Care Operations,Supplies and Services,875.01,Nov-23
Slough Borough Council,2302,Look Ahead Care And Support,M44F,Adult Social Care Operations,Supplies and Services,875.06,Nov-23
Slough Borough Council,2302,Look Ahead Care And Support,M44F,Adult Social Care Operations,Supplies and Services,"1,517.14",Nov-23
Slough Borough Council,2302,Look Ahead Care And Support,M44F,Adult Social Care Operations,Supplies and Services,"1,515.30",Nov-23
Slough Borough Council,2302,Look Ahead Care And Support,M44F,Adult Social Care Operations,Supplies and Services,"1,517.14",Nov-23
Slough Borough Council,2302,Look Ahead Care And Support,M44F,Adult Social Care Operations,Supplies and Services,"1,750.50",Nov-23
Slough Borough Council,2302,Look Ahead Care And Support,M44F,Adult Social Care Operations,Supplies and Services,792.86,Nov-23
Slough Borough Council,2302,Look Ahead Care And Support,M44F,Adult Social Care Operations,Supplies and Services,"1,750.07",Nov-23
Slough Borough Council,2302,Look Ahead Care And Support,M44F,Adult Social Care Operations,Supplies and Services,907.24,Nov-23
Slough Borough Council,2302,Look Ahead Care And Support,M44F,Adult Social Care Operations,Supplies and Services,875.23,Nov-23
Slough Borough Council,2302,Look Ahead Care And Support,M44F,Adult Social Care Operations,Supplies and Services,"1,517.14",Nov-23
Slough Borough Council,2302,Look Ahead Care And Support,M44F,Adult Social Care Operations,Supplies and Services,"1,750.07",Nov-23
Slough Borough Council,807840,Lumen,B282,Digital and Strategic IT,Supplies and Services,"-3,835.90",Nov-23
Slough Borough Council,807840,Lumen,B282,Digital and Strategic IT,Supplies and Services,"4,109.90",Nov-23
Slough Borough Council,1195,Lynch Hill (Foundation Primary) School,E620,Children & Families,Supplies and Services,"25,931.67",Nov-23
Slough Borough Council,1771,Lynch Hill Academy,E620,Children & Families,Supplies and Services,"13,724.32",Nov-23
Slough Borough Council,290,Lyreco Uk Limited,A02D,Adult Social Care Operations,Supplies and Services,566.78,Nov-23
Slough Borough Council,3424,M D Homes,M15F,Adult Social Care Operations,Supplies and Services,"4,950.00",Nov-23
Slough Borough Council,1874,Maccabee Pets Hotel,H253,Place Regulation,Supplies and Services,"2,460.00",Nov-23
Slough Borough Council,1874,Maccabee Pets Hotel,H253,Place Regulation,Supplies and Services,"3,720.00",Nov-23
Slough Borough Council,529,Marish Primary School,E620,Children & Families,Supplies and Services,"82,106.72",Nov-23
Slough Borough Council,809126,Marlston Assets Ltd T/A Leburnum Guest House,H205,Housing (People) Services,Supplies and Services,"20,847.50",Nov-23
Slough Borough Council,809126,Marlston Assets Ltd T/A Leburnum Guest House,H205,Housing (People) Services,Supplies and Services,"4,686.50",Nov-23
Slough Borough Council,809126,Marlston Assets Ltd T/A Leburnum Guest House,H205,Housing (People) Services,Supplies and Services,"20,175.00",Nov-23
Slough Borough Council,1886,Matrix Scm,B023,Finance & Commercial,Agency Staff,"507,163.90",Nov-23
Slough Borough Council,1886,Matrix Scm,B023,Finance & Commercial,Agency Staff,"519,695.25",Nov-23
Slough Borough Council,1886,Matrix Scm,B023,Finance & Commercial,Agency Staff,"486,053.86",Nov-23
Slough Borough Council,1886,Matrix Scm,B023,Finance & Commercial,Agency Staff,"500,601.60",Nov-23
Slough Borough Council,807684,Maverick Care  Ltd T/A Christies Care Windsor & Maidenhead,A07R,Adult Social Care Operations,Supplies and Services,659.50,Nov-23
Slough Borough Council,807684,Maverick Care  Ltd T/A Christies Care Windsor & Maidenhead,M44C,Adult Social Care Operations,Supplies and Services,"1,392.00",Nov-23
Slough Borough Council,807684,Maverick Care  Ltd T/A Christies Care Windsor & Maidenhead,M44C,Adult Social Care Operations,Supplies and Services,"1,860.00",Nov-23
Slough Borough Council,807684,Maverick Care  Ltd T/A Christies Care Windsor & Maidenhead,M44C,Adult Social Care Operations,Supplies and Services,812.04,Nov-23
Slough Borough Council,807684,Maverick Care  Ltd T/A Christies Care Windsor & Maidenhead,M44C,Adult Social Care Operations,Supplies and Services,961.00,Nov-23
Slough Borough Council,807684,Maverick Care  Ltd T/A Christies Care Windsor & Maidenhead,M44C,Adult Social Care Operations,Supplies and Services,924.00,Nov-23
Slough Borough Council,807684,Maverick Care  Ltd T/A Christies Care Windsor & Maidenhead,M44C,Adult Social Care Operations,Supplies and Services,"1,321.50",Nov-23
Slough Borough Council,807684,Maverick Care  Ltd T/A Christies Care Windsor & Maidenhead,M44D,Adult Social Care Operations,Supplies and Services,"4,561.25",Nov-23
Slough Borough Council,807684,Maverick Care  Ltd T/A Christies Care Windsor & Maidenhead,M45C,Adult Social Care Operations,Supplies and Services,529.96,Nov-23
Slough Borough Council,1139,Mediation Buckinghamshire,J021,Place Management,Supplies and Services,"6,000.00",Nov-23
Slough Borough Council,807009,Medigold Health Consultancy Ltd,B348,People,Salaries and Wages-Employees Expenses,"4,551.25",Nov-23
Slough Borough Council,2237,Metts Ltd,M50A,Place Operations,Transport,"1,767.88",Nov-23
Slough Borough Council,1496,Mighty Acorns Day Nursery Ltd,F909,Children & Families,Supplies and Services,"2,064.61",Nov-23
Slough Borough Council,1496,Mighty Acorns Day Nursery Ltd,F909,Children & Families,Supplies and Services,"12,363.62",Nov-23
Slough Borough Council,1496,Mighty Acorns Day Nursery Ltd,F909,Children & Families,Supplies and Services,"2,835.00",Nov-23
Slough Borough Council,808716,Mini Todds Ltd,F909,Children & Families,Supplies and Services,"1,045.20",Nov-23
Slough Borough Council,808716,Mini Todds Ltd,F909,Children & Families,Supplies and Services,"4,808.70",Nov-23
Slough Borough Council,808716,Mini Todds Ltd,F909,Children & Families,Supplies and Services,"1,053.00",Nov-23
Slough Borough Council,806737,Mishcon de Reya LLP,P405,Capital,Capital Charges,"5,854.50",Nov-23
Slough Borough Council,808747,MK HOUSING LTD,H205,Housing (People) Services,Supplies and Services,"16,985.00",Nov-23
Slough Borough Council,808747,MK HOUSING LTD,H205,Housing (People) Services,Supplies and Services,"20,642.00",Nov-23
Slough Borough Council,805121,MMCG (2) Limited,A02E,Adult Social Care Operations,Supplies and Services,954.72,Nov-23
Slough Borough Council,805121,MMCG (2) Limited,M15D,Adult Social Care Operations,Supplies and Services,"3,460.86",Nov-23
Slough Borough Council,805121,MMCG (2) Limited,M15D,Adult Social Care Operations,Supplies and Services,"3,699.54",Nov-23
Slough Borough Council,805121,MMCG (2) Limited,M15D,Adult Social Care Operations,Supplies and Services,"3,580.20",Nov-23
Slough Borough Council,805121,MMCG (2) Limited,M15D,Adult Social Care Operations,Supplies and Services,"3,699.54",Nov-23
Slough Borough Council,805121,MMCG (2) Limited,M15D,Adult Social Care Operations,Supplies and Services,"3,699.54",Nov-23
Slough Borough Council,805121,MMCG (2) Limited,M15D,Adult Social Care Operations,Supplies and Services,"3,699.54",Nov-23
Slough Borough Council,805121,MMCG (2) Limited,M15D,Adult Social Care Operations,Supplies and Services,"3,699.54",Nov-23
Slough Borough Council,805121,MMCG (2) Limited,M15D,Adult Social Care Operations,Supplies and Services,"3,699.54",Nov-23
Slough Borough Council,805121,MMCG (2) Limited,M15D,Adult Social Care Operations,Supplies and Services,"3,580.20",Nov-23
Slough Borough Council,805121,MMCG (2) Limited,M15D,Adult Social Care Operations,Supplies and Services,"1,312.74",Nov-23
Slough Borough Council,805121,MMCG (2) Limited,M15D,Adult Social Care Operations,Supplies and Services,"3,699.54",Nov-23
Slough Borough Council,805121,MMCG (2) Limited,M15D,Adult Social Care Operations,Supplies and Services,"3,699.54",Nov-23
Slough Borough Council,805121,MMCG (2) Limited,M15D,Adult Social Care Operations,Supplies and Services,"3,580.20",Nov-23
Slough Borough Council,805121,MMCG (2) Limited,M15D,Adult Social Care Operations,Supplies and Services,"3,580.20",Nov-23
Slough Borough Council,805121,MMCG (2) Limited,M15D,Adult Social Care Operations,Supplies and Services,"3,699.54",Nov-23
Slough Borough Council,805121,MMCG (2) Limited,M15F,Adult Social Care Operations,Supplies and Services,"3,699.54",Nov-23
Slough Borough Council,805121,MMCG (2) Limited,M17C,Adult Social Care Operations,Supplies and Services,"3,699.54",Nov-23
Slough Borough Council,805121,MMCG (2) Limited,M17C,Adult Social Care Operations,Supplies and Services,"3,699.54",Nov-23
Slough Borough Council,805121,MMCG (2) Limited,M17C,Adult Social Care Operations,Supplies and Services,"1,606.50",Nov-23
Slough Borough Council,805121,MMCG (2) Limited,M17C,Adult Social Care Operations,Supplies and Services,"-3,699.54",Nov-23
Slough Borough Council,805121,MMCG (2) Limited,M17C,Adult Social Care Operations,Supplies and Services,"3,580.20",Nov-23
Slough Borough Council,805121,MMCG (2) Limited,M18C,Adult Social Care Operations,Supplies and Services,"3,699.54",Nov-23
Slough Borough Council,805121,MMCG (2) Limited,M18C,Adult Social Care Operations,Supplies and Services,"3,699.54",Nov-23
Slough Borough Council,805121,MMCG (2) Limited,M18C,Adult Social Care Operations,Supplies and Services,"4,562.80",Nov-23
Slough Borough Council,805121,MMCG (2) Limited,M18C,Adult Social Care Operations,Supplies and Services,"3,699.54",Nov-23
Slough Borough Council,805121,MMCG (2) Limited,M18C,Adult Social Care Operations,Supplies and Services,"3,929.04",Nov-23
Slough Borough Council,805121,MMCG (2) Limited,M18C,Adult Social Care Operations,Supplies and Services,"3,699.54",Nov-23
Slough Borough Council,805121,MMCG (2) Limited,M18C,Adult Social Care Operations,Supplies and Services,"4,562.80",Nov-23
Slough Borough Council,805121,MMCG (2) Limited,M25C,Adult Social Care Operations,Supplies and Services,"3,699.54",Nov-23
Slough Borough Council,805121,MMCG (2) Limited,M25C,Adult Social Care Operations,Supplies and Services,"3,699.54",Nov-23
Slough Borough Council,805121,MMCG (2) Limited,M25C,Adult Social Care Operations,Supplies and Services,"3,699.54",Nov-23
Slough Borough Council,805121,MMCG (2) Limited,M25C,Adult Social Care Operations,Supplies and Services,"3,699.54",Nov-23
Slough Borough Council,805121,MMCG (2) Limited,M25C,Adult Social Care Operations,Supplies and Services,"3,699.54",Nov-23
Slough Borough Council,805121,MMCG (2) Limited,M25C,Adult Social Care Operations,Supplies and Services,"3,699.54",Nov-23
Slough Borough Council,805121,MMCG (2) Limited,M27C,Adult Social Care Operations,Supplies and Services,"3,699.54",Nov-23
Slough Borough Council,805121,MMCG (2) Limited,M27C,Adult Social Care Operations,Supplies and Services,"3,557.25",Nov-23
Slough Borough Council,805121,MMCG (2) Limited,M27C,Adult Social Care Operations,Supplies and Services,"3,580.20",Nov-23
Slough Borough Council,805121,MMCG (2) Limited,M27C,Adult Social Care Operations,Supplies and Services,"2,625.48",Nov-23
Slough Borough Council,805121,MMCG (2) Limited,M27C,Adult Social Care Operations,Supplies and Services,"3,699.54",Nov-23
Slough Borough Council,805121,MMCG (2) Limited,M27C,Adult Social Care Operations,Supplies and Services,"3,699.54",Nov-23
Slough Borough Council,805121,MMCG (2) Limited,M27C,Adult Social Care Operations,Supplies and Services,"3,699.54",Nov-23
Slough Borough Council,805121,MMCG (2) Limited,M28C,Adult Social Care Operations,Supplies and Services,"3,580.20",Nov-23
Slough Borough Council,805121,MMCG (2) Limited,M28C,Adult Social Care Operations,Supplies and Services,"1,312.74",Nov-23
Slough Borough Council,805121,MMCG (2) Limited,M28C,Adult Social Care Operations,Supplies and Services,716.04,Nov-23
Slough Borough Council,805121,MMCG (2) Limited,M28C,Adult Social Care Operations,Supplies and Services,"2,744.82",Nov-23
Slough Borough Council,805121,MMCG (2) Limited,M29C,Adult Social Care Operations,Supplies and Services,"2,639.25",Nov-23
Slough Borough Council,805121,MMCG (2) Limited,M29C,Adult Social Care Operations,Supplies and Services,918.00,Nov-23
Slough Borough Council,2121,Mnk Estates (Uk) Ltd,M07E,People Adults,Supplies and Services,"2,100.00",Nov-23
Slough Borough Council,2121,Mnk Estates (Uk) Ltd,M51C,Adult Social Care Operations,Supplies and Services,"2,100.00",Nov-23
Slough Borough Council,2121,Mnk Estates (Uk) Ltd,M51C,Adult Social Care Operations,Supplies and Services,"-1,584.29",Nov-23
Slough Borough Council,2121,Mnk Estates (Uk) Ltd,M51C,Adult Social Care Operations,Supplies and Services,"2,100.00",Nov-23
Slough Borough Council,2121,Mnk Estates (Uk) Ltd,M51C,Adult Social Care Operations,Supplies and Services,"-1,940.00",Nov-23
Slough Borough Council,2121,Mnk Estates (Uk) Ltd,M51C,Adult Social Care Operations,Supplies and Services,"2,100.00",Nov-23
Slough Borough Council,2121,Mnk Estates (Uk) Ltd,M51C,Adult Social Care Operations,Supplies and Services,"-1,604.29",Nov-23
Slough Borough Council,2121,Mnk Estates (Uk) Ltd,M51C,Adult Social Care Operations,Supplies and Services,"2,100.00",Nov-23
Slough Borough Council,2121,Mnk Estates (Uk) Ltd,M51C,Adult Social Care Operations,Supplies and Services,"-1,940.00",Nov-23
Slough Borough Council,2121,Mnk Estates (Uk) Ltd,M51C,Adult Social Care Operations,Supplies and Services,"2,100.00",Nov-23
Slough Borough Council,2121,Mnk Estates (Uk) Ltd,M51C,Adult Social Care Operations,Supplies and Services,"-1,630.00",Nov-23
Slough Borough Council,2121,Mnk Estates (Uk) Ltd,M51C,Adult Social Care Operations,Supplies and Services,"2,100.00",Nov-23
Slough Borough Council,2121,Mnk Estates (Uk) Ltd,M51C,Adult Social Care Operations,Supplies and Services,"-1,960.00",Nov-23
Slough Borough Council,2121,Mnk Estates (Uk) Ltd,M51C,Adult Social Care Operations,Supplies and Services,"2,100.00",Nov-23
Slough Borough Council,2121,Mnk Estates (Uk) Ltd,M51C,Adult Social Care Operations,Supplies and Services,"-1,960.00",Nov-23
Slough Borough Council,804815,Molly Southall,C322,Community,Supplies and Services,681.75,Nov-23
Slough Borough Council,2115,Montagu Evans Llp,B081,Place Strategy & Infrastructure,Agency Staff,"6,750.00",Nov-23
Slough Borough Council,2115,Montagu Evans Llp,B081,Place Strategy & Infrastructure,Supplies and Services,"6,700.00",Nov-23
Slough Borough Council,2115,Montagu Evans Llp,P247,Capital,Capital Charges,"6,450.00",Nov-23
Slough Borough Council,2166,Montague Swift Recruitment Ltd,F640,Children & Families,Agency Staff,"6,000.00",Nov-23
Slough Borough Council,1140,Montem Guesthouse,H205,Housing (People) Services,Supplies and Services,"78,284.55",Nov-23
Slough Borough Council,3302,Montem Primary School,E620,Children & Families,Supplies and Services,"27,965.33",Nov-23
Slough Borough Council,808526,Mr James Wright,C322,Community,Supplies and Services,"1,200.00",Nov-23
Slough Borough Council,808526,Mr James Wright,C322,Community,Supplies and Services,"1,120.00",Nov-23
Slough Borough Council,807501,Mrs Parvinder Kaur Bhandal,H205,Housing (People) Services,Supplies and Services,"28,042.00",Nov-23
Slough Borough Council,806858,MUDDY BOOTS DAY NURSERY LTD,F909,Children & Families,Supplies and Services,"10,165.05",Nov-23
Slough Borough Council,806858,MUDDY BOOTS DAY NURSERY LTD,F909,Children & Families,Supplies and Services,850.50,Nov-23
Slough Borough Council,809231,MZ Holdings LTD,H218,Community,Supplies and Services,"10,732.76",Nov-23
Slough Borough Council,805369,NAS Services Limited,M42E,Adult Social Care Operations,Supplies and Services,"8,496.94",Nov-23
Slough Borough Council,1945,Neem Tree Care Ltd,M17C,Adult Social Care Operations,Supplies and Services,"3,604.68",Nov-23
Slough Borough Council,1216,Network Rail Infrastructure Ltd,P213,Capital,Capital Charges,"1,264.72",Nov-23
Slough Borough Council,1216,Network Rail Infrastructure Ltd,P213,Capital,Capital Charges,"1,516.51",Nov-23
Slough Borough Council,1216,Network Rail Infrastructure Ltd,P213,Capital,Capital Charges,"1,252.24",Nov-23
Slough Borough Council,1216,Network Rail Infrastructure Ltd,P213,Capital,Capital Charges,"1,688.78",Nov-23
Slough Borough Council,1216,Network Rail Infrastructure Ltd,P213,Capital,Capital Charges,"3,742.78",Nov-23
Slough Borough Council,1216,Network Rail Infrastructure Ltd,P213,Capital,Capital Charges,"2,214.66",Nov-23
Slough Borough Council,1216,Network Rail Infrastructure Ltd,P213,Capital,Capital Charges,574.85,Nov-23
Slough Borough Council,1216,Network Rail Infrastructure Ltd,P213,Capital,Capital Charges,"7,380.70",Nov-23
Slough Borough Council,1216,Network Rail Infrastructure Ltd,P213,Capital,Capital Charges,"6,362.30",Nov-23
Slough Borough Council,1216,Network Rail Infrastructure Ltd,P213,Capital,Capital Charges,"5,422.33",Nov-23
Slough Borough Council,1216,Network Rail Infrastructure Ltd,P213,Capital,Capital Charges,"1,567.01",Nov-23
Slough Borough Council,1216,Network Rail Infrastructure Ltd,P213,Capital,Capital Charges,"6,176.69",Nov-23
Slough Borough Council,1216,Network Rail Infrastructure Ltd,P213,Capital,Capital Charges,"21,046.34",Nov-23
Slough Borough Council,1216,Network Rail Infrastructure Ltd,P213,Capital,Capital Charges,"4,277.61",Nov-23
Slough Borough Council,1216,Network Rail Infrastructure Ltd,P213,Capital,Capital Charges,"6,673.43",Nov-23
Slough Borough Council,1216,Network Rail Infrastructure Ltd,P213,Capital,Capital Charges,"1,658.17",Nov-23
Slough Borough Council,2469,Newlands Girls School,F552,Children & Families,Supplies and Services,"1,199.21",Nov-23
Slough Borough Council,601,Nfer Trading Ltd,C001,Place Operations,Premises,"1,607.47",Nov-23
Slough Borough Council,601,Nfer Trading Ltd,C001,Place Operations,Premises,"1,569.86",Nov-23
Slough Borough Council,1864,Noahs Ark Environmental Services Ltd,H253,Place Regulation,Supplies and Services,"4,070.00",Nov-23
Slough Borough Council,1864,Noahs Ark Environmental Services Ltd,H253,Place Regulation,Supplies and Services,"2,733.36",Nov-23
Slough Borough Council,3717,Norwood Schools Limited,M26E,Adult Social Care Operations,Supplies and Services,"4,243.52",Nov-23
Slough Borough Council,3717,Norwood Schools Limited,M26E,Adult Social Care Operations,External Receipts,-630.80,Nov-23
Slough Borough Council,2021,Now Medical,H207,Community,Supplies and Services,640.00,Nov-23
Slough Borough Council,803238,Oasis Care and Training Agency,A07R,Adult Social Care Operations,Supplies and Services,988.42,Nov-23
Slough Borough Council,803238,Oasis Care and Training Agency,A07R,Adult Social Care Operations,Supplies and Services,885.29,Nov-23
Slough Borough Council,803238,Oasis Care and Training Agency,A07R,Adult Social Care Operations,Supplies and Services,709.84,Nov-23
Slough Borough Council,803238,Oasis Care and Training Agency,A07R,Adult Social Care Operations,Supplies and Services,653.22,Nov-23
Slough Borough Council,803238,Oasis Care and Training Agency,A07R,Adult Social Care Operations,Supplies and Services,"1,925.28",Nov-23
Slough Borough Council,803238,Oasis Care and Training Agency,A07R,Adult Social Care Operations,Supplies and Services,"2,165.96",Nov-23
Slough Borough Council,803238,Oasis Care and Training Agency,A07R,Adult Social Care Operations,Supplies and Services,"2,388.96",Nov-23
Slough Borough Council,803238,Oasis Care and Training Agency,A07R,Adult Social Care Operations,Supplies and Services,722.00,Nov-23
Slough Borough Council,803238,Oasis Care and Training Agency,M41D,Adult Social Care Operations,Supplies and Services,663.60,Nov-23
Slough Borough Council,803238,Oasis Care and Training Agency,M41D,Adult Social Care Operations,Supplies and Services,601.64,Nov-23
Slough Borough Council,803238,Oasis Care and Training Agency,M41D,Adult Social Care Operations,Supplies and Services,601.64,Nov-23
Slough Borough Council,803238,Oasis Care and Training Agency,M41D,Adult Social Care Operations,Supplies and Services,663.60,Nov-23
Slough Borough Council,803238,Oasis Care and Training Agency,M44C,Adult Social Care Operations,Supplies and Services,"2,388.96",Nov-23
Slough Borough Council,803238,Oasis Care and Training Agency,M44C,Adult Social Care Operations,Supplies and Services,796.32,Nov-23
Slough Borough Council,803238,Oasis Care and Training Agency,M44C,Adult Social Care Operations,Supplies and Services,929.04,Nov-23
Slough Borough Council,803238,Oasis Care and Training Agency,M44C,Adult Social Care Operations,Supplies and Services,663.60,Nov-23
Slough Borough Council,803238,Oasis Care and Training Agency,M44C,Adult Social Care Operations,Supplies and Services,796.32,Nov-23
Slough Borough Council,803238,Oasis Care and Training Agency,M44C,Adult Social Care Operations,Supplies and Services,"1,194.48",Nov-23
Slough Borough Council,803238,Oasis Care and Training Agency,M44C,Adult Social Care Operations,Supplies and Services,"1,061.76",Nov-23
Slough Borough Council,803238,Oasis Care and Training Agency,M44C,Adult Social Care Operations,Supplies and Services,"1,478.88",Nov-23
Slough Borough Council,803238,Oasis Care and Training Agency,M44C,Adult Social Care Operations,Supplies and Services,"1,327.20",Nov-23
Slough Borough Council,803238,Oasis Care and Training Agency,M44C,Adult Social Care Operations,Supplies and Services,"2,957.76",Nov-23
Slough Borough Council,803238,Oasis Care and Training Agency,M44C,Adult Social Care Operations,Supplies and Services,"1,090.20",Nov-23
Slough Borough Council,803238,Oasis Care and Training Agency,M44C,Adult Social Care Operations,Supplies and Services,"2,256.24",Nov-23
Slough Borough Council,803238,Oasis Care and Training Agency,M44C,Adult Social Care Operations,Supplies and Services,663.60,Nov-23
Slough Borough Council,803238,Oasis Care and Training Agency,M44C,Adult Social Care Operations,Supplies and Services,"1,194.48",Nov-23
Slough Borough Council,803238,Oasis Care and Training Agency,M44C,Adult Social Care Operations,Supplies and Services,"1,270.32",Nov-23
Slough Borough Council,803238,Oasis Care and Training Agency,M44C,Adult Social Care Operations,Supplies and Services,734.70,Nov-23
Slough Borough Council,803238,Oasis Care and Training Agency,M44C,Adult Social Care Operations,Supplies and Services,929.04,Nov-23
Slough Borough Council,803238,Oasis Care and Training Agency,M44C,Adult Social Care Operations,Supplies and Services,"2,388.96",Nov-23
Slough Borough Council,803238,Oasis Care and Training Agency,M44C,Adult Social Care Operations,Supplies and Services,"2,784.79",Nov-23
Slough Borough Council,803238,Oasis Care and Training Agency,M44C,Adult Social Care Operations,Supplies and Services,796.32,Nov-23
Slough Borough Council,803238,Oasis Care and Training Agency,M44C,Adult Social Care Operations,Supplies and Services,929.04,Nov-23
Slough Borough Council,803238,Oasis Care and Training Agency,M44C,Adult Social Care Operations,Supplies and Services,"1,440.96",Nov-23
Slough Borough Council,803238,Oasis Care and Training Agency,M44C,Adult Social Care Operations,Supplies and Services,"1,592.64",Nov-23
Slough Borough Council,803238,Oasis Care and Training Agency,M44C,Adult Social Care Operations,Supplies and Services,"2,015.00",Nov-23
Slough Borough Council,803238,Oasis Care and Training Agency,M44D,Adult Social Care Operations,Supplies and Services,948.00,Nov-23
Slough Borough Council,803238,Oasis Care and Training Agency,M44D,Adult Social Care Operations,Supplies and Services,"1,080.72",Nov-23
Slough Borough Council,803238,Oasis Care and Training Agency,M44D,Adult Social Care Operations,Supplies and Services,929.04,Nov-23
Slough Borough Council,803238,Oasis Care and Training Agency,M44D,Adult Social Care Operations,Supplies and Services,"1,592.64",Nov-23
Slough Borough Council,803238,Oasis Care and Training Agency,M44D,Adult Social Care Operations,Supplies and Services,891.12,Nov-23
Slough Borough Council,803238,Oasis Care and Training Agency,M44D,Adult Social Care Operations,Supplies and Services,"2,388.96",Nov-23
Slough Borough Council,803238,Oasis Care and Training Agency,M44D,Adult Social Care Operations,Supplies and Services,"1,459.92",Nov-23
Slough Borough Council,803238,Oasis Care and Training Agency,M44D,Adult Social Care Operations,Supplies and Services,924.04,Nov-23
Slough Borough Council,803238,Oasis Care and Training Agency,M44F,Adult Social Care Operations,Supplies and Services,"1,516.80",Nov-23
Slough Borough Council,803238,Oasis Care and Training Agency,M44F,Adult Social Care Operations,Supplies and Services,"2,388.96",Nov-23
Slough Borough Council,803238,Oasis Care and Training Agency,M45C,Adult Social Care Operations,Supplies and Services,"1,194.48",Nov-23
Slough Borough Council,803238,Oasis Care and Training Agency,M45C,Adult Social Care Operations,Supplies and Services,663.60,Nov-23
Slough Borough Council,803238,Oasis Care and Training Agency,M45C,Adult Social Care Operations,Supplies and Services,597.24,Nov-23
Slough Borough Council,803238,Oasis Care and Training Agency,M45C,Adult Social Care Operations,Supplies and Services,"1,450.44",Nov-23
Slough Borough Council,803238,Oasis Care and Training Agency,M45C,Adult Social Care Operations,Supplies and Services,"1,194.48",Nov-23
Slough Borough Council,803238,Oasis Care and Training Agency,M45C,Adult Social Care Operations,Supplies and Services,842.32,Nov-23
Slough Borough Council,803238,Oasis Care and Training Agency,M45C,Adult Social Care Operations,Supplies and Services,809.45,Nov-23
Slough Borough Council,803238,Oasis Care and Training Agency,M45C,Adult Social Care Operations,Supplies and Services,682.56,Nov-23
Slough Borough Council,803238,Oasis Care and Training Agency,M45C,Adult Social Care Operations,Supplies and Services,929.04,Nov-23
Slough Borough Council,803238,Oasis Care and Training Agency,M45C,Adult Social Care Operations,Supplies and Services,663.60,Nov-23
Slough Borough Council,803238,Oasis Care and Training Agency,M45C,Adult Social Care Operations,Supplies and Services,"1,194.48",Nov-23
Slough Borough Council,803238,Oasis Care and Training Agency,M45C,Adult Social Care Operations,Supplies and Services,"1,033.32",Nov-23
Slough Borough Council,803238,Oasis Care and Training Agency,M45C,Adult Social Care Operations,Supplies and Services,711.00,Nov-23
Slough Borough Council,803238,Oasis Care and Training Agency,M45C,Adult Social Care Operations,Supplies and Services,663.60,Nov-23
Slough Borough Council,803238,Oasis Care and Training Agency,M48C,Adult Social Care Operations,Supplies and Services,"3,185.28",Nov-23
Slough Borough Council,1767,Olive Tree Montessori Ltd,F909,Children & Families,Supplies and Services,"2,053.46",Nov-23
Slough Borough Council,1767,Olive Tree Montessori Ltd,F909,Children & Families,Supplies and Services,"23,357.82",Nov-23
Slough Borough Council,1767,Olive Tree Montessori Ltd,F909,Children & Families,Supplies and Services,"2,045.25",Nov-23
Slough Borough Council,3603,Olympia Transport Limited,F123,Education & Inclusion,External Receipts,"15,935.00",Nov-23
Slough Borough Council,804687,Optalis Limited,M42E,Adult Social Care Operations,Supplies and Services,"5,642.13",Nov-23
Slough Borough Council,804687,Optalis Limited,M42E,Adult Social Care Operations,Supplies and Services,"4,807.26",Nov-23
Slough Borough Council,803490,Optimum Specialised Home Limited,M26E,Adult Social Care Operations,Supplies and Services,"8,400.00",Nov-23
Slough Borough Council,803490,Optimum Specialised Home Limited,M26E,Adult Social Care Operations,Supplies and Services,"7,200.00",Nov-23
Slough Borough Council,803490,Optimum Specialised Home Limited,M26E,Adult Social Care Operations,Supplies and Services,"7,180.00",Nov-23
Slough Borough Council,803490,Optimum Specialised Home Limited,M26E,Adult Social Care Operations,Supplies and Services,"8,400.00",Nov-23
Slough Borough Council,803490,Optimum Specialised Home Limited,M26E,Adult Social Care Operations,Supplies and Services,"7,200.00",Nov-23
Slough Borough Council,803490,Optimum Specialised Home Limited,M26E,Adult Social Care Operations,Supplies and Services,"7,180.00",Nov-23
Slough Borough Council,808579,Origin Amenity Solutions Ltd,D750,Place Operations,Supplies and Services,"1,723.50",Nov-23
Slough Borough Council,805011,Osborne Property Services Limited,P419,Capital,Supplies and Services,"37,788.39",Nov-23
Slough Borough Council,805011,Osborne Property Services Limited,J607,Place Management,Premises,"15,143.70",Nov-23
Slough Borough Council,805011,Osborne Property Services Limited,J607,Place Management,Premises,"226,415.81",Nov-23
Slough Borough Council,805011,Osborne Property Services Limited,J015,Place Management,Premises,"79,164.27",Nov-23
Slough Borough Council,805011,Osborne Property Services Limited,H206,Community,Premises,"2,823.01",Nov-23
Slough Borough Council,805011,Osborne Property Services Limited,H206,Community,Premises,"1,592.70",Nov-23
Slough Borough Council,805011,Osborne Property Services Limited,H206,Community,Premises,"20,429.62",Nov-23
Slough Borough Council,805011,Osborne Property Services Limited,H206,Community,Premises,"8,252.90",Nov-23
Slough Borough Council,805011,Osborne Property Services Limited,H206,Community,Premises,"25,254.63",Nov-23
Slough Borough Council,805011,Osborne Property Services Limited,J606,Place Management,Supplies and Services,"142,598.82",Nov-23
Slough Borough Council,805011,Osborne Property Services Limited,P409,Capital,Capital Charges,"33,916.47",Nov-23
Slough Borough Council,805011,Osborne Property Services Limited,P412,Capital,Capital Charges,"38,149.99",Nov-23
Slough Borough Council,805011,Osborne Property Services Limited,P412,Capital,Capital Charges,"9,479.91",Nov-23
Slough Borough Council,805011,Osborne Property Services Limited,P413,Capital,Capital Charges,"16,703.84",Nov-23
Slough Borough Council,805011,Osborne Property Services Limited,P413,Capital,Capital Charges,"92,135.47",Nov-23
Slough Borough Council,805011,Osborne Property Services Limited,P415,Capital,Capital Charges,"27,964.73",Nov-23
Slough Borough Council,805011,Osborne Property Services Limited,P415,Capital,Capital Charges,"1,599.23",Nov-23
Slough Borough Council,805011,Osborne Property Services Limited,P417,Capital,Capital Charges,"185,766.42",Nov-23
Slough Borough Council,805011,Osborne Property Services Limited,P418,Capital,Capital Charges,"1,903.44",Nov-23
Slough Borough Council,805011,Osborne Property Services Limited,P418,Capital,Capital Charges,"25,291.96",Nov-23
Slough Borough Council,805011,Osborne Property Services Limited,P419,Capital,Capital Charges,"110,568.17",Nov-23
Slough Borough Council,805011,Osborne Property Services Limited,P419,Capital,Capital Charges,"24,726.87",Nov-23
Slough Borough Council,805011,Osborne Property Services Limited,P422,Capital,Capital Charges,"102,486.59",Nov-23
Slough Borough Council,805011,Osborne Property Services Limited,P431,Capital,Capital Charges,"204,964.68",Nov-23
Slough Borough Council,805011,Osborne Property Services Limited,P433,Capital,Capital Charges,"17,426.69",Nov-23
Slough Borough Council,805011,Osborne Property Services Limited,P438,Capital,Capital Charges,"4,207.04",Nov-23
Slough Borough Council,805011,Osborne Property Services Limited,P547,Capital,Capital Charges,"45,764.15",Nov-23
Slough Borough Council,805011,Osborne Property Services Limited,J607,Place Management,Supplies and Services,"83,091.72",Nov-23
Slough Borough Council,805011,Osborne Property Services Limited,J606,Place Management,Supplies and Services,"276,261.60",Nov-23
Slough Borough Council,805011,Osborne Property Services Limited,J607,Place Management,Supplies and Services,809.19,Nov-23
Slough Borough Council,3371,Our Lady Of Peace Catholic Primary and Nursery School,E340,Children & Families,Supplies and Services,"131,907.22",Nov-23
Slough Borough Council,680,Oxford House Community Care,A07R,Adult Social Care Operations,Supplies and Services,704.36,Nov-23
Slough Borough Council,680,Oxford House Community Care,M44C,Adult Social Care Operations,Supplies and Services,"1,395.07",Nov-23
Slough Borough Council,680,Oxford House Community Care,M44C,Adult Social Care Operations,Supplies and Services,"3,314.25",Nov-23
Slough Borough Council,680,Oxford House Community Care,M44C,Adult Social Care Operations,Supplies and Services,"1,276.32",Nov-23
Slough Borough Council,680,Oxford House Community Care,M44C,Adult Social Care Operations,Supplies and Services,675.51,Nov-23
Slough Borough Council,680,Oxford House Community Care,M44C,Adult Social Care Operations,Supplies and Services,"1,409.34",Nov-23
Slough Borough Council,680,Oxford House Community Care,M44C,Adult Social Care Operations,Supplies and Services,"1,230.44",Nov-23
Slough Borough Council,680,Oxford House Community Care,M44C,Adult Social Care Operations,Supplies and Services,764.70,Nov-23
Slough Borough Council,680,Oxford House Community Care,M44C,Adult Social Care Operations,Supplies and Services,"2,898.49",Nov-23
Slough Borough Council,680,Oxford House Community Care,M44C,Adult Social Care Operations,Supplies and Services,992.47,Nov-23
Slough Borough Council,680,Oxford House Community Care,M44C,Adult Social Care Operations,Supplies and Services,"1,396.31",Nov-23
Slough Borough Council,680,Oxford House Community Care,M44C,Adult Social Care Operations,Supplies and Services,717.93,Nov-23
Slough Borough Council,680,Oxford House Community Care,M44C,Adult Social Care Operations,Supplies and Services,992.85,Nov-23
Slough Borough Council,680,Oxford House Community Care,M44C,Adult Social Care Operations,Supplies and Services,"1,122.89",Nov-23
Slough Borough Council,680,Oxford House Community Care,M44C,Adult Social Care Operations,Supplies and Services,"2,594.40",Nov-23
Slough Borough Council,680,Oxford House Community Care,M44C,Adult Social Care Operations,Supplies and Services,"3,464.76",Nov-23
Slough Borough Council,680,Oxford House Community Care,M44D,Adult Social Care Operations,Supplies and Services,708.63,Nov-23
Slough Borough Council,680,Oxford House Community Care,M44D,Adult Social Care Operations,Supplies and Services,853.32,Nov-23
Slough Borough Council,680,Oxford House Community Care,M44D,Adult Social Care Operations,Supplies and Services,"1,227.42",Nov-23
Slough Borough Council,680,Oxford House Community Care,M44D,Adult Social Care Operations,Supplies and Services,"2,592.70",Nov-23
Slough Borough Council,680,Oxford House Community Care,M44E,Adult Social Care Operations,Supplies and Services,558.61,Nov-23
Slough Borough Council,680,Oxford House Community Care,M44F,Adult Social Care Operations,Supplies and Services,825.16,Nov-23
Slough Borough Council,680,Oxford House Community Care,M44F,Adult Social Care Operations,Supplies and Services,530.09,Nov-23
Slough Borough Council,680,Oxford House Community Care,M45C,Adult Social Care Operations,Supplies and Services,751.75,Nov-23
Slough Borough Council,680,Oxford House Community Care,M45C,Adult Social Care Operations,Supplies and Services,"1,507.14",Nov-23
Slough Borough Council,680,Oxford House Community Care,M48C,Adult Social Care Operations,Supplies and Services,"1,142.47",Nov-23
Slough Borough Council,518,Oxford House Nursing Home,M15D,Adult Social Care Operations,Supplies and Services,"4,400.00",Nov-23
Slough Borough Council,518,Oxford House Nursing Home,M15D,Adult Social Care Operations,Supplies and Services,"3,462.28",Nov-23
Slough Borough Council,518,Oxford House Nursing Home,M15D,Adult Social Care Operations,Supplies and Services,"3,462.28",Nov-23
Slough Borough Council,518,Oxford House Nursing Home,M18C,Adult Social Care Operations,Supplies and Services,"3,462.28",Nov-23
Slough Borough Council,333,P W Secure-It Ltd,D610,Place Operations,Supplies and Services,"1,543.00",Nov-23
Slough Borough Council,807442,Pantheon Care Ltd,M44F,Adult Social Care Operations,Supplies and Services,"1,600.00",Nov-23
Slough Borough Council,807442,Pantheon Care Ltd,M44F,Adult Social Care Operations,Supplies and Services,"1,600.00",Nov-23
Slough Borough Council,808421,Paramjit Saib,F253,Children & Families,Agency Staff,"1,585.84",Nov-23
Slough Borough Council,808679,PARBHAN LTD,H205,Housing (People) Services,Supplies and Services,"16,492.00",Nov-23
Slough Borough Council,2461,PARK NOW LIMITED,D123,Place Strategy & Infrastructure,Supplies and Services,"7,178.07",Nov-23
Slough Borough Council,804804,Parkwood Outdoor's Dolygaer,C406,Community,Supplies and Services,"2,531.67",Nov-23
Slough Borough Council,3271,Partnership In Care Ltd,M27F,Adult Social Care Operations,Supplies and Services,"1,970.70",Nov-23
Slough Borough Council,3271,Partnership In Care Ltd,M27F,Adult Social Care Operations,Supplies and Services,"1,970.70",Nov-23
Slough Borough Council,3271,Partnership In Care Ltd,M27F,Adult Social Care Operations,Supplies and Services,"1,970.70",Nov-23
Slough Borough Council,3271,Partnership In Care Ltd,M27F,Adult Social Care Operations,Supplies and Services,"1,970.70",Nov-23
Slough Borough Council,3271,Partnership In Care Ltd,M27F,Adult Social Care Operations,Supplies and Services,"2,036.39",Nov-23
Slough Borough Council,3271,Partnership In Care Ltd,M27F,Adult Social Care Operations,Supplies and Services,"2,036.39",Nov-23
Slough Borough Council,3271,Partnership In Care Ltd,M27F,Adult Social Care Operations,Supplies and Services,"2,036.39",Nov-23
Slough Borough Council,3271,Partnership In Care Ltd,M27F,Adult Social Care Operations,Supplies and Services,"2,036.39",Nov-23
Slough Borough Council,3271,Partnership In Care Ltd,M44F,Adult Social Care Operations,Supplies and Services,"3,081.67",Nov-23
Slough Borough Council,3271,Partnership In Care Ltd,M44F,Adult Social Care Operations,Supplies and Services,"3,081.67",Nov-23
Slough Borough Council,3271,Partnership In Care Ltd,M44F,Adult Social Care Operations,Supplies and Services,"2,982.26",Nov-23
Slough Borough Council,3271,Partnership In Care Ltd,M44F,Adult Social Care Operations,Supplies and Services,"2,982.26",Nov-23
Slough Borough Council,2509,Parvaaz Project,M44E,Adult Social Care Operations,Supplies and Services,513.60,Nov-23
Slough Borough Council,2509,Parvaaz Project,M44E,Adult Social Care Operations,Supplies and Services,513.60,Nov-23
Slough Borough Council,2509,Parvaaz Project,M44E,Adult Social Care Operations,Supplies and Services,513.60,Nov-23
Slough Borough Council,2509,Parvaaz Project,M44E,Adult Social Care Operations,Supplies and Services,513.60,Nov-23
Slough Borough Council,2509,Parvaaz Project,M44E,Adult Social Care Operations,Supplies and Services,513.60,Nov-23
Slough Borough Council,2509,Parvaaz Project,M44E,Adult Social Care Operations,Supplies and Services,513.60,Nov-23
Slough Borough Council,2509,Parvaaz Project,M44E,Adult Social Care Operations,Supplies and Services,513.60,Nov-23
Slough Borough Council,2509,Parvaaz Project,M44E,Adult Social Care Operations,Supplies and Services,513.60,Nov-23
Slough Borough Council,2509,Parvaaz Project,M44E,Adult Social Care Operations,Supplies and Services,513.60,Nov-23
Slough Borough Council,2509,Parvaaz Project,M44E,Adult Social Care Operations,Supplies and Services,513.60,Nov-23
Slough Borough Council,2509,Parvaaz Project,M44E,Adult Social Care Operations,Supplies and Services,678.60,Nov-23
Slough Borough Council,2509,Parvaaz Project,M44E,Adult Social Care Operations,Supplies and Services,678.60,Nov-23
Slough Borough Council,2509,Parvaaz Project,M44E,Adult Social Care Operations,Supplies and Services,513.60,Nov-23
Slough Borough Council,2509,Parvaaz Project,M44E,Adult Social Care Operations,Supplies and Services,513.60,Nov-23
Slough Borough Council,2509,Parvaaz Project,M44E,Adult Social Care Operations,Supplies and Services,513.60,Nov-23
Slough Borough Council,2509,Parvaaz Project,M44E,Adult Social Care Operations,Supplies and Services,678.60,Nov-23
Slough Borough Council,2509,Parvaaz Project,M44E,Adult Social Care Operations,Supplies and Services,678.60,Nov-23
Slough Borough Council,2509,Parvaaz Project,M44E,Adult Social Care Operations,Supplies and Services,513.60,Nov-23
Slough Borough Council,2509,Parvaaz Project,M44E,Adult Social Care Operations,Supplies and Services,513.60,Nov-23
Slough Borough Council,2509,Parvaaz Project,M44E,Adult Social Care Operations,Supplies and Services,513.60,Nov-23
Slough Borough Council,2509,Parvaaz Project,M44E,Adult Social Care Operations,Supplies and Services,513.60,Nov-23
Slough Borough Council,2509,Parvaaz Project,M44E,Adult Social Care Operations,Supplies and Services,513.60,Nov-23
Slough Borough Council,2509,Parvaaz Project,M50E,Adult Social Care Operations,Supplies and Services,800.40,Nov-23
Slough Borough Council,2509,Parvaaz Project,M50E,Adult Social Care Operations,Supplies and Services,800.40,Nov-23
Slough Borough Council,2509,Parvaaz Project,M50E,Adult Social Care Operations,Supplies and Services,800.40,Nov-23
Slough Borough Council,2509,Parvaaz Project,M50E,Adult Social Care Operations,Supplies and Services,800.40,Nov-23
Slough Borough Council,807423,Paygate Solutions Ltd,H020,Finance & Commercial,Supplies and Services,"4,000.00",Nov-23
Slough Borough Council,807405,PayPoint Network Ltd,H055,Finance & Commercial,Supplies and Services,"5,931.70",Nov-23
Slough Borough Council,807405,PayPoint Network Ltd,H055,Finance & Commercial,Supplies and Services,"4,326.90",Nov-23
Slough Borough Council,807405,PayPoint Network Ltd,H055,Finance & Commercial,Supplies and Services,"4,759.58",Nov-23
Slough Borough Council,824,Penn Wood Primary and Nursery School,E450,Children & Families,Supplies and Services,"483,238.64",Nov-23
Slough Borough Council,808606,Pentwyn House Nursing Home,M18C,Adult Social Care Operations,Supplies and Services,"4,071.30",Nov-23
Slough Borough Council,803786,Phillipa Holliday,C322,Community,Supplies and Services,"3,753.25",Nov-23
Slough Borough Council,807727,Phoenix Infant Academy c/o Thames Learning Trust,E620,Children & Families,Supplies and Services,"12,406.39",Nov-23
Slough Borough Council,3359,Pippins School,E370,Children & Families,Supplies and Services,"82,925.96",Nov-23
Slough Borough Council,904,Pitney Bowes Finance Plc,K077,Business Services,Supplies and Services,"5,491.74",Nov-23
Slough Borough Council,807120,PJ Care Limited,M15D,Adult Social Care Operations,Supplies and Services,"9,514.50",Nov-23
Slough Borough Council,808881,PKB MANAGEMENT LTD,H205,Housing (People) Services,Supplies and Services,"91,726.00",Nov-23
Slough Borough Council,2537,Pre School Stars,F909,Children & Families,Supplies and Services,"1,560.29",Nov-23
Slough Borough Council,2537,Pre School Stars,F909,Children & Families,Supplies and Services,"1,417.50",Nov-23
Slough Borough Council,2537,Pre School Stars,F909,Children & Families,Supplies and Services,"8,166.02",Nov-23
Slough Borough Council,808574,Precisely Software Limited,B660,Finance & Commercial,Supplies and Services,"1,617.92",Nov-23
Slough Borough Council,807164,Premier Tail Lifts LTD,M50A,Place Operations,Transport,"1,267.19",Nov-23
Slough Borough Council,805398,PRIORITEYES LTD,A06E,Adult Social Care Operations,Supplies and Services,"5,220.00",Nov-23
Slough Borough Council,805398,PRIORITEYES LTD,A06N,Adult Social Care Operations,Supplies and Services,840.00,Nov-23
Slough Borough Council,849,Priory Primary School,E380,Children & Families,Supplies and Services,"556,035.46",Nov-23
Slough Borough Council,808921,PROUD INVESTMENTS LTD,H205,Housing (People) Services,Supplies and Services,"2,325.00",Nov-23
Slough Borough Council,1138,Qed Slough Ltd,F868,Children & Families,Supplies and Services,"4,332.48",Nov-23
Slough Borough Council,1138,Qed Slough Ltd,F868,Children & Families,Supplies and Services,"620,070.27",Nov-23
Slough Borough Council,808360,Queensmead-Witherslack,F462,Children & Families,Supplies and Services,"33,291.97",Nov-23
Slough Borough Council,808200,Quest Recovery Services Ltd,M44C,Adult Social Care Operations,Supplies and Services,963.00,Nov-23
Slough Borough Council,808200,Quest Recovery Services Ltd,M44C,Adult Social Care Operations,Supplies and Services,719.04,Nov-23
Slough Borough Council,808200,Quest Recovery Services Ltd,M44C,Adult Social Care Operations,Supplies and Services,"1,198.40",Nov-23
Slough Borough Council,808200,Quest Recovery Services Ltd,M44C,Adult Social Care Operations,Supplies and Services,"1,694.88",Nov-23
Slough Borough Council,808200,Quest Recovery Services Ltd,M44C,Adult Social Care Operations,Supplies and Services,"1,078.56",Nov-23
Slough Borough Council,808200,Quest Recovery Services Ltd,M44C,Adult Social Care Operations,Supplies and Services,654.84,Nov-23
Slough Borough Council,808200,Quest Recovery Services Ltd,M44C,Adult Social Care Operations,Supplies and Services,"1,309.68",Nov-23
Slough Borough Council,808200,Quest Recovery Services Ltd,M44C,Adult Social Care Operations,Supplies and Services,847.44,Nov-23
Slough Borough Council,808200,Quest Recovery Services Ltd,M44C,Adult Social Care Operations,Supplies and Services,"1,112.80",Nov-23
Slough Borough Council,808200,Quest Recovery Services Ltd,M44C,Adult Social Care Operations,Supplies and Services,"1,078.56",Nov-23
Slough Borough Council,808200,Quest Recovery Services Ltd,M44D,Adult Social Care Operations,Supplies and Services,"1,318.24",Nov-23
Slough Borough Council,808200,Quest Recovery Services Ltd,M44D,Adult Social Care Operations,Supplies and Services,"1,318.24",Nov-23
Slough Borough Council,808200,Quest Recovery Services Ltd,M44E,Adult Social Care Operations,Supplies and Services,933.04,Nov-23
Slough Borough Council,808200,Quest Recovery Services Ltd,M44E,Adult Social Care Operations,Supplies and Services,778.96,Nov-23
Slough Borough Council,808200,Quest Recovery Services Ltd,M44F,Adult Social Care Operations,Supplies and Services,530.72,Nov-23
Slough Borough Council,808200,Quest Recovery Services Ltd,M44F,Adult Social Care Operations,Supplies and Services,599.20,Nov-23
Slough Borough Council,808200,Quest Recovery Services Ltd,M44F,Adult Social Care Operations,Supplies and Services,626.10,Nov-23
Slough Borough Council,808200,Quest Recovery Services Ltd,M44F,Adult Social Care Operations,Supplies and Services,914.69,Nov-23
Slough Borough Council,808200,Quest Recovery Services Ltd,M48C,Adult Social Care Operations,Supplies and Services,654.84,Nov-23
Slough Borough Council,808200,Quest Recovery Services Ltd,M48C,Adult Social Care Operations,Supplies and Services,500.76,Nov-23
Slough Borough Council,808200,Quest Recovery Services Ltd,M48C,Adult Social Care Operations,Supplies and Services,577.80,Nov-23
Slough Borough Council,808200,Quest Recovery Services Ltd,M48C,Adult Social Care Operations,Supplies and Services,"1,121.36",Nov-23
Slough Borough Council,808200,Quest Recovery Services Ltd,M48C,Adult Social Care Operations,Supplies and Services,"1,035.76",Nov-23
Slough Borough Council,808200,Quest Recovery Services Ltd,M48C,Adult Social Care Operations,Supplies and Services,"1,198.40",Nov-23
Slough Borough Council,805978,Quickscore,B179,Business Services,Premises,"1,886.40",Nov-23
Slough Borough Council,2685,R.E.A.C.H,M26E,Adult Social Care Operations,Supplies and Services,"7,667.52",Nov-23
Slough Borough Council,2685,R.E.A.C.H,M26E,Adult Social Care Operations,Supplies and Services,"10,591.40",Nov-23
Slough Borough Council,2685,R.E.A.C.H,M26E,Adult Social Care Operations,Supplies and Services,"5,464.00",Nov-23
Slough Borough Council,2685,R.E.A.C.H,M26E,Adult Social Care Operations,Supplies and Services,"7,132.56",Nov-23
Slough Borough Council,2685,R.E.A.C.H,M26E,Adult Social Care Operations,External Receipts,-630.80,Nov-23
Slough Borough Council,2685,R.E.A.C.H,M26E,Adult Social Care Operations,External Receipts,-564.40,Nov-23
Slough Borough Council,808822,Raj Desaur,H205,Housing (People) Services,Supplies and Services,"1,705.00",Nov-23
Slough Borough Council,806766,Red Brick Care Ltd,A07R,Adult Social Care Operations,Supplies and Services,501.50,Nov-23
Slough Borough Council,806766,Red Brick Care Ltd,A07R,Adult Social Care Operations,Supplies and Services,684.25,Nov-23
Slough Borough Council,806766,Red Brick Care Ltd,M44C,Adult Social Care Operations,Supplies and Services,"2,142.00",Nov-23
Slough Borough Council,806766,Red Brick Care Ltd,M44C,Adult Social Care Operations,Supplies and Services,"1,428.00",Nov-23
Slough Borough Council,806766,Red Brick Care Ltd,M44C,Adult Social Care Operations,Supplies and Services,"1,428.00",Nov-23
Slough Borough Council,806766,Red Brick Care Ltd,M44C,Adult Social Care Operations,Supplies and Services,"2,618.00",Nov-23
Slough Borough Council,806766,Red Brick Care Ltd,M44C,Adult Social Care Operations,Supplies and Services,"2,142.00",Nov-23
Slough Borough Council,806766,Red Brick Care Ltd,M44C,Adult Social Care Operations,Supplies and Services,"2,142.00",Nov-23
Slough Borough Council,806766,Red Brick Care Ltd,M44C,Adult Social Care Operations,Supplies and Services,"2,142.00",Nov-23
Slough Borough Council,806766,Red Brick Care Ltd,M44C,Adult Social Care Operations,Supplies and Services,603.50,Nov-23
Slough Borough Council,806766,Red Brick Care Ltd,M44C,Adult Social Care Operations,Supplies and Services,"2,142.00",Nov-23
Slough Borough Council,806766,Red Brick Care Ltd,M44C,Adult Social Care Operations,Supplies and Services,"2,142.00",Nov-23
Slough Borough Council,806766,Red Brick Care Ltd,M44C,Adult Social Care Operations,Supplies and Services,"2,142.00",Nov-23
Slough Borough Council,806766,Red Brick Care Ltd,M44C,Adult Social Care Operations,Supplies and Services,"2,112.25",Nov-23
Slough Borough Council,806766,Red Brick Care Ltd,M44C,Adult Social Care Operations,Supplies and Services,"1,173.00",Nov-23
Slough Borough Council,806766,Red Brick Care Ltd,M44D,Adult Social Care Operations,Supplies and Services,"1,147.50",Nov-23
Slough Borough Council,806766,Red Brick Care Ltd,M44D,Adult Social Care Operations,Supplies and Services,"1,666.00",Nov-23
Slough Borough Council,806766,Red Brick Care Ltd,M44D,Adult Social Care Operations,Supplies and Services,833.00,Nov-23
Slough Borough Council,806766,Red Brick Care Ltd,M45C,Adult Social Care Operations,Supplies and Services,994.50,Nov-23
Slough Borough Council,806766,Red Brick Care Ltd,M45C,Adult Social Care Operations,Supplies and Services,748.00,Nov-23
Slough Borough Council,806766,Red Brick Care Ltd,M45C,Adult Social Care Operations,Supplies and Services,"2,142.00",Nov-23
Slough Borough Council,806766,Red Brick Care Ltd,M45C,Adult Social Care Operations,Supplies and Services,535.50,Nov-23
Slough Borough Council,806766,Red Brick Care Ltd,M45C,Adult Social Care Operations,Supplies and Services,595.00,Nov-23
Slough Borough Council,806766,Red Brick Care Ltd,M45C,Adult Social Care Operations,Supplies and Services,"1,377.00",Nov-23
Slough Borough Council,806766,Red Brick Care Ltd,M45C,Adult Social Care Operations,Supplies and Services,"1,683.00",Nov-23
Slough Borough Council,806766,Red Brick Care Ltd,M45C,Adult Social Care Operations,Supplies and Services,"2,142.00",Nov-23
Slough Borough Council,806766,Red Brick Care Ltd,M45C,Adult Social Care Operations,Supplies and Services,"2,856.00",Nov-23
Slough Borough Council,806766,Red Brick Care Ltd,M45C,Adult Social Care Operations,Supplies and Services,"1,908.25",Nov-23
Slough Borough Council,806766,Red Brick Care Ltd,M45C,Adult Social Care Operations,Supplies and Services,"1,666.00",Nov-23
Slough Borough Council,806766,Red Brick Care Ltd,M48C,Adult Social Care Operations,Supplies and Services,578.00,Nov-23
Slough Borough Council,805321,Redacted,F909,Children & Families,Supplies and Services,610.05,Nov-23
Slough Borough Council,805084,Redacted,F909,Children & Families,Supplies and Services,"1,586.13",Nov-23
Slough Borough Council,806541,Redacted,F909,Children & Families,Supplies and Services,"1,499.46",Nov-23
Slough Borough Council,806541,Redacted,F909,Children & Families,Supplies and Services,"12,507.88",Nov-23
Slough Borough Council,806541,Redacted,F909,Children & Families,Supplies and Services,"3,118.50",Nov-23
Slough Borough Council,1928,Redacted,F909,Children & Families,Supplies and Services,610.05,Nov-23
Slough Borough Council,3934,Redacted,F909,Children & Families,Supplies and Services,610.05,Nov-23
Slough Borough Council,806720,Redacted,F909,Children & Families,Supplies and Services,586.32,Nov-23
Slough Borough Council,3209,Redacted,F909,Children & Families,Supplies and Services,915.06,Nov-23
Slough Borough Council,805145,Redacted,F909,Children & Families,Supplies and Services,"1,208.48",Nov-23
Slough Borough Council,804932,Redacted,F909,Children & Families,Supplies and Services,632.32,Nov-23
Slough Borough Council,805779,Redacted,F909,Children & Families,Supplies and Services,728.81,Nov-23
Slough Borough Council,803824,Redacted,F909,Children & Families,Supplies and Services,684.60,Nov-23
Slough Borough Council,807475,Redacted,F909,Children & Families,Supplies and Services,610.05,Nov-23
Slough Borough Council,803853,Redacted,F909,Children & Families,Supplies and Services,647.31,Nov-23
Slough Borough Council,807836,Redacted,F909,Children & Families,Supplies and Services,"1,830.15",Nov-23
Slough Borough Council,807698,Redacted,F909,Children & Families,Supplies and Services,915.06,Nov-23
Slough Borough Council,803874,Redacted,F909,Children & Families,Supplies and Services,511.28,Nov-23
Slough Borough Council,805946,Redacted,F909,Children & Families,Supplies and Services,550.63,Nov-23
Slough Borough Council,805806,Redacted,F909,Children & Families,Supplies and Services,989.61,Nov-23
Slough Borough Council,805153,Redacted,F123,Education & Inclusion,External Receipts,"2,332.80",Nov-23
Slough Borough Council,804359,Redacted,F123,Education & Inclusion,External Receipts,953.10,Nov-23
Slough Borough Council,808302,Reliant Care Limited,M44C,Adult Social Care Operations,Supplies and Services,"3,124.71",Nov-23
Slough Borough Council,807562,Renovo Farnborough Limited,M25D,Adult Social Care Operations,Supplies and Services,"8,813.14",Nov-23
Slough Borough Council,2529,Richmond Fellowship,M27F,Adult Social Care Operations,Supplies and Services,"2,180.70",Nov-23
Slough Borough Council,806930,Roselight Healthcare Service Limited,M42F,Adult Social Care Operations,Supplies and Services,"2,360.00",Nov-23
Slough Borough Council,806930,Roselight Healthcare Service Limited,M42F,Adult Social Care Operations,Supplies and Services,"3,340.00",Nov-23
Slough Borough Council,806930,Roselight Healthcare Service Limited,M42F,Adult Social Care Operations,Supplies and Services,"3,340.00",Nov-23
Slough Borough Council,806930,Roselight Healthcare Service Limited,M44D,Adult Social Care Operations,Supplies and Services,"1,722.00",Nov-23
Slough Borough Council,806930,Roselight Healthcare Service Limited,M44F,Adult Social Care Operations,Supplies and Services,"2,509.32",Nov-23
Slough Borough Council,806930,Roselight Healthcare Service Limited,M44F,Adult Social Care Operations,Supplies and Services,"3,295.32",Nov-23
Slough Borough Council,806930,Roselight Healthcare Service Limited,M44F,Adult Social Care Operations,Supplies and Services,"1,991.00",Nov-23
Slough Borough Council,806930,Roselight Healthcare Service Limited,M44F,Adult Social Care Operations,Supplies and Services,"2,360.00",Nov-23
Slough Borough Council,806930,Roselight Healthcare Service Limited,M44F,Adult Social Care Operations,Supplies and Services,"1,506.00",Nov-23
Slough Borough Council,806930,Roselight Healthcare Service Limited,M44F,Adult Social Care Operations,Supplies and Services,"3,381.84",Nov-23
Slough Borough Council,806930,Roselight Healthcare Service Limited,M44F,Adult Social Care Operations,Supplies and Services,"1,667.16",Nov-23
Slough Borough Council,806930,Roselight Healthcare Service Limited,M44F,Adult Social Care Operations,Supplies and Services,"1,930.00",Nov-23
Slough Borough Council,806930,Roselight Healthcare Service Limited,M44F,Adult Social Care Operations,Supplies and Services,"1,724.72",Nov-23
Slough Borough Council,806930,Roselight Healthcare Service Limited,M44F,Adult Social Care Operations,Supplies and Services,"2,600.00",Nov-23
Slough Borough Council,806930,Roselight Healthcare Service Limited,M44F,Adult Social Care Operations,Supplies and Services,"2,400.00",Nov-23
Slough Borough Council,806930,Roselight Healthcare Service Limited,M44F,Adult Social Care Operations,Supplies and Services,"1,670.00",Nov-23
Slough Borough Council,806930,Roselight Healthcare Service Limited,M44F,Adult Social Care Operations,Supplies and Services,924.76,Nov-23
Slough Borough Council,806930,Roselight Healthcare Service Limited,M44F,Adult Social Care Operations,Supplies and Services,"1,288.77",Nov-23
Slough Borough Council,806930,Roselight Healthcare Service Limited,M44F,Adult Social Care Operations,Supplies and Services,"1,899.32",Nov-23
Slough Borough Council,806930,Roselight Healthcare Service Limited,M44F,Adult Social Care Operations,Supplies and Services,"1,991.00",Nov-23
Slough Borough Council,806930,Roselight Healthcare Service Limited,M44F,Adult Social Care Operations,Supplies and Services,"1,200.00",Nov-23
Slough Borough Council,806930,Roselight Healthcare Service Limited,M44F,Adult Social Care Operations,Supplies and Services,"1,991.00",Nov-23
Slough Borough Council,806930,Roselight Healthcare Service Limited,M44F,Adult Social Care Operations,Supplies and Services,"1,991.00",Nov-23
Slough Borough Council,806930,Roselight Healthcare Service Limited,M44F,Adult Social Care Operations,Supplies and Services,"1,991.00",Nov-23
Slough Borough Council,806930,Roselight Healthcare Service Limited,M44F,Adult Social Care Operations,Supplies and Services,"1,991.00",Nov-23
Slough Borough Council,806930,Roselight Healthcare Service Limited,M44F,Adult Social Care Operations,Supplies and Services,"1,991.00",Nov-23
Slough Borough Council,806930,Roselight Healthcare Service Limited,M44F,Adult Social Care Operations,Supplies and Services,"1,765.16",Nov-23
Slough Borough Council,806930,Roselight Healthcare Service Limited,M44F,Adult Social Care Operations,Supplies and Services,"1,991.00",Nov-23
Slough Borough Council,808170,Rupert Griffiths t/a Land and Art,D502,Place Strategy & Infrastructure,Supplies and Services,687.60,Nov-23
Slough Borough Council,842,Ryvers Primary School,E620,Children & Families,Supplies and Services,"16,379.76",Nov-23
Slough Borough Council,806398,Saba Park UK Services Limited,D122,Place Strategy & Infrastructure,Premises,"16,631.61",Nov-23
Slough Borough Council,806398,Saba Park UK Services Limited,D122,Place Strategy & Infrastructure,Supplies and Services,556.10,Nov-23
Slough Borough Council,806398,Saba Park UK Services Limited,D123,Place Strategy & Infrastructure,Supplies and Services,"118,184.94",Nov-23
Slough Borough Council,806398,Saba Park UK Services Limited,D122,Place Strategy & Infrastructure,Supplies and Services,"13,131.66",Nov-23
Slough Borough Council,806398,Saba Park UK Services Limited,D123,Place Strategy & Infrastructure,Supplies and Services,"1,997.10",Nov-23
Slough Borough Council,806398,Saba Park UK Services Limited,D010,Place Strategy & Infrastructure,Supplies and Services,"21,893.23",Nov-23
Slough Borough Council,805875,Salutem Shared Services,M25D,Adult Social Care Operations,Supplies and Services,"6,637.94",Nov-23
Slough Borough Council,805875,Salutem Shared Services,M26E,Adult Social Care Operations,Supplies and Services,"11,977.11",Nov-23
Slough Borough Council,805875,Salutem Shared Services,M26E,Adult Social Care Operations,Supplies and Services,"4,341.44",Nov-23
Slough Borough Council,805875,Salutem Shared Services,M26E,Adult Social Care Operations,Supplies and Services,607.75,Nov-23
Slough Borough Council,805875,Salutem Shared Services,M26E,Adult Social Care Operations,External Receipts,-607.76,Nov-23
Slough Borough Council,3169,Seeability,M26E,Adult Social Care Operations,Supplies and Services,"10,016.31",Nov-23
Slough Borough Council,3169,Seeability,M26E,Adult Social Care Operations,Supplies and Services,"2,917.32",Nov-23
Slough Borough Council,3169,Seeability,M26E,Adult Social Care Operations,Supplies and Services,"2,978.16",Nov-23
Slough Borough Council,3169,Seeability,M26E,Adult Social Care Operations,Supplies and Services,"10,016.31",Nov-23
Slough Borough Council,3169,Seeability,M26E,Adult Social Care Operations,Supplies and Services,"10,350.19",Nov-23
Slough Borough Council,3169,Seeability,M26E,Adult Social Care Operations,Supplies and Services,"2,722.84",Nov-23
Slough Borough Council,3169,Seeability,M26E,Adult Social Care Operations,Supplies and Services,"2,979.34",Nov-23
Slough Borough Council,3169,Seeability,M26E,Adult Social Care Operations,Supplies and Services,"10,350.19",Nov-23
Slough Borough Council,3169,Seeability,M26E,Adult Social Care Operations,Supplies and Services,"10,350.19",Nov-23
Slough Borough Council,809177,SGAS Northern Ireland Ltd,B409,Customer,Indirect Employee Expenses,990.00,Nov-23
Slough Borough Council,808814,Shine Partnerships Ltd,M42F,Adult Social Care Operations,Supplies and Services,"1,744.20",Nov-23
Slough Borough Council,805303,Sign Health,M27C,Adult Social Care Operations,Supplies and Services,"5,308.54",Nov-23
Slough Borough Council,808698,SKB INVESTMENTS LTD,H205,Housing (People) Services,Supplies and Services,"1,705.00",Nov-23
Slough Borough Council,1459,Slough And Eton C E School,E610,Children & Families,Supplies and Services,"15,208.33",Nov-23
Slough Borough Council,807834,Slough Children First,M99C,Children & Families,Supplies and Services,"2,656,000.00",Nov-23
Slough Borough Council,807834,Slough Children First,M99C,Children & Families,Supplies and Services,"3,005,484.32",Nov-23
